Workbook

Sheet Main
B10: 2024-02-22
B12: Sheet No. | C12: Template Name | D12: Summary
B13: 1 | C13: Future Intra | D13: For Intraday trading in F&O segment
B14: 2 | C14: Cash Intra | D14: For Intraday trading in cash market segment
B15: 3 | C15: Mid-cap Intra | D15: For Intraday trading in Mid-cap stocks
B16: 4 | C16: Bulk Deals | D16: Reveals Bulk Deals carried on NSE & BSE
B17: 5 | C17: Call Tracker
K27: `

Sheet Future Intra
M5: Back to Main Page
A6: FOR INTRA DAY TRADING | L6: =Main!B10 -> 2024-02-22
A9: Sr.no | B9: Sector | C9: Scrip | D9: Expiry Date | E9: CLOSE RATE | F9: Pivot Point | G9: Supports | J9: Resistances
E10: Point | F10: Point | G10: S1 | H10: S2 | I10: S3 | J10: R1 | K10: R2 | L10: R3 | M10: HIGH | N10: LOW | O10: OI | P10: % Change in OI
A11: 1 | B11: Index | C11: NIFTY | D11: 2024-02-29 | E11: 22070.15 | F11: 22121.67 | G11: 21971.33 | H11: 21872.52 | I11: 21722.18 | J11: 22220.48 | K11: 22370.82 | L11: 22469.63 | M11: 22272 | N11: 22022.85 | O11: 13573300 | P11: 1.04%
A12: 2 | B12: Index | C12: BANKNIFTY | D12: 2024-02-29 | E12: 47024.85 | F12: 47108.58 | G12: 46817.12 | H12: 46609.38 | I12: 46317.92 | J12: 47316.32 | K12: 47607.78 | L12: 47815.52 | M12: 47400.05 | N12: 46900.85 | O12: 3246150 | P12: 3.52%
A13: 3 | B13: Index | C13: FINNIFTY | D13: 2024-02-27 | E13: 20676.40 | F13: 20738.47 | G13: 20587.93 | H13: 20499.47 | I13: 20348.93 | J13: 20826.93 | K13: 20977.47 | L13: 21065.93 | M13: 20889 | N13: 20650 | O13: 101160 | P13: -15.95%
A14: 4 | B14: Index | C14: MIDCPNIFTY | D14: 2024-02-26 | E14: 10862.65 | F14: 10913.40 | G14: 10782.95 | H14: 10703.25 | I14: 10572.80 | J14: 10993.10 | K14: 11123.55 | L14: 11203.25 | M14: 11043.85 | N14: 10833.7 | O14: 858150 | P14: 10.90%
A15: 5 | B15: Chemical | C15: AARTIIND | D15: 2024-02-29 | E15: 688.80 | F15: 694.18 | G15: 677.37 | H15: 665.93 | I15: 649.12 | J15: 705.62 | K15: 722.43 | L15: 733.87 | M15: 711 | N15: 682.75 | O15: 13265000 | P15: 4.15%
A16: 6 | B16: Capital_Goods | C16: ABB | D16: 2024-02-29 | E16: 4999.80 | F16: 4885.60 | G16: 4746.20 | H16: 4492.60 | I16: 4353.20 | J16: 5139.20 | K16: 5278.60 | L16: 5532.20 | M16: 5025 | N16: 4632 | O16: 1795375 | P16: 11.60%
A17: 7 | B17: Pharma | C17: ABBOTINDIA | D17: 2024-02-29 | E17: 29166.90 | F17: 29205.52 | G17: 29011.13 | H17: 28855.37 | I17: 28660.98 | J17: 29361.28 | K17: 29555.67 | L17: 29711.43 | M17: 29399.9 | N17: 29049.75 | O17: 190840 | P17: 0.82%
A18: 8 | B18: Others | C18: ABCAPITAL | D18: 2024-02-29 | E18: 182.65 | F18: 183.85 | G18: 180.80 | H18: 178.95 | I18: 175.90 | J18: 185.70 | K18: 188.75 | L18: 190.60 | M18: 186.9 | N18: 182 | O18: 66495600 | P18: 1.01%
A19: 9 | B19: Textile | C19: ABFRL | D19: 2024-02-29 | E19: 226.65 | F19: 230.87 | G19: 220.73 | H19: 214.82 | I19: 204.68 | J19: 236.78 | K19: 246.92 | L19: 252.83 | M19: 241 | N19: 224.95 | O19: 48594000 | P19: 12.42%
A20: 10 | B20: Cement | C20: ACC | D20: 2024-02-29 | E20: 2672.65 | F20: 2687.92 | G20: 2643.93 | H20: 2615.22 | I20: 2571.23 | J20: 2716.63 | K20: 2760.62 | L20: 2789.33 | M20: 2731.9 | N20: 2659.2 | O20: 4808700 | P20: 0.11%
A21: 11 | B21: Others | C21: ADANIENT | D21: 2024-02-29 | E21: 3229.20 | F21: 3250.07 | G21: 3187.93 | H21: 3146.67 | I21: 3084.53 | J21: 3291.33 | K21: 3353.47 | L21: 3394.73 | M21: 3312.2 | N21: 3208.8 | O21: 15196500 | P21: -1.38%
A22: 12 | B22: Others | C22: ADANIPORTS | D22: 2024-02-29 | E22: 1290.40 | F22: 1295.72 | G22: 1276.33 | H22: 1262.27 | I22: 1242.88 | J22: 1309.78 | K22: 1329.17 | L22: 1343.23 | M22: 1315.1 | N22: 1281.65 | O22: 38319200 | P22: -1.61%
A23: 13 | B23: Pharma | C23: ALKEM | D23: 2024-02-29 | E23: 5415.40 | F23: 5444.28 | G23: 5359.27 | H23: 5303.13 | I23: 5218.12 | J23: 5500.42 | K23: 5585.43 | L23: 5641.57 | M23: 5529.3 | N23: 5388.15 | O23: 1566800 | P23: -0.95%
A24: 14 | B24: Cement | C24: AMBUJACEM | D24: 2024-02-29 | E24: 587.35 | F24: 589.22 | G24: 581.43 | H24: 575.52 | I24: 567.73 | J24: 595.13 | K24: 602.92 | L24: 608.83 | M24: 597 | N24: 583.3 | O24: 51339600 | P24: -2.78%
A25: 15 | B25: Others | C25: APOLLOHOSP | D25: 2024-02-29 | E25: 6753.85 | F25: 6764.93 | G25: 6710.12 | H25: 6666.38 | I25: 6611.57 | J25: 6808.67 | K25: 6863.48 | L25: 6907.22 | M25: 6819.75 | N25: 6721.2 | O25: 1867250 | P25: -3.87%
A26: 16 | B26: Automobile | C26: APOLLOTYRE | D26: 2024-02-29 | E26: 516.65 | F26: 518.77 | G26: 512.58 | H26: 508.52 | I26: 502.33 | J26: 522.83 | K26: 529.02 | L26: 533.08 | M26: 524.95 | N26: 514.7 | O26: 10560400 | P26: -0.18%
A27: 17 | B27: Automobile | C27: ASHOKLEY | D27: 2024-02-29 | E27: 171.20 | F27: 173.20 | G27: 168.50 | H27: 165.80 | I27: 161.10 | J27: 175.90 | K27: 180.60 | L27: 183.30 | M27: 177.9 | N27: 170.5 | O27: 127115000 | P27: 20.44%
A28: 18 | B28: FMCG | C28: ASIANPAINT | D28: 2024-02-29 | E28: 3000.40 | F28: 3003.58 | G28: 2979.27 | H28: 2958.13 | I28: 2933.82 | J28: 3024.72 | K28: 3049.03 | L28: 3070.17 | M28: 3027.9 | N28: 2982.45 | O28: 8338400 | P28: -2.06%
A29: 19 | B29: Others | C29: ASTRAL | D29: 2024-02-29 | E29: 1935.00 | F29: 1944.50 | G29: 1918.50 | H29: 1902.00 | I29: 1876.00 | J29: 1961.00 | K29: 1987.00 | L29: 2003.50 | M29: 1970.5 | N29: 1928 | O29: 3162806 | P29: -0.78%
A30: 20 | B30: Others | C30: ATUL | D30: 2024-02-29 | E30: 6324.15 | F30: 6348.55 | G30: 6287.20 | H30: 6250.25 | I30: 6188.90 | J30: 6385.50 | K30: 6446.85 | L30: 6483.80 | M30: 6409.9 | N30: 6311.6 | O30: 349500 | P30: 0.82%
A31: 21 | B31: Banking | C31: AUBANK | D31: 2024-02-29 | E31: 589.45 | F31: 592.93 | G31: 582.02 | H31: 574.58 | I31: 563.67 | J31: 600.37 | K31: 611.28 | L31: 618.72 | M31: 603.85 | N31: 585.5 | O31: 25918000 | P31: 5.28%
A32: 22 | B32: Pharma | C32: AUROPHARMA | D32: 2024-02-29 | E32: 1040.25 | F32: 1046.07 | G32: 1030.28 | H32: 1020.32 | I32: 1004.53 | J32: 1056.03 | K32: 1071.82 | L32: 1081.78 | M32: 1061.85 | N32: 1036.1 | O32: 22388300 | P32: -1.29%
A33: 23 | B33: Banking | C33: AXISBANK | D33: 2024-02-29 | E33: 1082.90 | F33: 1084.35 | G33: 1074.05 | H33: 1065.20 | I33: 1054.90 | J33: 1093.20 | K33: 1103.50 | L33: 1112.35 | M33: 1094.65 | N33: 1075.5 | O33: 46826875 | P33: -3.07%
A34: 24 | B34: Automobile | C34: BAJAJ-AUTO | D34: 2024-02-29 | E34: 8167.40 | F34: 8175.52 | G34: 8093.33 | H34: 8019.27 | I34: 7937.08 | J34: 8249.58 | K34: 8331.77 | L34: 8405.83 | M34: 8257.7 | N34: 8101.45 | O34: 2274250 | P34: -1.13%
A35: 25 | B35: Finance | C35: BAJAJFINSV | D35: 2024-02-29 | E35: 1587.20 | F35: 1597.50 | G35: 1574.00 | H35: 1560.80 | I35: 1537.30 | J35: 1610.70 | K35: 1634.20 | L35: 1647.40 | M35: 1621 | N35: 1584.3 | O35: 9768000 | P35: 1.18%
A36: 26 | B36: Finance | C36: BAJFINANCE | D36: 2024-02-29 | E36: 6685.80 | F36: 6715.53 | G36: 6637.62 | H36: 6589.43 | I36: 6511.52 | J36: 6763.72 | K36: 6841.63 | L36: 6889.82 | M36: 6793.45 | N36: 6667.35 | O36: 8574375 | P36: 2.16%
A37: 27 | B37: Automobile | C37: BALKRISIND | D37: 2024-02-29 | E37: 2261.60 | F37: 2270.23 | G37: 2226.37 | H37: 2191.13 | I37: 2147.27 | J37: 2305.47 | K37: 2349.33 | L37: 2384.57 | M37: 2314.1 | N37: 2235 | O37: 2664900 | P37: 4.68%
A38: 28 | B38: Others | C38: BALRAMCHIN | D38: 2024-02-29 | E38: 380.90 | F38: 382.25 | G38: 377.50 | H38: 374.10 | I38: 369.35 | J38: 385.65 | K38: 390.40 | L38: 393.80 | M38: 387 | N38: 378.85 | O38: 13673600 | P38: -4.16%
A39: 29 | B39: Banking | C39: BANDHANBNK | D39: 2024-02-29 | E39: 199.80 | F39: 200.58 | G39: 196.22 | H39: 192.63 | I39: 188.27 | J39: 204.17 | K39: 208.53 | L39: 212.12 | M39: 204.95 | N39: 197 | O39: 102990000 | P39: -1.22%
A40: 30 | B40: Banking | C40: BANKBARODA | D40: 2024-02-29 | E40: 275.35 | F40: 276.15 | G40: 272.40 | H40: 269.45 | I40: 265.70 | J40: 279.10 | K40: 282.85 | L40: 285.80 | M40: 279.9 | N40: 273.2 | O40: 141169275 | P40: 0.68%
A41: 31 | B41: FMCG | C41: BATAINDIA | D41: 2024-02-29 | E41: 1425.15 | F41: 1432.00 | G41: 1414.15 | H41: 1403.15 | I41: 1385.30 | J41: 1443.00 | K41: 1460.85 | L41: 1471.85 | M41: 1449.85 | N41: 1421 | O41: 3316125 | P41: 4.54%
A42: 32 | B42: Capital_Goods | C42: BEL | D42: 2024-02-29 | E42: 188.80 | F42: 189.60 | G42: 186.35 | H42: 183.90 | I42: 180.65 | J42: 192.05 | K42: 195.30 | L42: 197.75 | M42: 192.85 | N42: 187.15 | O42: 117773400 | P42: -0.91%
A43: 33 | B43: FMCG | C43: BERGEPAINT | D43: 2024-02-29 | E43: 559.25 | F43: 558.67 | G43: 554.98 | H43: 550.72 | I43: 547.03 | J43: 562.93 | K43: 566.62 | L43: 570.88 | M43: 562.35 | N43: 554.4 | O43: 17220720 | P43: 4.09%
A44: 34 | B44: Automobile | C44: BHARATFORG | D44: 2024-02-29 | E44: 1119.95 | F44: 1124.62 | G44: 1108.23 | H44: 1096.52 | I44: 1080.13 | J44: 1136.33 | K44: 1152.72 | L44: 1164.43 | M44: 1141 | N44: 1112.9 | O44: 8351500 | P44: -3.28%
A45: 35 | B45: Telecom | C45: BHARTIARTL | D45: 2024-02-29 | E45: 1142.80 | F45: 1146.00 | G45: 1132.45 | H45: 1122.10 | I45: 1108.55 | J45: 1156.35 | K45: 1169.90 | L45: 1180.25 | M45: 1159.55 | N45: 1135.65 | O45: 34058450 | P45: 0.36%
A46: 36 | B46: Capital_Goods | C46: BHEL | D46: 2024-02-29 | E46: 222.20 | F46: 225.12 | G46: 217.48 | H46: 212.77 | I46: 205.13 | J46: 229.83 | K46: 237.47 | L46: 242.18 | M46: 232.75 | N46: 220.4 | O46: 96678750 | P46: 3.64%
A47: 37 | B47: Pharma | C47: BIOCON | D47: 2024-02-29 | E47: 273.95 | F47: 276.17 | G47: 269.08 | H47: 264.22 | I47: 257.13 | J47: 281.03 | K47: 288.12 | L47: 292.98 | M47: 283.25 | N47: 271.3 | O47: 42417500 | P47: -5.32%
A48: 38 | B48: Automobile | C48: BOSCHLTD | D48: 2024-02-29 | E48: 27965.65 | F48: 28293.92 | G48: 27556.73 | H48: 27147.82 | I48: 26410.63 | J48: 28702.83 | K48: 29440.02 | L48: 29848.93 | M48: 29031.1 | N48: 27885 | O48: 219700 | P48: 6.73%
A49: 39 | B49: Oil_Gas | C49: BPCL | D49: 2024-02-29 | E49: 634.70 | F49: 644.67 | G49: 620.83 | H49: 606.97 | I49: 583.13 | J49: 658.53 | K49: 682.37 | L49: 696.23 | M49: 668.5 | N49: 630.8 | O49: 34243200 | P49: 3.50%
A50: 40 | B50: FMCG | C50: BRITANNIA | D50: 2024-02-29 | E50: 4934.40 | F50: 4944.80 | G50: 4894.60 | H50: 4854.80 | I50: 4804.60 | J50: 4984.60 | K50: 5034.80 | L50: 5074.60 | M50: 4995 | N50: 4905 | O50: 2548400 | P50: 0.04%
A51: 41 | B51: Technology | C51: BSOFT | D51: 2024-02-29 | E51: 796.80 | F51: 802.87 | G51: 787.28 | H51: 777.77 | I51: 762.18 | J51: 812.38 | K51: 827.97 | L51: 837.48 | M51: 818.45 | N51: 793.35 | O51: 7388000 | P51: -1.82%
A52: 42 | B52: Banking | C52: CANBK | D52: 2024-02-29 | E52: 567.10 | F52: 571.15 | G52: 559.95 | H52: 552.80 | I52: 541.60 | J52: 578.30 | K52: 589.50 | L52: 596.65 | M52: 582.35 | N52: 564 | O52: 47112300 | P52: -4.65%
A53: 43 | B53: Finance | C53: CANFINHOME | D53: 2024-02-29 | E53: 787.45 | F53: 794.12 | G53: 777.73 | H53: 768.02 | I53: 751.63 | J53: 803.83 | K53: 820.22 | L53: 829.93 | M53: 810.5 | N53: 784.4 | O53: 4425525 | P53: 1.89%
A54: 44 | B54: Others | C54: CHAMBLFERT | D54: 2024-02-29 | E54: 366.00 | F54: 368.23 | G54: 362.07 | H54: 358.13 | I54: 351.97 | J54: 372.17 | K54: 378.33 | L54: 382.27 | M54: 374.4 | N54: 364.3 | O54: 9059200 | P54: -3.03%
A55: 45 | B55: Finance | C55: CHOLAFIN | D55: 2024-02-29 | E55: 1089.60 | F55: 1095.73 | G55: 1078.07 | H55: 1066.53 | I55: 1048.87 | J55: 1107.27 | K55: 1124.93 | L55: 1136.47 | M55: 1113.4 | N55: 1084.2 | O55: 15031250 | P55: 4.77%
A56: 46 | B56: Pharma | C56: CIPLA | D56: 2024-02-29 | E56: 1443.40 | F56: 1443.98 | G56: 1429.47 | H56: 1415.53 | I56: 1401.02 | J56: 1457.92 | K56: 1472.43 | L56: 1486.37 | M56: 1458.5 | N56: 1430.05 | O56: 9471150 | P56: 0.70%
A57: 47 | B57: Others | C57: COALINDIA | D57: 2024-02-29 | E57: 434.10 | F57: 439.10 | G57: 427.20 | H57: 420.30 | I57: 408.40 | J57: 446.00 | K57: 457.90 | L57: 464.80 | M57: 451 | N57: 432.2 | O57: 68256300 | P57: 6.96%
A58: 48 | B58: Technology | C58: COFORGE | D58: 2024-02-29 | E58: 6541.35 | F58: 6582.18 | G58: 6466.37 | H58: 6391.38 | I58: 6275.57 | J58: 6657.17 | K58: 6772.98 | L58: 6847.97 | M58: 6698 | N58: 6507.2 | O58: 1407750 | P58: -0.10%
A59: 49 | B59: FMCG | C59: COLPAL | D59: 2024-02-29 | E59: 2540.40 | F59: 2545.45 | G59: 2524.10 | H59: 2507.80 | I59: 2486.45 | J59: 2561.75 | K59: 2583.10 | L59: 2599.40 | M59: 2566.8 | N59: 2529.15 | O59: 3512950 | P59: 0.49%
A60: 50 | B60: Others | C60: CONCOR | D60: 2024-02-29 | E60: 995.30 | F60: 1003.85 | G60: 980.65 | H60: 966.00 | I60: 942.80 | J60: 1018.50 | K60: 1041.70 | L60: 1056.35 | M60: 1027.05 | N60: 989.2 | O60: 17449000 | P60: -2.02%
A61: 51 | B61: Others | C61: COROMANDEL | D61: 2024-02-29 | E61: 1088.00 | F61: 1093.10 | G61: 1079.45 | H61: 1070.90 | I61: 1057.25 | J61: 1101.65 | K61: 1115.30 | L61: 1123.85 | M61: 1106.75 | N61: 1084.55 | O61: 1712900 | P61: 0.20%
A62: 52 | B62: Capital_Goods | C62: CROMPTON | D62: 2024-02-29 | E62: 290.20 | F62: 290.20 | G62: 288.50 | H62: 286.80 | I62: 285.10 | J62: 291.90 | K62: 293.60 | L62: 295.30 | M62: 291.9 | N62: 288.5 | O62: 16824600 | P62: -0.48%
A63: 53 | B63: Banking | C63: CUB | D63: 2024-02-29 | E63: 133.95 | F63: 135.00 | G63: 132.55 | H63: 131.15 | I63: 128.70 | J63: 136.40 | K63: 138.85 | L63: 140.25 | M63: 137.45 | N63: 133.6 | O63: 43995000 | P63: 2.46%
A64: 54 | B64: Capital_Goods | C64: CUMMINSIND | D64: 2024-02-29 | E64: 2610.00 | F64: 2616.42 | G64: 2588.63 | H64: 2567.27 | I64: 2539.48 | J64: 2637.78 | K64: 2665.57 | L64: 2686.93 | M64: 2644.2 | N64: 2595.05 | O64: 4358400 | P64: -1.61%
A65: 55 | B65: FMCG | C65: DABUR | D65: 2024-02-29 | E65: 546.95 | F65: 547.65 | G65: 544.30 | H65: 541.65 | I65: 538.30 | J65: 550.30 | K65: 553.65 | L65: 556.30 | M65: 551 | N65: 545 | O65: 22230000 | P65: 0.33%
A66: 56 | B66: Cement | C66: DALBHARAT | D66: 2024-02-29 | E66: 2086.35 | F66: 2096.35 | G66: 2065.75 | H66: 2045.15 | I66: 2014.55 | J66: 2116.95 | K66: 2147.55 | L66: 2168.15 | M66: 2126.95 | N66: 2075.75 | O66: 3301250 | P66: -1.29%
A67: 57 | B67: Chemical | C67: DEEPAKNTR | D67: 2024-02-29 | E67: 2329.20 | F67: 2339.65 | G67: 2301.30 | H67: 2273.40 | I67: 2235.05 | J67: 2367.55 | K67: 2405.90 | L67: 2433.80 | M67: 2378 | N67: 2311.75 | O67: 3073200 | P67: 1.96%
A68: 58 | B68: Others | C68: DELTACORP | D68: 2024-02-29 | E68: 142.70 | F68: 143.87 | G68: 140.33 | H68: 137.97 | I68: 134.43 | J68: 146.23 | K68: 149.77 | L68: 152.13 | M68: 147.4 | N68: 141.5 | O68: 15126000 | P68: -3.08%
A69: 59 | B69: Pharma | C69: DIVISLAB | D69: 2024-02-29 | E69: 3648.95 | F69: 3675.55 | G69: 3611.65 | H69: 3574.35 | I69: 3510.45 | J69: 3712.85 | K69: 3776.75 | L69: 3814.05 | M69: 3739.45 | N69: 3638.25 | O69: 3662600 | P69: 1.70%
A70: 60 | B70: Others | C70: DIXON | D70: 2024-02-29 | E70: 6749.80 | F70: 6768.22 | G70: 6682.58 | H70: 6615.37 | I70: 6529.73 | J70: 6835.43 | K70: 6921.07 | L70: 6988.28 | M70: 6853.85 | N70: 6701 | O70: 1461000 | P70: -1.59%
A71: 61 | B71: Realty | C71: DLF | D71: 2024-02-29 | E71: 885.90 | F71: 881.50 | G71: 867.25 | H71: 848.60 | I71: 834.35 | J71: 900.15 | K71: 914.40 | L71: 933.05 | M71: 895.75 | N71: 862.85 | O71: 34742400 | P71: -0.83%
A72: 62 | B72: Pharma | C72: DRREDDY | D72: 2024-02-29 | E72: 6336.80 | F72: 6334.77 | G72: 6299.53 | H72: 6262.27 | I72: 6227.03 | J72: 6372.03 | K72: 6407.27 | L72: 6444.53 | M72: 6370 | N72: 6297.5 | O72: 1863875 | P72: 1.91%
A73: 63 | B73: Automobile | C73: EICHERMOT | D73: 2024-02-29 | E73: 3828.20 | F73: 3849.85 | G73: 3797.20 | H73: 3766.20 | I73: 3713.55 | J73: 3880.85 | K73: 3933.50 | L73: 3964.50 | M73: 3902.5 | N73: 3818.85 | O73: 3630550 | P73: 0.36%
A74: 64 | B74: Automobile | C74: ESCORTS | D74: 2024-02-29 | E74: 2914.55 | F74: 2921.28 | G74: 2888.37 | H74: 2862.18 | I74: 2829.27 | J74: 2947.47 | K74: 2980.38 | L74: 3006.57 | M74: 2954.2 | N74: 2895.1 | O74: 2450525 | P74: -1.19%
A75: 65 | B75: Automobile | C75: EXIDEIND | D75: 2024-02-29 | E75: 326.25 | F75: 328.68 | G75: 322.87 | H75: 319.48 | I75: 313.67 | J75: 332.07 | K75: 337.88 | L75: 341.27 | M75: 334.5 | N75: 325.3 | O75: 19350000 | P75: 1.86%
A76: 66 | B76: Banking | C76: FEDERALBNK | D76: 2024-02-29 | E76: 153.80 | F76: 154.40 | G76: 152.80 | H76: 151.80 | I76: 150.20 | J76: 155.40 | K76: 157.00 | L76: 158.00 | M76: 156 | N76: 153.4 | O76: 91555000 | P76: -2.98%
A77: 67 | B77: Oil_Gas | C77: GAIL | D77: 2024-02-29 | E77: 180.75 | F77: 181.93 | G77: 178.57 | H77: 176.38 | I77: 173.02 | J77: 184.12 | K77: 187.48 | L77: 189.67 | M77: 185.3 | N77: 179.75 | O77: 132999825 | P77: -0.50%
A78: 68 | B78: Pharma | C78: GLENMARK | D78: 2024-02-29 | E78: 900.85 | F78: 900.63 | G78: 887.87 | H78: 874.88 | I78: 862.12 | J78: 913.62 | K78: 926.38 | L78: 939.37 | M78: 913.4 | N78: 887.65 | O78: 15260525 | P78: -0.47%
A79: 69 | B79: Infrastructure | C79: GMRINFRA | D79: 2024-02-29 | E79: 86.05 | F79: 86.82 | G79: 83.18 | H79: 80.32 | I79: 76.68 | J79: 89.68 | K79: 93.32 | L79: 96.18 | M79: 90.45 | N79: 83.95 | O79: 231783750 | P79: -6.31%
A80: 70 | B80: Others | C80: GNFC | D80: 2024-02-29 | E80: 669.15 | F80: 673.28 | G80: 662.87 | H80: 656.58 | I80: 646.17 | J80: 679.57 | K80: 689.98 | L80: 696.27 | M80: 683.7 | N80: 667 | O80: 8651500 | P80: -6.24%
A81: 71 | B81: FMCG | C81: GODREJCP | D81: 2024-02-29 | E81: 1235.85 | F81: 1236.65 | G81: 1224.30 | H81: 1212.75 | I81: 1200.40 | J81: 1248.20 | K81: 1260.55 | L81: 1272.10 | M81: 1249 | N81: 1225.1 | O81: 6657500 | P81: -3.87%
A82: 72 | B82: Realty | C82: GODREJPROP | D82: 2024-02-29 | E82: 2342.15 | F82: 2340.32 | G82: 2308.18 | H82: 2274.22 | I82: 2242.08 | J82: 2374.28 | K82: 2406.42 | L82: 2440.38 | M82: 2372.45 | N82: 2306.35 | O82: 4872075 | P82: -0.78%
A83: 73 | B83: Pharma | C83: GRANULES | D83: 2024-02-29 | E83: 456.95 | F83: 461.23 | G83: 450.07 | H83: 443.18 | I83: 432.02 | J83: 468.12 | K83: 479.28 | L83: 486.17 | M83: 472.4 | N83: 454.35 | O83: 11230000 | P83: 0.07%
A84: 74 | B84: Cement | C84: GRASIM | D84: 2024-02-29 | E84: 2199.20 | F84: 2201.07 | G84: 2180.63 | H84: 2162.07 | I84: 2141.63 | J84: 2219.63 | K84: 2240.07 | L84: 2258.63 | M84: 2221.5 | N84: 2182.5 | O84: 8603649 | P84: 1.33%
A85: 75 | B85: Oil_Gas | C85: GUJGASLTD | D85: 2024-02-29 | E85: 563.60 | F85: 562.38 | G85: 555.72 | H85: 547.83 | I85: 541.17 | J85: 570.27 | K85: 576.93 | L85: 584.82 | M85: 569.05 | N85: 554.5 | O85: 7977500 | P85: -5.41%
A86: 76 | B86: Others | C86: HAL | D86: 2024-02-29 | E86: 2953.10 | F86: 2972.08 | G86: 2915.17 | H86: 2877.23 | I86: 2820.32 | J86: 3010.02 | K86: 3066.93 | L86: 3104.87 | M86: 3029 | N86: 2934.15 | O86: 9130500 | P86: 1.79%
A87: 77 | B87: Capital_Goods | C87: HAVELLS | D87: 2024-02-29 | E87: 1413.90 | F87: 1409.67 | G87: 1402.33 | H87: 1390.77 | I87: 1383.43 | J87: 1421.23 | K87: 1428.57 | L87: 1440.13 | M87: 1417 | N87: 1398.1 | O87: 4224000 | P87: -0.58%
A88: 78 | B88: Technology | C88: HCLTECH | D88: 2024-02-29 | E88: 1639.10 | F88: 1645.93 | G88: 1629.12 | H88: 1619.13 | I88: 1602.32 | J88: 1655.92 | K88: 1672.73 | L88: 1682.72 | M88: 1662.75 | N88: 1635.95 | O88: 13481300 | P88: -0.08%
A89: 79 | B89: Finance | C89: HDFCAMC | D89: 2024-02-29 | E89: 3740.95 | F89: 3759.42 | G89: 3708.33 | H89: 3675.72 | I89: 3624.63 | J89: 3792.03 | K89: 3843.12 | L89: 3875.73 | M89: 3810.5 | N89: 3726.8 | O89: 3081600 | P89: -0.47%
A90: 80 | B90: Banking | C90: HDFCBANK | D90: 2024-02-29 | E90: 1439.25 | F90: 1445.55 | G90: 1428.75 | H90: 1418.25 | I90: 1401.45 | J90: 1456.05 | K90: 1472.85 | L90: 1483.35 | M90: 1462.35 | N90: 1435.05 | O90: 220696300 | P90: -1.30%
A91: 81 | B91: Finance | C91: HDFCLIFE | D91: 2024-02-29 | E91: 578.10 | F91: 582.12 | G91: 571.83 | H91: 565.57 | I91: 555.28 | J91: 588.38 | K91: 598.67 | L91: 604.93 | M91: 592.4 | N91: 575.85 | O91: 32069400 | P91: 1.82%
A92: 82 | B92: Automobile | C92: HEROMOTOCO | D92: 2024-02-29 | E92: 4542.90 | F92: 4557.85 | G92: 4497.50 | H92: 4452.10 | I92: 4391.75 | J92: 4603.25 | K92: 4663.60 | L92: 4709.00 | M92: 4618.2 | N92: 4512.45 | O92: 3992400 | P92: -0.51%
A93: 83 | B93: Metals | C93: HINDALCO | D93: 2024-02-29 | E93: 512.60 | F93: 519.45 | G93: 503.90 | H93: 495.20 | I93: 479.65 | J93: 528.15 | K93: 543.70 | L93: 552.40 | M93: 535 | N93: 510.75 | O93: 48885200 | P93: 4.04%
A94: 84 | B94: Metals | C94: HINDCOPPER | D94: 2024-02-29 | E94: 245.45 | F94: 250.08 | G94: 238.37 | H94: 231.28 | I94: 219.57 | J94: 257.17 | K94: 268.88 | L94: 275.97 | M94: 261.8 | N94: 243 | O94: 33734500 | P94: -2.60%
A95: 85 | B95: Oil_Gas | C95: HINDPETRO | D95: 2024-02-29 | E95: 543.30 | F95: 548.57 | G95: 526.23 | H95: 509.17 | I95: 486.83 | J95: 565.63 | K95: 587.97 | L95: 605.03 | M95: 570.9 | N95: 531.5 | O95: 35035200 | P95: -3.97%
A96: 86 | B96: FMCG | C96: HINDUNILVR | D96: 2024-02-29 | E96: 2406.00 | F96: 2408.92 | G96: 2395.58 | H96: 2385.17 | I96: 2371.83 | J96: 2419.33 | K96: 2432.67 | L96: 2443.08 | M96: 2422.25 | N96: 2398.5 | O96: 11924400 | P96: -2.32%
A97: 87 | B97: Banking | C97: ICICIBANK | D97: 2024-02-29 | E97: 1052.70 | F97: 1054.73 | G97: 1046.27 | H97: 1039.83 | I97: 1031.37 | J97: 1061.17 | K97: 1069.63 | L97: 1076.07 | M97: 1063.2 | N97: 1048.3 | O97: 80595200 | P97: -5.36%
A98: 88 | B98: Finance | C98: ICICIGI | D98: 2024-02-29 | E98: 1647.95 | F98: 1652.97 | G98: 1637.23 | H98: 1626.52 | I98: 1610.78 | J98: 1663.68 | K98: 1679.42 | L98: 1690.13 | M98: 1668.7 | N98: 1642.25 | O98: 3095500 | P98: 0.10%
A99: 89 | B99: Finance | C99: ICICIPRULI | D99: 2024-02-29 | E99: 520.75 | F99: 522.23 | G99: 517.47 | H99: 514.18 | I99: 509.42 | J99: 525.52 | K99: 530.28 | L99: 533.57 | M99: 527 | N99: 518.95 | O99: 12717000 | P99: -0.69%
A100: 90 | B100: Telecom | C100: IDEA | D100: 2024-02-29 | E100: 15.40 | F100: 15.65 | G100: 15.00 | H100: 14.60 | I100: 13.95 | J100: 16.05 | K100: 16.70 | L100: 17.10 | M100: 16.3 | N100: 15.25 | O100: 2027760000 | P100: -0.74%
A101: 91 | B101: Finance | C101: IDFC | D101: 2024-02-29 | E101: 115.80 | F101: 116.22 | G101: 114.88 | H101: 113.97 | I101: 112.63 | J101: 117.13 | K101: 118.47 | L101: 119.38 | M101: 117.55 | N101: 115.3 | O101: 73485000 | P101: -0.20%
A102: 92 | B102: Banking | C102: IDFCFIRSTB | D102: 2024-02-29 | E102: 81.00 | F102: 81.32 | G102: 80.33 | H102: 79.67 | I102: 78.68 | J102: 81.98 | K102: 82.97 | L102: 83.63 | M102: 82.3 | N102: 80.65 | O102: 388020000 | P102: 2.11%
A103: 93 | B103: Others | C103: IEX | D103: 2024-02-29 | E103: 144.20 | F103: 144.80 | G103: 141.90 | H103: 139.60 | I103: 136.70 | J103: 147.10 | K103: 150.00 | L103: 152.30 | M103: 147.7 | N103: 142.5 | O103: 68876250 | P103: 0.92%
A104: 94 | B104: Oil_Gas | C104: IGL | D104: 2024-02-29 | E104: 437.65 | F104: 438.43 | G104: 433.37 | H104: 429.08 | I104: 424.02 | J104: 442.72 | K104: 447.78 | L104: 452.07 | M104: 443.5 | N104: 434.15 | O104: 14740000 | P104: -0.09%
A105: 95 | B105: Infrastructure | C105: INDHOTEL | D105: 2024-02-29 | E105: 556.50 | F105: 556.20 | G105: 547.85 | H105: 539.20 | I105: 530.85 | J105: 564.85 | K105: 573.20 | L105: 581.85 | M105: 564.55 | N105: 547.55 | O105: 15988000 | P105: 1.01%
A106: 96 | B106: Cement | C106: INDIACEM | D106: 2024-02-29 | E106: 241.95 | F106: 243.22 | G106: 238.83 | H106: 235.72 | I106: 231.33 | J106: 246.33 | K106: 250.72 | L106: 253.83 | M106: 247.6 | N106: 240.1 | O106: 20340600 | P106: -1.89%
A107: 97 | B107: Others | C107: INDIAMART | D107: 2024-02-29 | E107: 2711.90 | F107: 2731.55 | G107: 2677.55 | H107: 2643.20 | I107: 2589.20 | J107: 2765.90 | K107: 2819.90 | L107: 2854.25 | M107: 2785.55 | N107: 2697.2 | O107: 960900 | P107: 2.10%
A108: 98 | B108: Others | C108: INDIGO | D108: 2024-02-29 | E108: 3091.85 | F108: 3101.00 | G108: 3072.85 | H108: 3053.85 | I108: 3025.70 | J108: 3120.00 | K108: 3148.15 | L108: 3167.15 | M108: 3129.15 | N108: 3082 | O108: 5822100 | P108: -2.98%
A109: 99 | B109: Banking | C109: INDUSINDBK | D109: 2024-02-29 | E109: 1516.50 | F109: 1516.15 | G109: 1503.80 | H109: 1491.10 | I109: 1478.75 | J109: 1528.85 | K109: 1541.20 | L109: 1553.90 | M109: 1528.5 | N109: 1503.45 | O109: 26590500 | P109: -3.01%
A110: 100 | B110: Telecom | C110: INDUSTOWER | D110: 2024-02-29 | E110: 220.45 | F110: 221.60 | G110: 217.70 | H110: 214.95 | I110: 211.05 | J110: 224.35 | K110: 228.25 | L110: 231.00 | M110: 225.5 | N110: 218.85 | O110: 117272800 | P110: -0.84%
A111: 101 | B111: Technology | C111: INFY | D111: 2024-02-29 | E111: 1655.90 | F111: 1659.30 | G111: 1644.15 | H111: 1632.40 | I111: 1617.25 | J111: 1671.05 | K111: 1686.20 | L111: 1697.95 | M111: 1674.45 | N111: 1647.55 | O111: 24435600 | P111: 4.20%
A112: 102 | B112: Oil_Gas | C112: IOC | D112: 2024-02-29 | E112: 182.60 | F112: 185.05 | G112: 179.00 | H112: 175.40 | I112: 169.35 | J112: 188.65 | K112: 194.70 | L112: 198.30 | M112: 191.1 | N112: 181.45 | O112: 170420250 | P112: 0.25%
A113: 103 | B113: Pharma | C113: IPCALAB | D113: 2024-02-29 | E113: 1223.05 | F113: 1229.47 | G113: 1209.58 | H113: 1196.12 | I113: 1176.23 | J113: 1242.93 | K113: 1262.82 | L113: 1276.28 | M113: 1249.35 | N113: 1216 | O113: 3572400 | P113: -1.40%
A114: 104 | B114: Others | C114: IRCTC | D114: 2024-02-29 | E114: 925.70 | F114: 936.50 | G114: 910.55 | H114: 895.40 | I114: 869.45 | J114: 951.65 | K114: 977.60 | L114: 992.75 | M114: 962.45 | N114: 921.35 | O114: 18164125 | P114: 0.51%
A115: 105 | B115: FMCG | C115: ITC | D115: 2024-02-29 | E115: 403.85 | F115: 405.70 | G115: 400.35 | H115: 396.85 | I115: 391.50 | J115: 409.20 | K115: 414.55 | L115: 418.05 | M115: 411.05 | N115: 402.2 | O115: 123776000 | P115: 3.66%
A116: 106 | B116: Metals | C116: JINDALSTEL | D116: 2024-02-29 | E116: 771.55 | F116: 773.50 | G116: 761.40 | H116: 751.25 | I116: 739.15 | J116: 783.65 | K116: 795.75 | L116: 805.90 | M116: 785.6 | N116: 763.35 | O116: 26560000 | P116: 0.44%
A117: 107 | B117: Cement | C117: JKCEMENT | D117: 2024-02-29 | E117: 4246.05 | F117: 4259.30 | G117: 4210.60 | H117: 4175.15 | I117: 4126.45 | J117: 4294.75 | K117: 4343.45 | L117: 4378.90 | M117: 4308 | N117: 4223.85 | O117: 749250 | P117: -0.50%
A118: 108 | B118: Metals | C118: JSWSTEEL | D118: 2024-02-29 | E118: 828.15 | F118: 833.68 | G118: 816.97 | H118: 805.78 | I118: 789.07 | J118: 844.87 | K118: 861.58 | L118: 872.77 | M118: 850.4 | N118: 822.5 | O118: 16435575 | P118: -0.70%
A119: 109 | B119: Others | C119: JUBLFOOD | D119: 2024-02-29 | E119: 495.50 | F119: 502.98 | G119: 483.47 | H119: 471.43 | I119: 451.92 | J119: 515.02 | K119: 534.53 | L119: 546.57 | M119: 522.5 | N119: 490.95 | O119: 18897500 | P119: 4.65%
A120: 110 | B120: Banking | C120: KOTAKBANK | D120: 2024-02-29 | E120: 1746.45 | F120: 1754.15 | G120: 1734.30 | H120: 1722.15 | I120: 1702.30 | J120: 1766.30 | K120: 1786.15 | L120: 1798.30 | M120: 1774 | N120: 1742 | O120: 33619200 | P120: -0.31%
A121: 111 | B121: Finance | C121: L&TFH | D121: 2024-02-29 | E121: 170.80 | F121: 172.03 | G121: 168.52 | H121: 166.23 | I121: 162.72 | J121: 174.32 | K121: 177.83 | L121: 180.12 | M121: 175.55 | N121: 169.75 | O121: 38886330 | P121: -0.82%
A122: 112 | B122: Others | C122: LALPATHLAB | D122: 2024-02-29 | E122: 2426.35 | F122: 2441.62 | G122: 2396.88 | H122: 2367.42 | I122: 2322.68 | J122: 2471.08 | K122: 2515.82 | L122: 2545.28 | M122: 2486.35 | N122: 2412.15 | O122: 1313100 | P122: -0.18%
A123: 113 | B123: Pharma | C123: LAURUSLABS | D123: 2024-02-29 | E123: 395.75 | F123: 398.88 | G123: 390.37 | H123: 384.98 | I123: 376.47 | J123: 404.27 | K123: 412.78 | L123: 418.17 | M123: 407.4 | N123: 393.5 | O123: 14939600 | P123: 0.15%
A124: 114 | B124: Finance | C124: LICHSGFIN | D124: 2024-02-29 | E124: 641.95 | F124: 642.93 | G124: 637.52 | H124: 633.08 | I124: 627.67 | J124: 647.37 | K124: 652.78 | L124: 657.22 | M124: 648.35 | N124: 638.5 | O124: 14808000 | P124: -1.16%
A125: 115 | B125: Capital_Goods | C125: LT | D125: 2024-02-29 | E125: 3299.60 | F125: 3318.05 | G125: 3271.80 | H125: 3244.00 | I125: 3197.75 | J125: 3345.85 | K125: 3392.10 | L125: 3419.90 | M125: 3364.3 | N125: 3290.25 | O125: 16163700 | P125: 1.72%
A126: 116 | B126: Technology | C126: LTIM | D126: 2024-02-29 | E126: 5420.55 | F126: 5444.18 | G126: 5378.37 | H126: 5336.18 | I126: 5270.37 | J126: 5486.37 | K126: 5552.18 | L126: 5594.37 | M126: 5510 | N126: 5402 | O126: 2428050 | P126: 7.38%
A127: 117 | B127: Technology | C127: LTTS | D127: 2024-02-29 | E127: 5278.40 | F127: 5324.60 | G127: 5205.80 | H127: 5133.20 | I127: 5014.40 | J127: 5397.20 | K127: 5516.00 | L127: 5588.60 | M127: 5443.4 | N127: 5252 | O127: 816000 | P127: 10.63%
A128: 118 | B128: Pharma | C128: LUPIN | D128: 2024-02-29 | E128: 1599.25 | F128: 1598.53 | G128: 1589.62 | H128: 1579.98 | I128: 1571.07 | J128: 1608.17 | K128: 1617.08 | L128: 1626.72 | M128: 1607.45 | N128: 1588.9 | O128: 8051200 | P128: -3.85%
A129: 119 | B129: Automobile | C129: M&M | D129: 2024-02-29 | E129: 1855.10 | F129: 1862.70 | G129: 1834.60 | H129: 1814.10 | I129: 1786.00 | J129: 1883.20 | K129: 1911.30 | L129: 1931.80 | M129: 1890.8 | N129: 1842.2 | O129: 11866050 | P129: -4.00%
A130: 120 | B130: Finance | C130: M&MFIN | D130: 2024-02-29 | E130: 289.75 | F130: 291.48 | G130: 286.37 | H130: 282.98 | I130: 277.87 | J130: 294.87 | K130: 299.98 | L130: 303.37 | M130: 296.6 | N130: 288.1 | O130: 30524000 | P130: 3.20%
A131: 121 | B131: Finance | C131: MANAPPURAM | D131: 2024-02-29 | E131: 178.65 | F131: 180.28 | G131: 176.17 | H131: 173.68 | I131: 169.57 | J131: 182.77 | K131: 186.88 | L131: 189.37 | M131: 184.4 | N131: 177.8 | O131: 59466000 | P131: 0.55%
A132: 122 | B132: FMCG | C132: MARICO | D132: 2024-02-29 | E132: 538.35 | F132: 537.98 | G132: 534.37 | H132: 530.38 | I132: 526.77 | J132: 541.97 | K132: 545.58 | L132: 549.57 | M132: 541.6 | N132: 534 | O132: 10303200 | P132: -1.48%
A133: 123 | B133: Automobile | C133: MARUTI | D133: 2024-02-29 | E133: 11436.10 | F133: 11449.00 | G133: 11362.55 | H133: 11289.00 | I133: 11202.55 | J133: 11522.55 | K133: 11609.00 | L133: 11682.55 | M133: 11535.45 | N133: 11375.45 | O133: 2342350 | P133: -0.61%
A134: 124 | B134: FMCG | C134: MCDOWELL-N | D134: 2024-02-29 | E134: 1141.25 | F134: 1141.25 | G134: 1132.50 | H134: 1123.75 | I134: 1115.00 | J134: 1150.00 | K134: 1158.75 | L134: 1167.50 | M134: 1150 | N134: 1132.5 | O134: 7006300 | P134: 0.33%
A135: 125 | B135: Others | C135: MCX | D135: 2024-02-29 | E135: 3664.50 | F135: 3689.17 | G135: 3618.33 | H135: 3572.17 | I135: 3501.33 | J135: 3735.33 | K135: 3806.17 | L135: 3852.33 | M135: 3760 | N135: 3643 | O135: 2509200 | P135: -1.18%
A136: 126 | B136: Pharma | C136: METROPOLIS | D136: 2024-02-29 | E136: 1732.40 | F136: 1736.17 | G136: 1716.83 | H136: 1701.27 | I136: 1681.93 | J136: 1751.73 | K136: 1771.07 | L136: 1786.63 | M136: 1755.5 | N136: 1720.6 | O136: 1215200 | P136: -9.61%
A137: 127 | B137: Finance | C137: MFSL | D137: 2024-02-29 | E137: 953.45 | F137: 959.25 | G137: 944.70 | H137: 935.95 | I137: 921.40 | J137: 968.00 | K137: 982.55 | L137: 991.30 | M137: 973.8 | N137: 950.5 | O137: 9566400 | P137: -0.35%
A138: 128 | B138: Oil_Gas | C138: MGL | D138: 2024-02-29 | E138: 1509.30 | F138: 1510.17 | G138: 1497.33 | H138: 1485.37 | I138: 1472.53 | J138: 1522.13 | K138: 1534.97 | L138: 1546.93 | M138: 1523 | N138: 1498.2 | O138: 2280800 | P138: 1.46%
A139: 129 | B139: Automobile | C139: MOTHERSON | D139: 2024-02-29 | E139: 113.05 | F139: 113.45 | G139: 112.15 | H139: 111.25 | I139: 109.95 | J139: 114.35 | K139: 115.65 | L139: 116.55 | M139: 114.75 | N139: 112.55 | O139: 108906900 | P139: -1.34%
A140: 130 | B140: Technology | C140: MPHASIS | D140: 2024-02-29 | E140: 2659.45 | F140: 2697.82 | G140: 2609.38 | H140: 2559.32 | I140: 2470.88 | J140: 2747.88 | K140: 2836.32 | L140: 2886.38 | M140: 2786.25 | N140: 2647.75 | O140: 3710850 | P140: 0.05%
A141: 131 | B141: Automobile | C141: MRF | D141: 2024-02-29 | E141: 149691.60 | F141: 149844.52 | G141: 148789.03 | H141: 147886.47 | I141: 146830.98 | J141: 150747.08 | K141: 151802.57 | L141: 152705.13 | M141: 150900 | N141: 148941.95 | O141: 41670 | P141: 1.35%
A142: 132 | B142: Finance | C142: MUTHOOTFIN | D142: 2024-02-29 | E142: 1327.85 | F142: 1335.88 | G142: 1315.92 | H142: 1303.98 | I142: 1284.02 | J142: 1347.82 | K142: 1367.78 | L142: 1379.72 | M142: 1355.85 | N142: 1323.95 | O142: 6425650 | P142: 0.63%
A143: 133 | B143: Metals | C143: NATIONALUM | D143: 2024-02-29 | E143: 154.85 | F143: 157.02 | G143: 151.03 | H143: 147.22 | I143: 141.23 | J143: 160.83 | K143: 166.82 | L143: 170.63 | M143: 163 | N143: 153.2 | O143: 77100000 | P143: -6.65%
A144: 134 | B144: Others | C144: NAUKRI | D144: 2024-02-29 | E144: 5234.00 | F144: 5270.17 | G144: 5172.33 | H144: 5110.67 | I144: 5012.83 | J144: 5331.83 | K144: 5429.67 | L144: 5491.33 | M144: 5368 | N144: 5208.5 | O144: 1163250 | P144: -0.47%
A145: 135 | B145: Chemical | C145: NAVINFLUOR | D145: 2024-02-29 | E145: 3164.30 | F145: 3181.25 | G145: 3134.20 | H145: 3104.10 | I145: 3057.05 | J145: 3211.35 | K145: 3258.40 | L145: 3288.50 | M145: 3228.3 | N145: 3151.15 | O145: 1973100 | P145: 8.26%
A146: 136 | B146: FMCG | C146: NESTLEIND | D146: 2024-02-29 | E146: 2542.55 | F146: 2536.80 | G146: 2525.75 | H146: 2508.95 | I146: 2497.90 | J146: 2553.60 | K146: 2564.65 | L146: 2581.45 | M146: 2547.85 | N146: 2520 | O146: 5908000 | P146: -2.26%
A147: 137 | B147: Metals | C147: NMDC | D147: 2024-02-29 | E147: 232.35 | F147: 235.77 | G147: 227.68 | H147: 223.02 | I147: 214.93 | J147: 240.43 | K147: 248.52 | L147: 253.18 | M147: 243.85 | N147: 231.1 | O147: 97960500 | P147: 8.62%
A148: 138 | B148: Power | C148: NTPC | D148: 2024-02-29 | E148: 336.55 | F148: 339.80 | G148: 332.15 | H148: 327.75 | I148: 320.10 | J148: 344.20 | K148: 351.85 | L148: 356.25 | M148: 347.45 | N148: 335.4 | O148: 88908000 | P148: -0.85%
A149: 139 | B149: Realty | C149: OBEROIRLTY | D149: 2024-02-29 | E149: 1325.15 | F149: 1328.72 | G149: 1300.03 | H149: 1274.92 | I149: 1246.23 | J149: 1353.83 | K149: 1382.52 | L149: 1407.63 | M149: 1357.4 | N149: 1303.6 | O149: 7249900 | P149: 3.68%
A150: 140 | B150: Technology | C150: OFSS | D150: 2024-02-29 | E150: 7761.65 | F150: 7799.38 | G150: 7683.77 | H150: 7605.88 | I150: 7490.27 | J150: 7877.27 | K150: 7992.88 | L150: 8070.77 | M150: 7915 | N150: 7721.5 | O150: 854400 | P150: -2.04%
A151: 141 | B151: Oil_Gas | C151: ONGC | D151: 2024-02-29 | E151: 273.20 | F151: 275.48 | G151: 269.57 | H151: 265.93 | I151: 260.02 | J151: 279.12 | K151: 285.03 | L151: 288.67 | M151: 281.4 | N151: 271.85 | O151: 103576550 | P151: 0.99%
A152: 142 | B152: Textile | C152: PAGEIND | D152: 2024-02-29 | E152: 36333.95 | F152: 36397.32 | G152: 36104.63 | H152: 35875.32 | I152: 35582.63 | J152: 36626.63 | K152: 36919.32 | L152: 37148.63 | M152: 36690 | N152: 36168 | O152: 156600 | P152: 0.85%
A153: 143 | B153: Pharma | C153: PEL | D153: 2024-02-29 | E153: 921.90 | F153: 925.33 | G153: 885.27 | H153: 848.63 | I153: 808.57 | J153: 961.97 | K153: 1002.03 | L153: 1038.67 | M153: 965.4 | N153: 888.7 | O153: 13463250 | P153: 8.85%
A154: 144 | B154: Technology | C154: PERSISTENT | D154: 2024-02-29 | E154: 8539.60 | F154: 8586.05 | G154: 8460.25 | H154: 8380.90 | I154: 8255.10 | J154: 8665.40 | K154: 8791.20 | L154: 8870.55 | M154: 8711.85 | N154: 8506.7 | O154: 1677900 | P154: 1.05%
A155: 145 | B155: Oil_Gas | C155: PETRONET | D155: 2024-02-29 | E155: 281.05 | F155: 282.10 | G155: 278.70 | H155: 276.35 | I155: 272.95 | J155: 284.45 | K155: 287.85 | L155: 290.20 | M155: 285.5 | N155: 279.75 | O155: 40353000 | P155: 3.62%
A156: 146 | B156: Finance | C156: PFC | D156: 2024-02-29 | E156: 412.85 | F156: 418.35 | G156: 405.95 | H156: 399.05 | I156: 386.65 | J156: 425.25 | K156: 437.65 | L156: 444.55 | M156: 430.75 | N156: 411.45 | O156: 79933500 | P156: 1.25%
A157: 147 | B157: FMCG | C157: PIDILITIND | D157: 2024-02-29 | E157: 2726.95 | F157: 2731.05 | G157: 2706.60 | H157: 2686.25 | I157: 2661.80 | J157: 2751.40 | K157: 2775.85 | L157: 2796.20 | M157: 2755.5 | N157: 2710.7 | O157: 2984250 | P157: -2.12%
A158: 148 | B158: Chemical | C158: PIIND | D158: 2024-02-29 | E158: 3681.05 | F158: 3683.03 | G158: 3659.12 | H158: 3637.18 | I158: 3613.27 | J158: 3704.97 | K158: 3728.88 | L158: 3750.82 | M158: 3706.95 | N158: 3661.1 | O158: 2455250 | P158: -2.88%
A159: 149 | B159: Banking | C159: PNB | D159: 2024-02-29 | E159: 128.25 | F159: 128.80 | G159: 126.55 | H159: 124.85 | I159: 122.60 | J159: 130.50 | K159: 132.75 | L159: 134.45 | M159: 131.05 | N159: 127.1 | O159: 261352000 | P159: 3.78%
A160: 150 | B160: Others | C160: POLYCAB | D160: 2024-02-29 | E160: 4714.65 | F160: 4723.80 | G160: 4673.85 | H160: 4633.05 | I160: 4583.10 | J160: 4764.60 | K160: 4814.55 | L160: 4855.35 | M160: 4773.75 | N160: 4683 | O160: 2499500 | P160: -2.52%
A161: 151 | B161: Power | C161: POWERGRID | D161: 2024-02-29 | E161: 280.65 | F161: 283.13 | G161: 277.37 | H161: 274.08 | I161: 268.32 | J161: 286.42 | K161: 292.18 | L161: 295.47 | M161: 288.9 | N161: 279.85 | O161: 61498800 | P161: 3.33%
A162: 152 | B162: Media | C162: PVRINOX | D162: 2024-02-29 | E162: 1380.90 | F162: 1391.07 | G162: 1363.88 | H162: 1346.87 | I162: 1319.68 | J162: 1408.08 | K162: 1435.27 | L162: 1452.28 | M162: 1418.25 | N162: 1374.05 | O162: 7444844 | P162: 7.63%
A163: 153 | B163: Cement | C163: RAMCOCEM | D163: 2024-02-29 | E163: 869.75 | F163: 875.18 | G163: 862.57 | H163: 855.38 | I163: 842.77 | J163: 882.37 | K163: 894.98 | L163: 902.17 | M163: 887.8 | N163: 868 | O163: 3544500 | P163: 8.82%
A164: 154 | B164: Banking | C164: RBLBANK | D164: 2024-02-29 | E164: 258.20 | F164: 259.65 | G164: 253.30 | H164: 248.40 | I164: 242.05 | J164: 264.55 | K164: 270.90 | L164: 275.80 | M164: 266 | N164: 254.75 | O164: 76562500 | P164: -4.06%
A165: 155 | B165: Power | C165: RECLTD | D165: 2024-02-29 | E165: 454.95 | F165: 460.33 | G165: 445.92 | H165: 436.88 | I165: 422.47 | J165: 469.37 | K165: 483.78 | L165: 492.82 | M165: 474.75 | N165: 451.3 | O165: 46886000 | P165: 2.48%
A166: 156 | B166: Oil_Gas | C166: RELIANCE | D166: 2024-02-29 | E166: 2938.40 | F166: 2947.80 | G166: 2912.60 | H166: 2886.80 | I166: 2851.60 | J166: 2973.60 | K166: 3008.80 | L166: 3034.60 | M166: 2983 | N166: 2922 | O166: 36498500 | P166: 2.45%
A167: 157 | B167: Metals | C167: SAIL | D167: 2024-02-29 | E167: 130.70 | F167: 131.40 | G167: 128.40 | H167: 126.10 | I167: 123.10 | J167: 133.70 | K167: 136.70 | L167: 139.00 | M167: 134.4 | N167: 129.1 | O167: 132048000 | P167: -0.85%
A168: 158 | B168: Banking | C168: SBICARD | D168: 2024-02-29 | E168: 734.05 | F168: 735.02 | G168: 728.43 | H168: 722.82 | I168: 716.23 | J168: 740.63 | K168: 747.22 | L168: 752.83 | M168: 741.6 | N168: 729.4 | O168: 27608000 | P168: 7.42%
A169: 159 | B169: Finance | C169: SBILIFE | D169: 2024-02-29 | E169: 1502.00 | F169: 1505.98 | G169: 1492.67 | H169: 1483.33 | I169: 1470.02 | J169: 1515.32 | K169: 1528.63 | L169: 1537.97 | M169: 1519.3 | N169: 1496.65 | O169: 7438500 | P169: -4.84%
A170: 160 | B170: Banking | C170: SBIN | D170: 2024-02-29 | E170: 771.85 | F170: 770.25 | G170: 762.20 | H170: 752.55 | I170: 744.50 | J170: 779.90 | K170: 787.95 | L170: 797.60 | M170: 778.3 | N170: 760.6 | O170: 105139500 | P170: -0.72%
A171: 161 | B171: Cement | C171: SHREECEM | D171: 2024-02-29 | E171: 26403.05 | F171: 26492.42 | G171: 26192.83 | H171: 25982.62 | I171: 25683.03 | J171: 26702.63 | K171: 27002.22 | L171: 27212.43 | M171: 26792 | N171: 26282.2 | O171: 245850 | P171: 2.34%
A172: 162 | B172: Capital_Goods | C172: SIEMENS | D172: 2024-02-29 | E172: 4449.50 | F172: 4475.90 | G172: 4402.05 | H172: 4354.60 | I172: 4280.75 | J172: 4523.35 | K172: 4597.20 | L172: 4644.65 | M172: 4549.75 | N172: 4428.45 | O172: 1177500 | P172: -4.76%
A173: 163 | B173: Textile | C173: SRF | D173: 2024-02-29 | E173: 2398.90 | F173: 2402.10 | G173: 2379.15 | H173: 2359.40 | I173: 2336.45 | J173: 2421.85 | K173: 2444.80 | L173: 2464.55 | M173: 2425.05 | N173: 2382.35 | O173: 4178250 | P173: 4.26%
A174: 164 | B174: Finance | C174: SHRIRAMFIN | D174: 2024-02-29 | E174: 2362.15 | F174: 2377.78 | G174: 2335.02 | H174: 2307.88 | I174: 2265.12 | J174: 2404.92 | K174: 2447.68 | L174: 2474.82 | M174: 2420.55 | N174: 2350.65 | O174: 6849900 | P174: 0.38%
A175: 165 | B175: Pharma | C175: SUNPHARMA | D175: 2024-02-29 | E175: 1541.85 | F175: 1541.43 | G175: 1534.67 | H175: 1527.48 | I175: 1520.72 | J175: 1548.62 | K175: 1555.38 | L175: 1562.57 | M175: 1548.2 | N175: 1534.25 | O175: 18435900 | P175: 0.47%
A176: 166 | B176: Media | C176: SUNTV | D176: 2024-02-29 | E176: 607.45 | F176: 610.58 | G176: 602.52 | H176: 597.58 | I176: 589.52 | J176: 615.52 | K176: 623.58 | L176: 628.52 | M176: 618.65 | N176: 605.65 | O176: 6466500 | P176: 0.54%
A177: 167 | B177: Pharma | C177: SYNGENE | D177: 2024-02-29 | E177: 749.85 | F177: 754.02 | G177: 743.88 | H177: 737.92 | I177: 727.78 | J177: 759.98 | K177: 770.12 | L177: 776.08 | M177: 764.15 | N177: 748.05 | O177: 5298000 | P177: -2.66%
A178: 168 | B178: Chemical | C178: TATACHEM | D178: 2024-02-29 | E178: 976.55 | F178: 982.50 | G178: 967.00 | H178: 957.45 | I178: 941.95 | J178: 992.05 | K178: 1007.55 | L178: 1017.10 | M178: 998 | N178: 972.95 | O178: 15392850 | P178: 1.48%
A179: 169 | B179: Telecom | C179: TATACOMM | D179: 2024-02-29 | E179: 1795.70 | F179: 1808.53 | G179: 1775.07 | H179: 1754.43 | I179: 1720.97 | J179: 1829.17 | K179: 1862.63 | L179: 1883.27 | M179: 1842 | N179: 1787.9 | O179: 7520000 | P179: -5.91%
A180: 170 | B180: FMCG | C180: TATACONSUM | D180: 2024-02-29 | E180: 1163.35 | F180: 1163.85 | G180: 1152.15 | H180: 1140.95 | I180: 1129.25 | J180: 1175.05 | K180: 1186.75 | L180: 1197.95 | M180: 1175.55 | N180: 1152.65 | O180: 11435400 | P180: -1.02%
A181: 171 | B181: Automobile | C181: TATAMOTORS | D181: 2024-02-29 | E181: 922.40 | F181: 925.98 | G181: 914.77 | H181: 907.13 | I181: 895.92 | J181: 933.62 | K181: 944.83 | L181: 952.47 | M181: 937.2 | N181: 918.35 | O181: 67931175 | P181: -0.31%
A182: 172 | B182: Power | C182: TATAPOWER | D182: 2024-02-29 | E182: 375.20 | F182: 377.53 | G182: 371.12 | H182: 367.03 | I182: 360.62 | J182: 381.62 | K182: 388.03 | L182: 392.12 | M182: 383.95 | N182: 373.45 | O182: 95897250 | P182: 0.08%
A183: 173 | B183: Metals | C183: TATASTEEL | D183: 2024-02-29 | E183: 143.90 | F183: 144.03 | G183: 141.87 | H183: 139.83 | I183: 137.67 | J183: 146.07 | K183: 148.23 | L183: 150.27 | M183: 146.2 | N183: 142 | O183: 198121000 | P183: -2.41%
A184: 174 | B184: Technology | C184: TCS | D184: 2024-02-29 | E184: 3998.95 | F184: 4017.32 | G184: 3971.38 | H184: 3943.82 | I184: 3897.88 | J184: 4044.88 | K184: 4090.82 | L184: 4118.38 | M184: 4063.25 | N184: 3989.75 | O184: 12154625 | P184: 0.80%
A185: 175 | B185: Technology | C185: TECHM | D185: 2024-02-29 | E185: 1295.80 | F185: 1303.20 | G185: 1282.75 | H185: 1269.70 | I185: 1249.25 | J185: 1316.25 | K185: 1336.70 | L185: 1349.75 | M185: 1323.65 | N185: 1290.15 | O185: 13303200 | P185: -1.90%
A186: 176 | B186: FMCG | C186: TITAN | D186: 2024-02-29 | E186: 3654.00 | F186: 3665.87 | G186: 3626.68 | H186: 3599.37 | I186: 3560.18 | J186: 3693.18 | K186: 3732.37 | L186: 3759.68 | M186: 3705.05 | N186: 3638.55 | O186: 5066950 | P186: -2.17%
A187: 177 | B187: Pharma | C187: TORNTPHARM | D187: 2024-02-29 | E187: 2609.80 | F187: 2627.12 | G187: 2580.33 | H187: 2550.87 | I187: 2504.08 | J187: 2656.58 | K187: 2703.37 | L187: 2732.83 | M187: 2673.9 | N187: 2597.65 | O187: 1521000 | P187: -2.56%
A188: 178 | B188: Others | C188: TRENT | D188: 2024-02-29 | E188: 3898.95 | F188: 3944.75 | G188: 3836.70 | H188: 3774.45 | I188: 3666.40 | J188: 4007.00 | K188: 4115.05 | L188: 4177.30 | M188: 4052.8 | N188: 3882.5 | O188: 2729600 | P188: -3.29%
A189: 179 | B189: Automobile | C189: TVSMOTOR | D189: 2024-02-29 | E189: 2094.70 | F189: 2106.57 | G189: 2074.33 | H189: 2053.97 | I189: 2021.73 | J189: 2126.93 | K189: 2159.17 | L189: 2179.53 | M189: 2138.8 | N189: 2086.2 | O189: 5170200 | P189: -1.21%
A190: 180 | B190: FMCG | C190: UBL | D190: 2024-02-29 | E190: 1721.75 | F190: 1727.27 | G190: 1709.83 | H190: 1697.92 | I190: 1680.48 | J190: 1739.18 | K190: 1756.62 | L190: 1768.53 | M190: 1744.7 | N190: 1715.35 | O190: 2465200 | P190: 0.20%
A191: 181 | B191: Cement | C191: ULTRACEMCO | D191: 2024-02-29 | E191: 9964.05 | F191: 10000.23 | G191: 9885.02 | H191: 9805.98 | I191: 9690.77 | J191: 10079.27 | K191: 10194.48 | L191: 10273.52 | M191: 10115.45 | N191: 9921.2 | O191: 1896700 | P191: -0.47%
A192: 182 | B192: Chemical | C192: UPL | D192: 2024-02-29 | E192: 493.45 | F192: 495.70 | G192: 490.20 | H192: 486.95 | I192: 481.45 | J192: 498.95 | K192: 504.45 | L192: 507.70 | M192: 501.2 | N192: 492.45 | O192: 42125200 | P192: -0.16%
A193: 183 | B193: Metals | C193: VEDL | D193: 2024-02-29 | E193: 269.90 | F193: 271.58 | G193: 266.72 | H193: 263.53 | I193: 258.67 | J193: 274.77 | K193: 279.63 | L193: 282.82 | M193: 276.45 | N193: 268.4 | O193: 135821900 | P193: -3.35%
A194: 184 | B194: Capital_Goods | C194: VOLTAS | D194: 2024-02-29 | E194: 1106.50 | F194: 1105.72 | G194: 1095.13 | H194: 1083.77 | I194: 1073.18 | J194: 1117.08 | K194: 1127.67 | L194: 1139.03 | M194: 1116.3 | N194: 1094.35 | O194: 7843200 | P194: -1.55%
A195: 185 | B195: Technology | C195: WIPRO | D195: 2024-02-29 | E195: 520.95 | F195: 525.40 | G195: 515.25 | H195: 509.55 | I195: 499.40 | J195: 531.10 | K195: 541.25 | L195: 546.95 | M195: 535.55 | N195: 519.7 | O195: 54759000 | P195: 4.85%
A196: 186 | B196: Media | C196: ZEEL | D196: 2024-02-29 | E196: 166.60 | F196: 169.17 | G196: 161.48 | H196: 156.37 | I196: 148.68 | J196: 174.28 | K196: 181.97 | L196: 187.08 | M196: 176.85 | N196: 164.05 | O196: 107352000 | P196: -1.70%
A197: 187 | B197: Pharma | C197: ZYDUSLIFE | D197: 2024-02-29 | E197: 892.90 | F197: 894.57 | G197: 886.63 | H197: 880.37 | I197: 872.43 | J197: 900.83 | K197: 908.77 | L197: 915.03 | M197: 902.5 | N197: 888.3 | O197: 7124400 | P197: -1.63%
A221: Pivot Point: This is trigger point for intra day buy/sell based on the price range of the previous day
A222: As per the tool,the trader should take BUY position just above Pivot and keep the stop loss of pivot point and the first target would be Resistance 1(R1)
A223: If R1 is crossed then R2 becomes the next target with stop loss of at R1
A224: Similarly if price goes below pivot point then the trader should sell and keep a stop loss of pivot point and the first target would be S1
A225: If S1 is crossed then S2 becomes the next target with stop loss of at S1
A227: Disclaimer:
A228: This document has been prepared by the Retail Research Desk of Asit C Mehta
A229: Investment Intermediates Ltd. and is meant for use of the recipient only
A230: and is not for circulation. This document is not to be reported or
... 6 more rows

Sheet Cash Intra
M5: Back to Main Page
A6: FOR INTRA DAY TRADING | K6: =Main!B10 -> 2024-02-22
A8: Sr.no | C8: CLOSE RATE | D8: Pivot Point | E8: Supports | H8: Resistances
E9: S1 | F9: S2 | G9: S3 | H9: R1 | I9: R2 | J9: R3 | K9: HIGH | L9: LOW | M9: Total Trade Quanity in Lakhs
A10: 1 | B10: Nifty 50 | C10: 22055.05 | D10: 22100.80 | E10: 21952.20 | F10: 21849.35 | G10: 21700.75 | H10: 22203.65 | I10: 22352.25 | J10: 22455.10 | K10: 22249.40 | L10: 21997.95
A11: 2 | B11: Nifty Bank | C11: 47019.70 | D11: 47090.02 | E11: 46816.63 | F11: 46613.57 | G11: 46340.18 | H11: 47293.08 | I11: 47566.47 | J11: 47769.53 | K11: 47363.40 | L11: 46886.95
A12: 3 | B12: Nifty CPSE | C12: 5762.15 | D12: 5812.98 | E12: 5690.97 | F12: 5619.78 | G12: 5497.77 | H12: 5884.17 | I12: 6006.18 | J12: 6077.37 | K12: 5935.00 | L12: 5741.80
A13: 4 | B13: Nifty Infra | C13: 8078.55 | D13: 8104.13 | E13: 8024.97 | F13: 7971.38 | G13: 7892.22 | H13: 8157.72 | I13: 8236.88 | J13: 8290.47 | K13: 8183.30 | L13: 8050.55
A14: 5 | B14: Nifty IT | C14: 37405.90 | D14: 37569.98 | E14: 37138.52 | F14: 36871.13 | G14: 36439.67 | H14: 37837.37 | I14: 38268.83 | J14: 38536.22 | K14: 38001.45 | L14: 37302.60
A15: 6 | B15: Nifty PSE | C15: 9225.95 | D15: 9311.73 | E15: 9100.57 | F15: 8975.18 | G15: 8764.02 | H15: 9437.12 | I15: 9648.28 | J15: 9773.67 | K15: 9522.90 | L15: 9186.35
A16: 7 | B16: Nifty Midcap 50 | C16: 13813.55 | D16: 13874.83 | E16: 13716.12 | F16: 13618.68 | G16: 13459.97 | H16: 13972.27 | I16: 14130.98 | J16: 14228.42 | K16: 14033.55 | L16: 13777.40
A17: 8 | B17: ABB | C17: 4984.7 | D17: 4919.57 | E17: 4705.13 | F17: 4425.57 | G17: 4211.13 | H17: 5199.13 | I17: 5413.57 | J17: 5693.13 | K17: 5134 | L17: 4640 | M17: 44.04765
A18: 9 | B18: ACC | C18: 2666.75 | D18: 2678.95 | E18: 2638.90 | F18: 2611.05 | G18: 2571.00 | H18: 2706.80 | I18: 2746.85 | J18: 2774.70 | K18: 2719 | L18: 2651.1 | M18: 3.83105
A19: 10 | B19: APLAPOLLO | C19: 1433.95 | D19: 1437.15 | E19: 1418.30 | F19: 1402.65 | G19: 1383.80 | H19: 1452.80 | I19: 1471.65 | J19: 1487.30 | K19: 1456 | L19: 1421.5 | M19: 2.96162
A20: 11 | B20: AUBANK | C20: 588.15 | D20: 591.70 | E20: 580.85 | F20: 573.55 | G20: 562.70 | H20: 599.00 | I20: 609.85 | J20: 617.15 | K20: 602.55 | L20: 584.4 | M20: 31.76517
A21: 12 | B21: ADANIENSOL | C21: 1064.8 | D21: 1067.95 | E21: 1051.90 | F21: 1039.00 | G21: 1022.95 | H21: 1080.85 | I21: 1096.90 | J21: 1109.80 | K21: 1084 | L21: 1055.05 | M21: 30.3803
A22: 13 | B22: ADANIENT | C22: 3223.2 | D22: 3242.73 | E22: 3185.47 | F22: 3147.73 | G22: 3090.47 | H22: 3280.47 | I22: 3337.73 | J22: 3375.47 | K22: 3300 | L22: 3205 | M22: 16.57021
A23: 14 | B23: ADANIGREEN | C23: 1904.95 | D23: 1915.70 | E23: 1869.30 | F23: 1833.65 | G23: 1787.25 | H23: 1951.35 | I23: 1997.75 | J23: 2033.40 | K23: 1962.1 | L23: 1880.05 | M23: 11.84961
A24: 15 | B24: ADANIPORTS | C24: 1291 | D24: 1295.82 | E24: 1276.63 | F24: 1262.27 | G24: 1243.08 | H24: 1310.18 | I24: 1329.37 | J24: 1343.73 | K24: 1315 | L24: 1281.45 | M24: 27.7051
A25: 16 | B25: ADANIPOWER | C25: 540.75 | D25: 545.25 | E25: 530.50 | F25: 520.25 | G25: 505.50 | H25: 555.50 | I25: 570.25 | J25: 580.50 | K25: 560 | L25: 535 | M25: 12.63043
A26: 17 | B26: ATGL | C26: 1021.05 | D26: 1026.03 | E26: 1006.07 | F26: 991.08 | G26: 971.12 | H26: 1041.02 | I26: 1060.98 | J26: 1075.97 | K26: 1046 | L26: 1011.05 | M26: 46.37737
A27: 18 | B27: AWL | C27: 360.6 | D27: 363.32 | E27: 353.63 | F27: 346.67 | G27: 336.98 | H27: 370.28 | I27: 379.97 | J27: 386.93 | K27: 373 | L27: 356.35 | M27: 29.25334
A28: 19 | B28: ABCAPITAL | C28: 182.6 | D28: 183.82 | E28: 180.68 | F28: 178.77 | G28: 175.63 | H28: 185.73 | I28: 188.87 | J28: 190.78 | K28: 186.95 | L28: 181.9 | M28: 36.07656
A29: 20 | B29: ABFRL | C29: 226.65 | D29: 230.75 | E29: 221.15 | F29: 215.65 | G29: 206.05 | H29: 236.25 | I29: 245.85 | J29: 251.35 | K29: 240.35 | L29: 225.25 | M29: 58.98624
A30: 21 | B30: ALKEM | C30: 5415.5 | D30: 5441.87 | E30: 5363.73 | F30: 5311.97 | G30: 5233.83 | H30: 5493.63 | I30: 5571.77 | J30: 5623.53 | K30: 5520 | L30: 5390.1 | M30: 1.7088
A31: 22 | B31: AMBUJACEM | C31: 587.8 | D31: 589.25 | E31: 581.80 | F31: 575.80 | G31: 568.35 | H31: 595.25 | I31: 602.70 | J31: 608.70 | K31: 596.7 | L31: 583.25 | M31: 42.09055
A32: 23 | B32: APOLLOHOSP | C32: 6760.15 | D32: 6766.47 | E32: 6710.98 | F32: 6661.82 | G32: 6606.33 | H32: 6815.63 | I32: 6871.12 | J32: 6920.28 | K32: 6821.95 | L32: 6717.3 | M32: 5.37325
A33: 24 | B33: APOLLOTYRE | C33: 516.25 | D33: 518.42 | E33: 511.83 | F33: 507.42 | G33: 500.83 | H33: 522.83 | I33: 529.42 | J33: 533.83 | K33: 525 | L33: 514 | M33: 8.46319
A34: 25 | B34: ASHOKLEY | C34: 171.3 | D34: 173.17 | E34: 168.93 | F34: 166.57 | G34: 162.33 | H34: 175.53 | I34: 179.77 | J34: 182.13 | K34: 177.4 | L34: 170.8 | M34: 340.84215
A35: 26 | B35: ASIANPAINT | C35: 3001.8 | D35: 3004.02 | E35: 2981.28 | F35: 2960.77 | G35: 2938.03 | H35: 3024.53 | I35: 3047.27 | J35: 3067.78 | K35: 3026.75 | L35: 2983.5 | M35: 9.2713
A36: 27 | B36: ASTRAL | C36: 1930.5 | D36: 1941.08 | E36: 1912.17 | F36: 1893.83 | G36: 1864.92 | H36: 1959.42 | I36: 1988.33 | J36: 2006.67 | K36: 1970 | L36: 1922.75 | M36: 6.49882
A37: 28 | B37: AUROPHARMA | C37: 1040.8 | D37: 1046.08 | E37: 1031.17 | F37: 1021.53 | G37: 1006.62 | H37: 1055.72 | I37: 1070.63 | J37: 1080.27 | K37: 1061 | L37: 1036.45 | M37: 15.84527
A38: 29 | B38: DMART | C38: 3835.75 | D38: 3825.58 | E38: 3762.17 | F38: 3688.58 | G38: 3625.17 | H38: 3899.17 | I38: 3962.58 | J38: 4036.17 | K38: 3889 | L38: 3752 | M38: 5.92509
A39: 30 | B39: AXISBANK | C39: 1084.2 | D39: 1083.75 | E39: 1073.55 | F39: 1062.90 | G39: 1052.70 | H39: 1094.40 | I39: 1104.60 | J39: 1115.25 | K39: 1093.95 | L39: 1073.1 | M39: 91.77213
A40: 31 | B40: BAJAJ-AUTO | C40: 8232.25 | D40: 8271.37 | E40: 8165.88 | F40: 8099.52 | G40: 7994.03 | H40: 8337.73 | I40: 8443.22 | J40: 8509.58 | K40: 8376.85 | L40: 8205 | M40: 4.39817
A41: 32 | B41: BAJFINANCE | C41: 6688.8 | D41: 6714.62 | E41: 6639.23 | F41: 6589.67 | G41: 6514.28 | H41: 6764.18 | I41: 6839.57 | J41: 6889.13 | K41: 6790 | L41: 6665.05 | M41: 8.54944
A42: 33 | B42: BAJAJFINSV | C42: 1586.95 | D42: 1595.38 | E42: 1572.17 | F42: 1557.38 | G42: 1534.17 | H42: 1610.17 | I42: 1633.38 | J42: 1648.17 | K42: 1618.6 | L42: 1580.6 | M42: 6.74394
A43: 34 | B43: BAJAJHLDNG | C43: 8807.8 | D43: 8818.90 | E43: 8738.90 | F43: 8670.00 | G43: 8590.00 | H43: 8887.80 | I43: 8967.80 | J43: 9036.70 | K43: 8898.9 | L43: 8750 | M43: 0.11657
A44: 35 | B44: BALKRISIND | C44: 2257.8 | D44: 2273.60 | E44: 2235.20 | F44: 2212.60 | G44: 2174.20 | H44: 2296.20 | I44: 2334.60 | J44: 2357.20 | K44: 2312 | L44: 2251 | M44: 2.09004
A45: 36 | B45: BANDHANBNK | C45: 200.55 | D45: 201.48 | E45: 198.82 | F45: 197.08 | G45: 194.42 | H45: 203.22 | I45: 205.88 | J45: 207.62 | K45: 204.15 | L45: 199.75 | M45: 73.62611
A46: 37 | B46: BANKBARODA | C46: 275.1 | D46: 275.87 | E46: 272.23 | F46: 269.37 | G46: 265.73 | H46: 278.73 | I46: 282.37 | J46: 285.23 | K46: 279.5 | L46: 273 | M46: 196.24058
A47: 38 | B47: BANKINDIA | C47: 141.2 | D47: 142.68 | E47: 138.92 | F47: 136.63 | G47: 132.87 | H47: 144.97 | I47: 148.73 | J47: 151.02 | K47: 146.45 | L47: 140.4 | M47: 159.22241
A48: 39 | B48: BATAINDIA | C48: 1431.95 | D48: 1436.62 | E48: 1420.38 | F48: 1408.82 | G48: 1392.58 | H48: 1448.18 | I48: 1464.42 | J48: 1475.98 | K48: 1452.85 | L48: 1425.05 | M48: 3.43186
A49: 40 | B49: BERGEPAINT | C49: 572.25 | D49: 569.87 | E49: 563.88 | F49: 555.52 | G49: 549.53 | H49: 578.23 | I49: 584.22 | J49: 592.58 | K49: 575.85 | L49: 561.5 | M49: 10.97088
A50: 41 | B50: BDL | C50: 1700.05 | D50: 1711.88 | E50: 1665.17 | F50: 1630.28 | G50: 1583.57 | H50: 1746.77 | I50: 1793.48 | J50: 1828.37 | K50: 1758.6 | L50: 1677 | M50: 8.14514
A51: 42 | B51: BEL | C51: 188.7 | D51: 189.42 | E51: 186.28 | F51: 183.87 | G51: 180.73 | H51: 191.83 | I51: 194.97 | J51: 197.38 | K51: 192.55 | L51: 187 | M51: 178.70782
A52: 43 | B52: BHARATFORG | C52: 1123.3 | D52: 1127.13 | E52: 1111.87 | F52: 1100.43 | G52: 1085.17 | H52: 1138.57 | I52: 1153.83 | J52: 1165.27 | K52: 1142.4 | L52: 1115.7 | M52: 11.37612
A53: 44 | B53: BHEL | C53: 221.9 | D53: 224.77 | E53: 217.18 | F53: 212.47 | G53: 204.88 | H53: 229.48 | I53: 237.07 | J53: 241.78 | K53: 232.35 | L53: 220.05 | M53: 221.93528
A54: 45 | B54: BPCL | C54: 633.2 | D54: 643.68 | E54: 619.52 | F54: 605.83 | G54: 581.67 | H54: 657.37 | I54: 681.53 | J54: 695.22 | K54: 667.85 | L54: 630 | M54: 88.61132
A55: 46 | B55: BHARTIARTL | C55: 1139.9 | D55: 1143.88 | E55: 1128.62 | F55: 1117.33 | G55: 1102.07 | H55: 1155.17 | I55: 1170.43 | J55: 1181.72 | K55: 1159.15 | L55: 1132.6 | M55: 45.70259
A56: 47 | B56: BIOCON | C56: 274 | D56: 276.82 | E56: 269.83 | F56: 265.67 | G56: 258.68 | H56: 280.98 | I56: 287.97 | J56: 292.13 | K56: 283.8 | L56: 272.65 | M56: 58.52991
A57: 48 | B57: BOSCHLTD | C57: 28054.25 | D57: 28393.13 | E57: 27586.32 | F57: 27118.38 | G57: 26311.57 | H57: 28861.07 | I57: 29667.88 | J57: 30135.82 | K57: 29199.95 | L57: 27925.2 | M57: 0.66555
A58: 49 | B58: BRITANNIA | C58: 4923 | D58: 4933.10 | E58: 4877.90 | F58: 4832.80 | G58: 4777.60 | H58: 4978.20 | I58: 5033.40 | J58: 5078.50 | K58: 4988.3 | L58: 4888 | M58: 2.35932
A59: 50 | B59: CGPOWER | C59: 425.95 | D59: 427.83 | E59: 420.07 | F59: 414.18 | G59: 406.42 | H59: 433.72 | I59: 441.48 | J59: 447.37 | K59: 435.6 | L59: 421.95 | M59: 11.0879
A60: 51 | B60: CANBK | C60: 567.35 | D60: 571.38 | E60: 560.02 | F60: 552.68 | G60: 541.32 | H60: 578.72 | I60: 590.08 | J60: 597.42 | K60: 582.75 | L60: 564.05 | M60: 112.21001
A61: 52 | B61: CHOLAFIN | C61: 1085.55 | D61: 1092.15 | E61: 1074.40 | F61: 1063.25 | G61: 1045.50 | H61: 1103.30 | I61: 1121.05 | J61: 1132.20 | K61: 1109.9 | L61: 1081 | M61: 21.33034
A62: 53 | B62: CIPLA | C62: 1447.3 | D62: 1447.75 | E62: 1433.00 | F62: 1418.70 | G62: 1403.95 | H62: 1462.05 | I62: 1476.80 | J62: 1491.10 | K62: 1462.5 | L62: 1433.45 | M62: 10.74054
A63: 54 | B63: COALINDIA | C63: 432.95 | D63: 438.30 | E63: 425.65 | F63: 418.35 | G63: 405.70 | H63: 445.60 | I63: 458.25 | J63: 465.55 | K63: 450.95 | L63: 431 | M63: 190.3205
A64: 55 | B64: COFORGE | C64: 6546 | D64: 6583.63 | E64: 6462.37 | F64: 6378.73 | G64: 6257.47 | H64: 6667.27 | I64: 6788.53 | J64: 6872.17 | K64: 6704.9 | L64: 6500 | M64: 3.03362
A65: 56 | B65: COLPAL | C65: 2535.55 | D65: 2539.12 | E65: 2518.43 | F65: 2501.32 | G65: 2480.63 | H65: 2556.23 | I65: 2576.92 | J65: 2594.03 | K65: 2559.8 | L65: 2522 | M65: 2.54368
A66: 57 | B66: CONCOR | C66: 991.9 | D66: 1001.88 | E66: 976.12 | F66: 960.33 | G66: 934.57 | H66: 1017.67 | I66: 1043.43 | J66: 1059.22 | K66: 1027.65 | L66: 986.1 | M66: 38.54456
A67: 58 | B67: COROMANDEL | C67: 1085.45 | D67: 1090.72 | E67: 1076.73 | F67: 1068.02 | G67: 1054.03 | H67: 1099.43 | I67: 1113.42 | J67: 1122.13 | K67: 1104.7 | L67: 1082 | M67: 2.38135
A68: 59 | B68: CROMPTON | C68: 290.3 | D68: 290.05 | E68: 288.50 | F68: 286.70 | G68: 285.15 | H68: 291.85 | I68: 293.40 | J68: 295.20 | K68: 291.6 | L68: 288.25 | M68: 33.19385
A69: 60 | B69: CUMMINSIND | C69: 2607.9 | D69: 2614.12 | E69: 2584.98 | F69: 2562.07 | G69: 2532.93 | H69: 2637.03 | I69: 2666.17 | J69: 2689.08 | K69: 2643.25 | L69: 2591.2 | M69: 2.85288
A70: 61 | B70: DLF | C70: 886.85 | D70: 882.50 | E70: 868.25 | F70: 849.65 | G70: 835.40 | H70: 901.10 | I70: 915.35 | J70: 933.95 | K70: 896.75 | L70: 863.9 | M70: 88.01547
A71: 62 | B71: DABUR | C71: 546.3 | D71: 546.83 | E71: 543.82 | F71: 541.33 | G71: 538.32 | H71: 549.32 | I71: 552.33 | J71: 554.82 | K71: 549.85 | L71: 544.35 | M71: 16.36393
A72: 63 | B72: DALBHARAT | C72: 2086.95 | D72: 2096.48 | E72: 2066.07 | F72: 2045.18 | G72: 2014.77 | H72: 2117.37 | I72: 2147.78 | J72: 2168.67 | K72: 2126.9 | L72: 2075.6 | M72: 4.30199
A73: 64 | B73: DEEPAKNTR | C73: 2326.75 | D73: 2338.93 | E73: 2299.87 | F73: 2272.98 | G73: 2233.92 | H73: 2365.82 | I73: 2404.88 | J73: 2431.77 | K73: 2378 | L73: 2312.05 | M73: 7.487
A74: 65 | B74: DELHIVERY | C74: 472.85 | D74: 471.27 | E74: 464.53 | F74: 456.22 | G74: 449.48 | H74: 479.58 | I74: 486.32 | J74: 494.63 | K74: 478 | L74: 462.95 | M74: 30.63023
A75: 66 | B75: DEVYANI | C75: 167.05 | D75: 169.18 | E75: 163.37 | F75: 159.68 | G75: 153.87 | H75: 172.87 | I75: 178.68 | J75: 182.37 | K75: 175 | L75: 165.5 | M75: 115.94032
A76: 67 | B76: DIVISLAB | C76: 3649.1 | D76: 3675.33 | E76: 3610.97 | F76: 3572.83 | G76: 3508.47 | H76: 3713.47 | I76: 3777.83 | J76: 3815.97 | K76: 3739.7 | L76: 3637.2 | M76: 3.8615
A77: 68 | B77: DIXON | C77: 6734 | D77: 6756.67 | E77: 6682.33 | F77: 6630.67 | G77: 6556.33 | H77: 6808.33 | I77: 6882.67 | J77: 6934.33 | K77: 6831 | L77: 6705 | M77: 3.3501
A78: 69 | B78: LALPATHLAB | C78: 2428.85 | D78: 2442.10 | E78: 2404.25 | F78: 2379.65 | G78: 2341.80 | H78: 2466.70 | I78: 2504.55 | J78: 2529.15 | K78: 2479.95 | L78: 2417.5 | M78: 1.28553
A79: 70 | B79: DRREDDY | C79: 6349.15 | D79: 6352.23 | E79: 6301.92 | F79: 6254.68 | G79: 6204.37 | H79: 6399.47 | I79: 6449.78 | J79: 6497.02 | K79: 6402.55 | L79: 6305 | M79: 1.99179
A80: 71 | B80: EICHERMOT | C80: 3836.35 | D80: 3851.03 | E80: 3806.32 | F80: 3776.28 | G80: 3731.57 | H80: 3881.07 | I80: 3925.78 | J80: 3955.82 | K80: 3895.75 | L80: 3821 | M80: 5.7538
A81: 72 | B81: ESCORTS | C81: 2914.15 | D81: 2920.05 | E81: 2891.10 | F81: 2868.05 | G81: 2839.10 | H81: 2943.10 | I81: 2972.05 | J81: 2995.10 | K81: 2949 | L81: 2897 | M81: 1.02824
A82: 73 | B82: NYKAA | C82: 151.4 | D82: 151.13 | E82: 147.77 | F82: 144.13 | G82: 140.77 | H82: 154.77 | I82: 158.13 | J82: 161.77 | K82: 154.5 | L82: 147.5 | M82: 66.74701
A83: 74 | B83: FEDERALBNK | C83: 153.75 | D83: 154.37 | E83: 152.63 | F83: 151.52 | G83: 149.78 | H83: 155.48 | I83: 157.22 | J83: 158.33 | K83: 156.1 | L83: 153.25 | M83: 143.75228
A84: 75 | B84: FACT | C84: 839.75 | D84: 848.28 | E84: 822.67 | F84: 805.58 | G84: 779.97 | H84: 865.37 | I84: 890.98 | J84: 908.07 | K84: 873.9 | L84: 831.2 | M84: 12.17453
A85: 76 | B85: FORTIS | C85: 445.75 | D85: 447.30 | E85: 441.70 | F85: 437.65 | G85: 432.05 | H85: 451.35 | I85: 456.95 | J85: 461.00 | K85: 452.9 | L85: 443.25 | M85: 9.31187
A86: 77 | B86: GAIL | C86: 180.3 | D86: 181.68 | E86: 177.92 | F86: 175.53 | G86: 171.77 | H86: 184.07 | I86: 187.83 | J86: 190.22 | K86: 185.45 | L86: 179.3 | M86: 136.7188
A87: 78 | B87: GLAND | C87: 1952.7 | D87: 1955.90 | E87: 1931.80 | F87: 1910.90 | G87: 1886.80 | H87: 1976.80 | I87: 2000.90 | J87: 2021.80 | K87: 1980 | L87: 1935 | M87: 1.39572
A88: 79 | B88: GODREJCP | C88: 1236.1 | D88: 1236.90 | E88: 1223.80 | F88: 1211.50 | G88: 1198.40 | H88: 1249.20 | I88: 1262.30 | J88: 1274.60 | K88: 1250 | L88: 1224.6 | M88: 8.75759
A89: 80 | B89: GODREJPROP | C89: 2343.35 | D89: 2337.90 | E89: 2306.80 | F89: 2270.25 | G89: 2239.15 | H89: 2374.45 | I89: 2405.55 | J89: 2442.10 | K89: 2369 | L89: 2301.35 | M89: 7.35873
A90: 81 | B90: GRASIM | C90: 2194 | D90: 2198.68 | E90: 2175.37 | F90: 2156.73 | G90: 2133.42 | H90: 2217.32 | I90: 2240.63 | J90: 2259.27 | K90: 2222 | L90: 2180.05 | M90: 7.65529
A91: 82 | B91: FLUOROCHEM | C91: 3536.95 | D91: 3535.83 | E91: 3521.12 | F91: 3505.28 | G91: 3490.57 | H91: 3551.67 | I91: 3566.38 | J91: 3582.22 | K91: 3550.55 | L91: 3520 | M91: 0.52299
A92: 83 | B92: GUJGASLTD | C92: 565.55 | D92: 563.10 | E92: 556.45 | F92: 547.35 | G92: 540.70 | H92: 572.20 | I92: 578.85 | J92: 587.95 | K92: 569.75 | L92: 554 | M92: 15.32012
A93: 84 | B93: HCLTECH | C93: 1636.3 | D93: 1644.38 | E93: 1623.97 | F93: 1611.63 | G93: 1591.22 | H93: 1656.72 | I93: 1677.13 | J93: 1689.47 | K93: 1664.8 | L93: 1632.05 | M93: 28.90991
A94: 85 | B94: HDFCAMC | C94: 3741.35 | D94: 3759.05 | E94: 3708.30 | F94: 3675.25 | G94: 3624.50 | H94: 3792.10 | I94: 3842.85 | J94: 3875.90 | K94: 3809.8 | L94: 3726 | M94: 2.35442
A95: 86 | B95: HDFCBANK | C95: 1439.15 | D95: 1446.05 | E95: 1428.10 | F95: 1417.05 | G95: 1399.10 | H95: 1457.10 | I95: 1475.05 | J95: 1486.10 | K95: 1464 | L95: 1435 | M95: 229.46568
A96: 87 | B96: HDFCLIFE | C96: 577.45 | D96: 581.07 | E96: 570.88 | F96: 564.32 | G96: 554.13 | H96: 587.63 | I96: 597.82 | J96: 604.38 | K96: 591.25 | L96: 574.5 | M96: 33.21288
A97: 88 | B97: HAVELLS | C97: 1414.85 | D97: 1410.55 | E97: 1401.40 | F97: 1387.95 | G97: 1378.80 | H97: 1424.00 | I97: 1433.15 | J97: 1446.60 | K97: 1419.7 | L97: 1397.1 | M97: 4.54441
A98: 89 | B98: HEROMOTOCO | C98: 4534.85 | D98: 4554.27 | E98: 4488.58 | F98: 4442.32 | G98: 4376.63 | H98: 4600.53 | I98: 4666.22 | J98: 4712.48 | K98: 4619.95 | L98: 4508 | M98: 11.1205
A99: 90 | B99: HINDALCO | C99: 511.8 | D99: 519.93 | E99: 501.87 | F99: 491.93 | G99: 473.87 | H99: 529.87 | I99: 547.93 | J99: 557.87 | K99: 538 | L99: 510 | M99: 181.06978
A100: 91 | B100: HAL | C100: 2948.05 | D100: 2969.38 | E100: 2913.77 | F100: 2879.48 | G100: 2823.87 | H100: 3003.67 | I100: 3059.28 | J100: 3093.57 | K100: 3025 | L100: 2935.1 | M100: 12.8177
A101: 92 | B101: HINDPETRO | C101: 543.25 | D101: 548.08 | E101: 527.17 | F101: 511.08 | G101: 490.17 | H101: 564.17 | I101: 585.08 | J101: 601.17 | K101: 569 | L101: 532 | M101: 66.62387
A102: 93 | B102: HINDUNILVR | C102: 2407.1 | D102: 2408.00 | E102: 2393.20 | F102: 2379.30 | G102: 2364.50 | H102: 2421.90 | I102: 2436.70 | J102: 2450.60 | K102: 2422.8 | L102: 2394.1 | M102: 11.27778
A103: 94 | B103: ICICIBANK | C103: 1051.95 | D103: 1054.65 | E103: 1045.30 | F103: 1038.65 | G103: 1029.30 | H103: 1061.30 | I103: 1070.65 | J103: 1077.30 | K103: 1064 | L103: 1048 | M103: 159.46325
A104: 95 | B104: ICICIGI | C104: 1644.55 | D104: 1650.52 | E104: 1634.03 | F104: 1623.52 | G104: 1607.03 | H104: 1661.03 | I104: 1677.52 | J104: 1688.03 | K104: 1667 | L104: 1640 | M104: 5.11833
A105: 96 | B105: ICICIPRULI | C105: 520.1 | D105: 521.72 | E105: 517.03 | F105: 513.97 | G105: 509.28 | H105: 524.78 | I105: 529.47 | J105: 532.53 | K105: 526.4 | L105: 518.65 | M105: 22.21389
A106: 97 | B106: IDFCFIRSTB | C106: 80.95 | D106: 81.28 | E106: 80.37 | F106: 79.78 | G106: 78.87 | H106: 81.87 | I106: 82.78 | J106: 83.37 | K106: 82.2 | L106: 80.7 | M106: 214.27671
A107: 98 | B107: ITC | C107: 403.35 | D107: 404.92 | E107: 399.73 | F107: 396.12 | G107: 390.93 | H107: 408.53 | I107: 413.72 | J107: 417.33 | K107: 410.1 | L107: 401.3 | M107: 194.14653
A108: 99 | B108: INDIANB | C108: 539.2 | D108: 539.33 | E108: 526.67 | F108: 514.13 | G108: 501.47 | H108: 551.87 | I108: 564.53 | J108: 577.07 | K108: 552 | L108: 526.8 | M108: 44.97405
A109: 100 | B109: INDHOTEL | C109: 557 | D109: 555.93 | E109: 547.22 | F109: 537.43 | G109: 528.72 | H109: 565.72 | I109: 574.43 | J109: 584.22 | K109: 564.65 | L109: 546.15 | M109: 31.29382
A110: 101 | B110: IOC | C110: 182.3 | D110: 184.70 | E110: 178.70 | F110: 175.10 | G110: 169.10 | H110: 188.30 | I110: 194.30 | J110: 197.90 | K110: 190.7 | L110: 181.1 | M110: 221.31487
A111: 102 | B111: IRCTC | C111: 925.75 | D111: 935.80 | E111: 912.05 | F111: 898.35 | G111: 874.60 | H111: 949.50 | I111: 973.25 | J111: 986.95 | K111: 959.55 | L111: 922.1 | M111: 22.91737
A112: 103 | B112: IRFC | C112: 154.2 | D112: 156.00 | E112: 151.60 | F112: 149.00 | G112: 144.60 | H112: 158.60 | I112: 163.00 | J112: 165.60 | K112: 160.4 | L112: 153.4 | M112: 357.06625
A113: 104 | B113: IGL | C113: 437.85 | D113: 438.25 | E113: 433.50 | F113: 429.15 | G113: 424.40 | H113: 442.60 | I113: 447.35 | J113: 451.70 | K113: 443 | L113: 433.9 | M113: 18.29764
A114: 105 | B114: INDUSTOWER | C114: 218.85 | D114: 220.53 | E114: 215.22 | F114: 211.58 | G114: 206.27 | H114: 224.17 | I114: 229.48 | J114: 233.12 | K114: 225.85 | L114: 216.9 | M114: 115.54309
A115: 106 | B115: INDUSINDBK | C115: 1517.25 | D115: 1515.52 | E115: 1504.23 | F115: 1491.22 | G115: 1479.93 | H115: 1528.53 | I115: 1539.82 | J115: 1552.83 | K115: 1526.8 | L115: 1502.5 | M115: 52.59113
A116: 107 | B116: NAUKRI | C116: 5235.75 | D116: 5268.92 | E116: 5177.83 | F116: 5119.92 | G116: 5028.83 | H116: 5326.83 | I116: 5417.92 | J116: 5475.83 | K116: 5360 | L116: 5211 | M116: 1.24388
A117: 108 | B117: INFY | C117: 1655.55 | D117: 1658.28 | E117: 1642.57 | F117: 1629.58 | G117: 1613.87 | H117: 1671.27 | I117: 1686.98 | J117: 1699.97 | K117: 1674 | L117: 1645.3 | M117: 43.00508
A118: 109 | B118: INDIGO | C118: 3095.65 | D118: 3104.55 | E118: 3074.10 | F118: 3052.55 | G118: 3022.10 | H118: 3126.10 | I118: 3156.55 | J118: 3178.10 | K118: 3135 | L118: 3083 | M118: 4.81341
A119: 110 | B119: IPCALAB | C119: 1220.35 | D119: 1226.83 | E119: 1206.82 | F119: 1193.28 | G119: 1173.27 | H119: 1240.37 | I119: 1260.38 | J119: 1273.92 | K119: 1246.85 | L119: 1213.3 | M119: 1.91023
A120: 111 | B120: JSWENERGY | C120: 484.65 | D120: 486.42 | E120: 478.83 | F120: 473.02 | G120: 465.43 | H120: 492.23 | I120: 499.82 | J120: 505.63 | K120: 494 | L120: 480.6 | M120: 15.45884
A121: 112 | B121: JSWSTEEL | C121: 828.25 | D121: 833.07 | E121: 816.13 | F121: 804.02 | G121: 787.08 | H121: 845.18 | I121: 862.12 | J121: 874.23 | K121: 850 | L121: 820.95 | M121: 64.19882
A122: 113 | B122: JINDALSTEL | C122: 771.5 | D122: 772.78 | E122: 760.57 | F122: 749.63 | G122: 737.42 | H122: 783.72 | I122: 795.93 | J122: 806.87 | K122: 785 | L122: 761.85 | M122: 38.24236
A123: 114 | B123: JUBLFOOD | C123: 495.25 | D123: 501.77 | E123: 483.53 | F123: 471.82 | G123: 453.58 | H123: 513.48 | I123: 531.72 | J123: 543.43 | K123: 520 | L123: 490.05 | M123: 28.28412
A124: 115 | B124: KPITTECH | C124: 1571.75 | D124: 1588.93 | E124: 1542.82 | F124: 1513.88 | G124: 1467.77 | H124: 1617.87 | I124: 1663.98 | J124: 1692.92 | K124: 1635.05 | L124: 1560 | M124: 9.31221
A125: 116 | B125: KOTAKBANK | C125: 1746.1 | D125: 1751.88 | E125: 1734.77 | F125: 1723.43 | G125: 1706.32 | H125: 1763.22 | I125: 1780.33 | J125: 1791.67 | K125: 1769 | L125: 1740.55 | M125: 41.84871
A126: 117 | B126: L&TFH | C126: 170.45 | D126: 171.87 | E126: 168.23 | F126: 166.02 | G126: 162.38 | H126: 174.08 | I126: 177.72 | J126: 179.93 | K126: 175.5 | L126: 169.65 | M126: 26.95176
A127: 118 | B127: LTTS | C127: 5276.55 | D127: 5318.82 | E127: 5207.73 | F127: 5138.92 | G127: 5027.83 | H127: 5387.63 | I127: 5498.72 | J127: 5567.53 | K127: 5429.9 | L127: 5250 | M127: 1.15961
A128: 119 | B128: LICHSGFIN | C128: 640.9 | D128: 641.80 | E128: 636.65 | F128: 632.40 | G128: 627.25 | H128: 646.05 | I128: 651.20 | J128: 655.45 | K128: 646.95 | L128: 637.55 | M128: 23.67781
A129: 120 | B129: LTIM | C129: 5420.1 | D129: 5447.77 | E129: 5379.43 | F129: 5338.77 | G129: 5270.43 | H129: 5488.43 | I129: 5556.77 | J129: 5597.43 | K129: 5516.1 | L129: 5407.1 | M129: 5.67794
A130: 121 | B130: LT | C130: 3296.4 | D130: 3314.45 | E130: 3272.00 | F130: 3247.60 | G130: 3205.15 | H130: 3338.85 | I130: 3381.30 | J130: 3405.70 | K130: 3356.9 | L130: 3290.05 | M130: 24.30672
A131: 122 | B131: LAURUSLABS | C131: 395.65 | D131: 398.17 | E131: 390.13 | F131: 384.62 | G131: 376.58 | H131: 403.68 | I131: 411.72 | J131: 417.23 | K131: 406.2 | L131: 392.65 | M131: 10.44889
A132: 123 | B132: LICI | C132: 1039.55 | D132: 1040.67 | E132: 1026.58 | F132: 1013.62 | G132: 999.53 | H132: 1053.63 | I132: 1067.72 | J132: 1080.68 | K132: 1054.75 | L132: 1027.7 | M132: 39.29842
A133: 124 | B133: LUPIN | C133: 1599.35 | D133: 1599.07 | E133: 1590.18 | F133: 1581.02 | G133: 1572.13 | H133: 1608.23 | I133: 1617.12 | J133: 1626.28 | K133: 1607.95 | L133: 1589.9 | M133: 14.19188
A134: 125 | B134: MRF | C134: 149685.95 | D134: 149726.88 | E134: 148659.07 | F134: 147632.18 | G134: 146564.37 | H134: 150753.77 | I134: 151821.58 | J134: 152848.47 | K134: 150794.7 | L134: 148700 | M134: 0.12528
A135: 126 | B135: LODHA | C135: 1136.2 | D135: 1141.65 | E135: 1104.00 | F135: 1071.80 | G135: 1034.15 | H135: 1173.85 | I135: 1211.50 | J135: 1243.70 | K135: 1179.3 | L135: 1109.45 | M135: 43.72635
A136: 127 | B136: M&MFIN | C136: 289 | D136: 291.17 | E136: 285.33 | F136: 281.67 | G136: 275.83 | H136: 294.83 | I136: 300.67 | J136: 304.33 | K136: 297 | L136: 287.5 | M136: 39.39673
A137: 128 | B137: M&M | C137: 1859.65 | D137: 1865.35 | E137: 1841.00 | F137: 1822.35 | G137: 1798.00 | H137: 1884.00 | I137: 1908.35 | J137: 1927.00 | K137: 1889.7 | L137: 1846.7 | M137: 44.66234
A138: 129 | B138: MANKIND | C138: 2189.7 | D138: 2201.25 | E138: 2168.50 | F138: 2147.30 | G138: 2114.55 | H138: 2222.45 | I138: 2255.20 | J138: 2276.40 | K138: 2234 | L138: 2180.05 | M138: 5.022
A139: 130 | B139: MARICO | C139: 538.7 | D139: 537.72 | E139: 534.63 | F139: 530.57 | G139: 527.48 | H139: 541.78 | I139: 544.87 | J139: 548.93 | K139: 540.8 | L139: 533.65 | M139: 43.98178
A140: 131 | B140: MARUTI | C140: 11465.85 | D140: 11452.28 | E140: 11383.57 | F140: 11301.28 | G140: 11232.57 | H140: 11534.57 | I140: 11603.28 | J140: 11685.57 | K140: 11521 | L140: 11370 | M140: 3.48461
A141: 132 | B141: MFSL | C141: 953.1 | D141: 957.80 | E141: 945.10 | F141: 937.10 | G141: 924.40 | H141: 965.80 | I141: 978.50 | J141: 986.50 | K141: 970.5 | L141: 949.8 | M141: 4.25358
A142: 133 | B142: MAXHEALTH | C142: 854.05 | D142: 854.82 | E142: 839.68 | F142: 825.32 | G142: 810.18 | H142: 869.18 | I142: 884.32 | J142: 898.68 | K142: 869.95 | L142: 840.45 | M142: 12.139
A143: 134 | B143: MAZDOCK | C143: 2078.35 | D143: 2096.75 | E143: 2046.60 | F143: 2014.85 | G143: 1964.70 | H143: 2128.50 | I143: 2178.65 | J143: 2210.40 | K143: 2146.9 | L143: 2065 | M143: 5.15841
A144: 135 | B144: MSUMI | C144: 69.95 | D144: 70.60 | E144: 69.05 | F144: 68.15 | G144: 66.60 | H144: 71.50 | I144: 73.05 | J144: 73.95 | K144: 72.15 | L144: 69.7 | M144: 53.55085
A145: 136 | B145: MPHASIS | C145: 2654.35 | D145: 2692.17 | E145: 2602.18 | F145: 2550.02 | G145: 2460.03 | H145: 2744.33 | I145: 2834.32 | J145: 2886.48 | K145: 2782.15 | L145: 2640 | M145: 4.00996
A146: 137 | B146: MUTHOOTFIN | C146: 1324.2 | D146: 1332.98 | E146: 1311.82 | F146: 1299.43 | G146: 1278.27 | H146: 1345.37 | I146: 1366.53 | J146: 1378.92 | K146: 1354.15 | L146: 1320.6 | M146: 2.61995
A147: 138 | B147: NHPC | C147: 92.65 | D147: 93.57 | E147: 90.63 | F147: 88.62 | G147: 85.68 | H147: 95.58 | I147: 98.52 | J147: 100.53 | K147: 96.5 | L147: 91.55 | M147: 1146.45187
A148: 139 | B148: NMDC | C148: 232.6 | D148: 236.22 | E148: 227.68 | F148: 222.77 | G148: 214.23 | H148: 241.13 | I148: 249.67 | J148: 254.58 | K148: 244.75 | L148: 231.3 | M148: 212.07611
A149: 140 | B149: NTPC | C149: 336.1 | D149: 339.62 | E149: 331.18 | F149: 326.27 | G149: 317.83 | H149: 344.53 | I149: 352.97 | J149: 357.88 | K149: 348.05 | L149: 334.7 | M149: 177.51633
A150: 141 | B150: NAVINFLUOR | C150: 3164.95 | D150: 3183.23 | E150: 3132.77 | F150: 3100.58 | G150: 3050.12 | H150: 3215.42 | I150: 3265.88 | J150: 3298.07 | K150: 3233.7 | L150: 3151.05 | M150: 2.16846
A151: 142 | B151: NESTLEIND | C151: 2543.6 | D151: 2537.58 | E151: 2524.17 | F151: 2504.73 | G151: 2491.32 | H151: 2557.02 | I151: 2570.43 | J151: 2589.87 | K151: 2551 | L151: 2518.15 | M151: 8.93182
A152: 143 | B152: OBEROIRLTY | C152: 1321.35 | D152: 1325.85 | E152: 1297.70 | F152: 1274.05 | G152: 1245.90 | H152: 1349.50 | I152: 1377.65 | J152: 1401.30 | K152: 1354 | L152: 1302.2 | M152: 9.45669
A153: 144 | B153: ONGC | C153: 272.95 | D153: 275.22 | E153: 269.33 | F153: 265.72 | G153: 259.83 | H153: 278.83 | I153: 284.72 | J153: 288.33 | K153: 281.1 | L153: 271.6 | M153: 163.40579
A154: 145 | B154: OIL | C154: 585.2 | D154: 595.80 | E154: 567.60 | F154: 550.00 | G154: 521.80 | H154: 613.40 | I154: 641.60 | J154: 659.20 | K154: 624 | L154: 578.2 | M154: 86.71615
A155: 146 | B155: PAYTM | C155: 395.05 | D155: 395.05 | E155: 395.05 | F155: 395.05 | G155: 395.05 | H155: 395.05 | I155: 395.05 | J155: 395.05 | K155: 395.05 | L155: 395.05 | M155: 10.21399
A156: 147 | B156: POLICYBZR | C156: 977.9 | D156: 984.30 | E156: 958.60 | F156: 939.30 | G156: 913.60 | H156: 1003.60 | I156: 1029.30 | J156: 1048.60 | K156: 1010 | L156: 965 | M156: 6.30302
A157: 148 | B157: PIIND | C157: 3683 | D157: 3681.50 | E157: 3658.05 | F157: 3633.10 | G157: 3609.65 | H157: 3706.45 | I157: 3729.90 | J157: 3754.85 | K157: 3704.95 | L157: 3656.55 | M157: 3.05505
A158: 149 | B158: PAGEIND | C158: 36318 | D158: 36372.63 | E158: 36095.37 | F158: 35872.73 | G158: 35595.47 | H158: 36595.27 | I158: 36872.53 | J158: 37095.17 | K158: 36649.9 | L158: 36150 | M158: 0.10082
A159: 150 | B159: PATANJALI | C159: 1633.3 | D159: 1647.10 | E159: 1614.20 | F159: 1595.10 | G159: 1562.20 | H159: 1666.20 | I159: 1699.10 | J159: 1718.20 | K159: 1680 | L159: 1628 | M159: 5.47832
A160: 151 | B160: PERSISTENT | C160: 8519.9 | D160: 8582.27 | E160: 8427.63 | F160: 8335.37 | G160: 8180.73 | H160: 8674.53 | I160: 8829.17 | J160: 8921.43 | K160: 8736.9 | L160: 8490 | M160: 1.46451
A161: 152 | B161: PETRONET | C161: 280.7 | D161: 281.72 | E161: 278.48 | F161: 276.27 | G161: 273.03 | H161: 283.93 | I161: 287.17 | J161: 289.38 | K161: 284.95 | L161: 279.5 | M161: 54.73156
A162: 153 | B162: PIDILITIND | C162: 2729.15 | D162: 2732.57 | E162: 2708.13 | F162: 2687.12 | G162: 2662.68 | H162: 2753.58 | I162: 2778.02 | J162: 2799.03 | K162: 2757 | L162: 2711.55 | M162: 2.47236
A163: 154 | B163: PEL | C163: 922.35 | D163: 923.57 | E163: 882.63 | F163: 842.92 | G163: 801.98 | H163: 963.28 | I163: 1004.22 | J163: 1043.93 | K163: 964.5 | L163: 883.85 | M163: 86.30237
A164: 155 | B164: POLYCAB | C164: 4716.6 | D164: 4722.53 | E164: 4679.17 | F164: 4641.73 | G164: 4598.37 | H164: 4759.97 | I164: 4803.33 | J164: 4840.77 | K164: 4765.9 | L164: 4685.1 | M164: 6.58619
A165: 156 | B165: POONAWALLA | C165: 459.15 | D165: 460.60 | E165: 449.65 | F165: 440.15 | G165: 429.20 | H165: 470.10 | I165: 481.05 | J165: 490.55 | K165: 471.55 | L165: 451.1 | M165: 10.44281
A166: 157 | B166: PFC | C166: 412.4 | D166: 417.80 | E166: 405.60 | F166: 398.80 | G166: 386.60 | H166: 424.60 | I166: 436.80 | J166: 443.60 | K166: 430 | L166: 411 | M166: 78.18084
A167: 158 | B167: POWERGRID | C167: 280.1 | D167: 282.93 | E167: 276.42 | F167: 272.73 | G167: 266.22 | H167: 286.62 | I167: 293.13 | J167: 296.82 | K167: 289.45 | L167: 279.25 | M167: 246.51085
A168: 159 | B168: PRESTIGE | C168: 1190.25 | D168: 1186.78 | E168: 1169.47 | F168: 1148.68 | G168: 1131.37 | H168: 1207.57 | I168: 1224.88 | J168: 1245.67 | K168: 1204.1 | L168: 1166 | M168: 8.37602
A169: 160 | B169: PGHH | C169: 16778.1 | D169: 16721.35 | E169: 16626.70 | F169: 16475.30 | G169: 16380.65 | H169: 16872.75 | I169: 16967.40 | J169: 17118.80 | K169: 16816 | L169: 16569.95 | M169: 0.03602
A170: 161 | B170: PNB | C170: 128.35 | D170: 128.90 | E170: 126.65 | F170: 124.95 | G170: 122.70 | H170: 130.60 | I170: 132.85 | J170: 134.55 | K170: 131.15 | L170: 127.2 | M170: 540.01521
A171: 162 | B171: RECLTD | C171: 454 | D171: 459.48 | E171: 445.27 | F171: 436.53 | G171: 422.32 | H171: 468.22 | I171: 482.43 | J171: 491.17 | K171: 473.7 | L171: 450.75 | M171: 67.383
A172: 163 | B172: RVNL | C172: 260.35 | D172: 264.33 | E172: 255.07 | F172: 249.78 | G172: 240.52 | H172: 269.62 | I172: 278.88 | J172: 284.17 | K172: 273.6 | L172: 259.05 | M172: 134.83046
A173: 164 | B173: RELIANCE | C173: 2935.4 | D173: 2942.52 | E173: 2907.98 | F173: 2880.57 | G173: 2846.03 | H173: 2969.93 | I173: 3004.47 | J173: 3031.88 | K173: 2977.05 | L173: 2915.1 | M173: 63.60146
A174: 165 | B174: SBICARD | C174: 739.25 | D174: 738.53 | E174: 732.27 | F174: 725.28 | G174: 719.02 | H174: 745.52 | I174: 751.78 | J174: 758.77 | K174: 744.8 | L174: 731.55 | M174: 13.83857
A175: 166 | B175: SBILIFE | C175: 1501.7 | D175: 1505.53 | E175: 1491.57 | F175: 1481.43 | G175: 1467.47 | H175: 1515.67 | I175: 1529.63 | J175: 1539.77 | K175: 1519.5 | L175: 1495.4 | M175: 11.56081
A176: 167 | B176: SRF | C176: 2398.95 | D176: 2402.28 | E176: 2381.02 | F176: 2363.08 | G176: 2341.82 | H176: 2420.22 | I176: 2441.48 | J176: 2459.42 | K176: 2423.55 | L176: 2384.35 | M176: 8.81154
A177: 168 | B177: MOTHERSON | C177: 113.1 | D177: 113.53 | E177: 112.22 | F177: 111.33 | G177: 110.02 | H177: 114.42 | I177: 115.73 | J177: 116.62 | K177: 114.85 | L177: 112.65 | M177: 116.88496
A178: 169 | B178: SHREECEM | C178: 26345 | D178: 26429.25 | E178: 26139.75 | F178: 25934.50 | G178: 25645.00 | H178: 26634.50 | I178: 26924.00 | J178: 27129.25 | K178: 26718.75 | L178: 26224 | M178: 0.2391
A179: 170 | B179: SHRIRAMFIN | C179: 2355.95 | D179: 2372.02 | E179: 2328.98 | F179: 2302.02 | G179: 2258.98 | H179: 2398.98 | I179: 2442.02 | J179: 2468.98 | K179: 2415.05 | L179: 2345.05 | M179: 7.33175
A180: 171 | B180: SIEMENS | C180: 4440.35 | D180: 4465.08 | E180: 4391.32 | F180: 4342.28 | G180: 4268.52 | H180: 4514.12 | I180: 4587.88 | J180: 4636.92 | K180: 4538.85 | L180: 4416.05 | M180: 2.18181
A181: 172 | B181: SONACOMS | C181: 612.3 | D181: 620.93 | E181: 599.87 | F181: 587.43 | G181: 566.37 | H181: 633.37 | I181: 654.43 | J181: 666.87 | K181: 642 | L181: 608.5 | M181: 15.16659
A182: 173 | B182: SBIN | C182: 771.5 | D182: 769.53 | E182: 761.57 | F182: 751.63 | G182: 743.67 | H182: 779.47 | I182: 787.43 | J182: 797.37 | K182: 777.5 | L182: 759.6 | M182: 214.65311
A183: 174 | B183: SAIL | C183: 130.2 | D183: 131.13 | E183: 128.07 | F183: 125.93 | G183: 122.87 | H183: 133.27 | I183: 136.33 | J183: 138.47 | K183: 134.2 | L183: 129 | M183: 786.53013
A184: 175 | B184: SUNPHARMA | C184: 1543.4 | D184: 1541.97 | E184: 1534.43 | F184: 1525.47 | G184: 1517.93 | H184: 1550.93 | I184: 1558.47 | J184: 1567.43 | K184: 1549.5 | L184: 1533 | M184: 19.93748
A185: 176 | B185: SUNTV | C185: 610.5 | D185: 613.83 | E185: 605.17 | F185: 599.83 | G185: 591.17 | H185: 619.17 | I185: 627.83 | J185: 633.17 | K185: 622.5 | L185: 608.5 | M185: 4.89671
A186: 177 | B186: SYNGENE | C186: 747.9 | D186: 753.03 | E186: 740.97 | F186: 734.03 | G186: 721.97 | H186: 759.97 | I186: 772.03 | J186: 778.97 | K186: 765.1 | L186: 746.1 | M186: 2.96705
A187: 178 | B187: TVSMOTOR | C187: 2093.5 | D187: 2104.50 | E187: 2070.00 | F187: 2046.50 | G187: 2012.00 | H187: 2128.00 | I187: 2162.50 | J187: 2186.00 | K187: 2139 | L187: 2081 | M187: 4.07855
A188: 179 | B188: TATACHEM | C188: 977.5 | D188: 982.85 | E188: 968.70 | F188: 959.90 | G188: 945.75 | H188: 991.65 | I188: 1005.80 | J188: 1014.60 | K188: 997 | L188: 974.05 | M188: 7.71887
A189: 180 | B189: TATACOMM | C189: 1795.3 | D189: 1806.60 | E189: 1775.20 | F189: 1755.10 | G189: 1723.70 | H189: 1826.70 | I189: 1858.10 | J189: 1878.20 | K189: 1838 | L189: 1786.5 | M189: 6.06897
A190: 181 | B190: TCS | C190: 3991.5 | D190: 4011.82 | E190: 3960.28 | F190: 3929.07 | G190: 3877.53 | H190: 4043.03 | I190: 4094.57 | J190: 4125.78 | K190: 4063.35 | L190: 3980.6 | M190: 18.85939
A191: 182 | B191: TATACONSUM | C191: 1160.75 | D191: 1160.90 | E191: 1149.90 | F191: 1139.05 | G191: 1128.05 | H191: 1171.75 | I191: 1182.75 | J191: 1193.60 | K191: 1171.9 | L191: 1150.05 | M191: 14.45959
A192: 183 | B192: TATAELXSI | C192: 7746.2 | D192: 7769.08 | E192: 7689.17 | F192: 7632.13 | G192: 7552.22 | H192: 7826.12 | I192: 7906.03 | J192: 7963.07 | K192: 7849 | L192: 7712.05 | M192: 1.07925
A193: 184 | B193: TATAMTRDVR | C193: 610.65 | D193: 612.52 | E193: 604.23 | F193: 597.82 | G193: 589.53 | H193: 618.93 | I193: 627.22 | J193: 633.63 | K193: 620.8 | L193: 606.1 | M193: 12.34985
A194: 185 | B194: TATAMOTORS | C194: 921.05 | D194: 924.92 | E194: 912.63 | F194: 904.22 | G194: 891.93 | H194: 933.33 | I194: 945.62 | J194: 954.03 | K194: 937.2 | L194: 916.5 | M194: 60.11018
A195: 186 | B195: TATAPOWER | C195: 375.45 | D195: 377.60 | E195: 371.35 | F195: 367.25 | G195: 361.00 | H195: 381.70 | I195: 387.95 | J195: 392.05 | K195: 383.85 | L195: 373.5 | M195: 102.83746
A196: 187 | B196: TATASTEEL | C196: 143.9 | D196: 143.85 | E196: 141.50 | F196: 139.10 | G196: 136.75 | H196: 146.25 | I196: 148.60 | J196: 151.00 | K196: 146.2 | L196: 141.45 | M196: 880.00833
A197: 188 | B197: TECHM | C197: 1296.6 | D197: 1304.60 | E197: 1284.20 | F197: 1271.80 | G197: 1251.40 | H197: 1317.00 | I197: 1337.40 | J197: 1349.80 | K197: 1325 | L197: 1292.2 | M197: 17.69508
A198: 189 | B198: RAMCOCEM | C198: 869.05 | D198: 874.67 | E198: 859.38 | F198: 849.72 | G198: 834.43 | H198: 884.33 | I198: 899.62 | J198: 909.28 | K198: 889.95 | L198: 865 | M198: 3.41049
A199: 190 | B199: TITAN | C199: 3656.35 | D199: 3667.95 | E199: 3628.40 | F199: 3600.45 | G199: 3560.90 | H199: 3695.90 | I199: 3735.45 | J199: 3763.40 | K199: 3707.5 | L199: 3640 | M199: 6.60426
A200: 191 | B200: TORNTPHARM | C200: 2603 | D200: 2620.90 | E200: 2573.55 | F200: 2544.10 | G200: 2496.75 | H200: 2650.35 | I200: 2697.70 | J200: 2727.15 | K200: 2668.25 | L200: 2591.45 | M200: 2.32279
A201: 192 | B201: TORNTPOWER | C201: 1124.7 | D201: 1134.90 | E201: 1109.80 | F201: 1094.90 | G201: 1069.80 | H201: 1149.80 | I201: 1174.90 | J201: 1189.80 | K201: 1160 | L201: 1120 | M201: 6.97562
A202: 193 | B202: TRENT | C202: 3894.75 | D202: 3938.55 | E202: 3830.05 | F202: 3765.35 | G202: 3656.85 | H202: 4003.25 | I202: 4111.75 | J202: 4176.45 | K202: 4047.05 | L202: 3873.85 | M202: 6.14056
A203: 194 | B203: TIINDIA | C203: 3663.35 | D203: 3676.38 | E203: 3604.97 | F203: 3546.58 | G203: 3475.17 | H203: 3734.77 | I203: 3806.18 | J203: 3864.57 | K203: 3747.8 | L203: 3618 | M203: 1.04864
A204: 195 | B204: UPL | C204: 492.15 | D204: 494.43 | E204: 488.67 | F204: 485.18 | G204: 479.42 | H204: 497.92 | I204: 503.68 | J204: 507.17 | K204: 500.2 | L204: 490.95 | M204: 16.97299
A205: 196 | B205: ULTRACEMCO | C205: 9968.4 | D205: 10001.13 | E205: 9887.27 | F205: 9806.13 | G205: 9692.27 | H205: 10082.27 | I205: 10196.13 | J205: 10277.27 | K205: 10115 | L205: 9920 | M205: 3.2296
... 30 more rows

Sheet MidCap Intra
L5: Back To Main Page
A6: FOR INTRA DAY TRADING | K6: =Main!B10 -> 2024-02-22
A9: Sr.no | B9: Scrip | C9: CLOSE RATE | D9: Pivot Point | E9: Supports | H9: Resistances
E10: S1 | F10: S2 | G10: S3 | H10: R1 | I10: R2 | J10: R3 | K10: HIGH | L10: LOW | M10: Total Trade Quanity in Lakhs
A11: 1 | B11: 360ONE | C11: 713.7 | D11: 722.12 | E11: 699.33 | F11: 684.97 | G11: 662.18 | H11: 736.48 | I11: 759.27 | J11: 773.63 | K11: 744.9 | L11: 707.75 | M11: 3.27025
A12: 2 | B12: 3MINDIA | C12: 31009.25 | D12: 31146.08 | E12: 30772.17 | F12: 30535.08 | G12: 30161.17 | H12: 31383.17 | I12: 31757.08 | J12: 31994.17 | K12: 31520 | L12: 30909 | M12: 0.02801
A13: 3 | B13: ABB | C13: 4984.7 | D13: 4919.57 | E13: 4705.13 | F13: 4425.57 | G13: 4211.13 | H13: 5199.13 | I13: 5413.57 | J13: 5693.13 | K13: 5134 | L13: 4640 | M13: 44.04765
A14: 4 | B14: ACC | C14: 2666.75 | D14: 2678.95 | E14: 2638.90 | F14: 2611.05 | G14: 2571.00 | H14: 2706.80 | I14: 2746.85 | J14: 2774.70 | K14: 2719 | L14: 2651.1 | M14: 3.83105
A15: 5 | B15: AIAENG | C15: 3797.7 | D15: 3814.23 | E15: 3753.47 | F15: 3709.23 | G15: 3648.47 | H15: 3858.47 | I15: 3919.23 | J15: 3963.47 | K15: 3875 | L15: 3770 | M15: 0.77094
A16: 6 | B16: APLAPOLLO | C16: 1433.95 | D16: 1437.15 | E16: 1418.30 | F16: 1402.65 | G16: 1383.80 | H16: 1452.80 | I16: 1471.65 | J16: 1487.30 | K16: 1456 | L16: 1421.5 | M16: 2.96162
A17: 7 | B17: AUBANK | C17: 588.15 | D17: 591.70 | E17: 580.85 | F17: 573.55 | G17: 562.70 | H17: 599.00 | I17: 609.85 | J17: 617.15 | K17: 602.55 | L17: 584.4 | M17: 31.76517
A18: 8 | B18: AARTIDRUGS | C18: 533.45 | D18: 537.45 | E18: 526.10 | F18: 518.75 | G18: 507.40 | H18: 544.80 | I18: 556.15 | J18: 563.50 | K18: 548.8 | L18: 530.1 | M18: 1.54253
A19: 9 | B19: AARTIIND | C19: 687.4 | D19: 693.95 | E19: 675.90 | F19: 664.40 | G19: 646.35 | H19: 705.45 | I19: 723.50 | J19: 735.00 | K19: 712 | L19: 682.45 | M19: 23.61143
A20: 10 | B20: AAVAS | C20: 1443.15 | D20: 1442.45 | E20: 1435.00 | F20: 1426.85 | G20: 1419.40 | H20: 1450.60 | I20: 1458.05 | J20: 1466.20 | K20: 1449.9 | L20: 1434.3 | M20: 2.56381
A21: 11 | B21: ABBOTINDIA | C21: 29131.35 | D21: 29159.80 | E21: 28971.50 | F21: 28811.65 | G21: 28623.35 | H21: 29319.65 | I21: 29507.95 | J21: 29667.80 | K21: 29348.1 | L21: 28999.95 | M21: 0.07813
A22: 12 | B22: ADANIENSOL | C22: 1064.8 | D22: 1067.95 | E22: 1051.90 | F22: 1039.00 | G22: 1022.95 | H22: 1080.85 | I22: 1096.90 | J22: 1109.80 | K22: 1084 | L22: 1055.05 | M22: 30.3803
A23: 13 | B23: ADANIENT | C23: 3223.2 | D23: 3242.73 | E23: 3185.47 | F23: 3147.73 | G23: 3090.47 | H23: 3280.47 | I23: 3337.73 | J23: 3375.47 | K23: 3300 | L23: 3205 | M23: 16.57021
A24: 14 | B24: ADANIGREEN | C24: 1904.95 | D24: 1915.70 | E24: 1869.30 | F24: 1833.65 | G24: 1787.25 | H24: 1951.35 | I24: 1997.75 | J24: 2033.40 | K24: 1962.1 | L24: 1880.05 | M24: 11.84961
A25: 15 | B25: ADANIPORTS | C25: 1291 | D25: 1295.82 | E25: 1276.63 | F25: 1262.27 | G25: 1243.08 | H25: 1310.18 | I25: 1329.37 | J25: 1343.73 | K25: 1315 | L25: 1281.45 | M25: 27.7051
A26: 16 | B26: ADANIPOWER | C26: 540.75 | D26: 545.25 | E26: 530.50 | F26: 520.25 | G26: 505.50 | H26: 555.50 | I26: 570.25 | J26: 580.50 | K26: 560 | L26: 535 | M26: 12.63043
A27: 17 | B27: ATGL | C27: 1021.05 | D27: 1026.03 | E27: 1006.07 | F27: 991.08 | G27: 971.12 | H27: 1041.02 | I27: 1060.98 | J27: 1075.97 | K27: 1046 | L27: 1011.05 | M27: 46.37737
A28: 18 | B28: AWL | C28: 360.6 | D28: 363.32 | E28: 353.63 | F28: 346.67 | G28: 336.98 | H28: 370.28 | I28: 379.97 | J28: 386.93 | K28: 373 | L28: 356.35 | M28: 29.25334
A29: 19 | B29: ABCAPITAL | C29: 182.6 | D29: 183.82 | E29: 180.68 | F29: 178.77 | G29: 175.63 | H29: 185.73 | I29: 188.87 | J29: 190.78 | K29: 186.95 | L29: 181.9 | M29: 36.07656
A30: 20 | B30: ABFRL | C30: 226.65 | D30: 230.75 | E30: 221.15 | F30: 215.65 | G30: 206.05 | H30: 236.25 | I30: 245.85 | J30: 251.35 | K30: 240.35 | L30: 225.25 | M30: 58.98624
A31: 21 | B31: AEGISCHEM | C31: 452.95 | D31: 454.68 | E31: 439.27 | F31: 425.58 | G31: 410.17 | H31: 468.37 | I31: 483.78 | J31: 497.47 | K31: 470.1 | L31: 441 | M31: 7.69147
A32: 22 | B32: AETHER | C32: 860.4 | D32: 861.45 | E32: 850.95 | F32: 841.50 | G32: 831.00 | H32: 870.90 | I32: 881.40 | J32: 890.85 | K32: 871.95 | L32: 852 | M32: 0.37032
A33: 23 | B33: AFFLE | C33: 1126.7 | D33: 1133.42 | E33: 1103.28 | F33: 1079.87 | G33: 1049.73 | H33: 1156.83 | I33: 1186.97 | J33: 1210.38 | K33: 1163.55 | L33: 1110 | M33: 1.18684
A34: 24 | B34: AJANTPHARM | C34: 2113.1 | D34: 2123.15 | E34: 2089.60 | F34: 2066.10 | G34: 2032.55 | H34: 2146.65 | I34: 2180.20 | J34: 2203.70 | K34: 2156.7 | L34: 2099.65 | M34: 0.71112
A35: 25 | B35: APLLTD | C35: 1075.15 | D35: 1066.42 | E35: 1038.83 | F35: 1002.52 | G35: 974.93 | H35: 1102.73 | I35: 1130.32 | J35: 1166.63 | K35: 1094 | L35: 1030.1 | M35: 4.49749
A36: 26 | B36: ALKEM | C36: 5415.5 | D36: 5441.87 | E36: 5363.73 | F36: 5311.97 | G36: 5233.83 | H36: 5493.63 | I36: 5571.77 | J36: 5623.53 | K36: 5520 | L36: 5390.1 | M36: 1.7088
A37: 27 | B37: ALKYLAMINE | C37: 2212.75 | D37: 2215.63 | E37: 2198.27 | F37: 2183.78 | G37: 2166.42 | H37: 2230.12 | I37: 2247.48 | J37: 2261.97 | K37: 2233 | L37: 2201.15 | M37: 0.25308
A38: 28 | B38: ALLCARGO | C38: 83.25 | D38: 83.80 | E38: 82.15 | F38: 81.05 | G38: 79.40 | H38: 84.90 | I38: 86.55 | J38: 87.65 | K38: 85.45 | L38: 82.7 | M38: 96.6413
A39: 29 | B39: ALOKINDS | C39: 28.5 | D39: 28.78 | E39: 28.17 | F39: 27.83 | G39: 27.22 | H39: 29.12 | I39: 29.73 | J39: 30.07 | K39: 29.4 | L39: 28.45 | M39: 30.99819
A40: 30 | B40: ARE&M | C40: 842.55 | D40: 855.95 | E40: 824.65 | F40: 806.75 | G40: 775.45 | H40: 873.85 | I40: 905.15 | J40: 923.05 | K40: 887.25 | L40: 838.05 | M40: 7.51374
A41: 31 | B41: AMBER | C41: 3955.45 | D41: 3990.33 | E41: 3870.72 | F41: 3785.98 | G41: 3666.37 | H41: 4075.07 | I41: 4194.68 | J41: 4279.42 | K41: 4109.95 | L41: 3905.6 | M41: 1.60608
A42: 32 | B42: AMBUJACEM | C42: 587.8 | D42: 589.25 | E42: 581.80 | F42: 575.80 | G42: 568.35 | H42: 595.25 | I42: 602.70 | J42: 608.70 | K42: 596.7 | L42: 583.25 | M42: 42.09055
A43: 33 | B43: ANGELONE | C43: 3089.35 | D43: 3118.38 | E43: 3050.97 | F43: 3012.58 | G43: 2945.17 | H43: 3156.77 | I43: 3224.18 | J43: 3262.57 | K43: 3185.8 | L43: 3080 | M43: 1.31298
A44: 34 | B44: ANURAS | C44: 890.7 | D44: 894.48 | E44: 876.22 | F44: 861.73 | G44: 843.47 | H44: 908.97 | I44: 927.23 | J44: 941.72 | K44: 912.75 | L44: 880 | M44: 0.76496
A45: 35 | B45: APARINDS | C45: 6153.55 | D45: 6191.53 | E45: 6062.07 | F45: 5970.58 | G45: 5841.12 | H45: 6283.02 | I45: 6412.48 | J45: 6503.97 | K45: 6321 | L45: 6100.05 | M45: 0.63148
A46: 36 | B46: APOLLOHOSP | C46: 6760.15 | D46: 6766.47 | E46: 6710.98 | F46: 6661.82 | G46: 6606.33 | H46: 6815.63 | I46: 6871.12 | J46: 6920.28 | K46: 6821.95 | L46: 6717.3 | M46: 5.37325
A47: 37 | B47: APOLLOTYRE | C47: 516.25 | D47: 518.42 | E47: 511.83 | F47: 507.42 | G47: 500.83 | H47: 522.83 | I47: 529.42 | J47: 533.83 | K47: 525 | L47: 514 | M47: 8.46319
A48: 38 | B48: APTUS | C48: 350.3 | D48: 350.58 | E48: 347.17 | F48: 344.03 | G48: 340.62 | H48: 353.72 | I48: 357.13 | J48: 360.27 | K48: 354 | L48: 347.45 | M48: 9.42318
A49: 39 | B49: ACI | C49: 759.15 | D49: 752.50 | E49: 737.70 | F49: 716.25 | G49: 701.45 | H49: 773.95 | I49: 788.75 | J49: 810.20 | K49: 767.3 | L49: 731.05 | M49: 14.80764
A50: 40 | B50: ASAHIINDIA | C50: 531.05 | D50: 533.00 | E50: 526.05 | F50: 521.05 | G50: 514.10 | H50: 538.00 | I50: 544.95 | J50: 549.95 | K50: 539.95 | L50: 528 | M50: 0.58811
A51: 41 | B51: ASHOKLEY | C51: 171.3 | D51: 173.17 | E51: 168.93 | F51: 166.57 | G51: 162.33 | H51: 175.53 | I51: 179.77 | J51: 182.13 | K51: 177.4 | L51: 170.8 | M51: 340.84215
A52: 42 | B52: ASIANPAINT | C52: 3001.8 | D52: 3004.02 | E52: 2981.28 | F52: 2960.77 | G52: 2938.03 | H52: 3024.53 | I52: 3047.27 | J52: 3067.78 | K52: 3026.75 | L52: 2983.5 | M52: 9.2713
A53: 43 | B53: ASTERDM | C53: 474.25 | D53: 476.77 | E53: 467.73 | F53: 461.22 | G53: 452.18 | H53: 483.28 | I53: 492.32 | J53: 498.83 | K53: 485.8 | L53: 470.25 | M53: 5.29722
A54: 44 | B54: ASTRAL | C54: 1930.5 | D54: 1941.08 | E54: 1912.17 | F54: 1893.83 | G54: 1864.92 | H54: 1959.42 | I54: 1988.33 | J54: 2006.67 | K54: 1970 | L54: 1922.75 | M54: 6.49882
A55: 45 | B55: ATUL | C55: 6310.7 | D55: 6331.90 | E55: 6273.80 | F55: 6236.90 | G55: 6178.80 | H55: 6368.80 | I55: 6426.90 | J55: 6463.80 | K55: 6390 | L55: 6295 | M55: 0.20233
A56: 46 | B56: AUROPHARMA | C56: 1040.8 | D56: 1046.08 | E56: 1031.17 | F56: 1021.53 | G56: 1006.62 | H56: 1055.72 | I56: 1070.63 | J56: 1080.27 | K56: 1061 | L56: 1036.45 | M56: 15.84527
A57: 47 | B57: AVANTIFEED | C57: 498.25 | D57: 501.63 | E57: 491.47 | F57: 484.68 | G57: 474.52 | H57: 508.42 | I57: 518.58 | J57: 525.37 | K57: 511.8 | L57: 494.85 | M57: 4.12698
A58: 48 | B58: DMART | C58: 3835.75 | D58: 3825.58 | E58: 3762.17 | F58: 3688.58 | G58: 3625.17 | H58: 3899.17 | I58: 3962.58 | J58: 4036.17 | K58: 3889 | L58: 3752 | M58: 5.92509
A59: 49 | B59: AXISBANK | C59: 1084.2 | D59: 1083.75 | E59: 1073.55 | F59: 1062.90 | G59: 1052.70 | H59: 1094.40 | I59: 1104.60 | J59: 1115.25 | K59: 1093.95 | L59: 1073.1 | M59: 91.77213
A60: 50 | B60: BEML | C60: 2979.45 | D60: 3003.15 | E60: 2937.30 | F60: 2895.15 | G60: 2829.30 | H60: 3045.30 | I60: 3111.15 | J60: 3153.30 | K60: 3069 | L60: 2961 | M60: 2.88132
A61: 51 | B61: BLS | C61: 379.1 | D61: 381.40 | E61: 370.30 | F61: 361.50 | G61: 350.40 | H61: 390.20 | I61: 401.30 | J61: 410.10 | K61: 392.5 | L61: 372.6 | M61: 12.28317
A62: 52 | B62: BSE | C62: 2216.2 | D62: 2239.03 | E62: 2167.17 | F62: 2118.13 | G62: 2046.27 | H62: 2288.07 | I62: 2359.93 | J62: 2408.97 | K62: 2310.9 | L62: 2190 | M62: 5.59517
A63: 53 | B63: BAJAJ-AUTO | C63: 8232.25 | D63: 8271.37 | E63: 8165.88 | F63: 8099.52 | G63: 7994.03 | H63: 8337.73 | I63: 8443.22 | J63: 8509.58 | K63: 8376.85 | L63: 8205 | M63: 4.39817
A64: 54 | B64: BAJFINANCE | C64: 6688.8 | D64: 6714.62 | E64: 6639.23 | F64: 6589.67 | G64: 6514.28 | H64: 6764.18 | I64: 6839.57 | J64: 6889.13 | K64: 6790 | L64: 6665.05 | M64: 8.54944
A65: 55 | B65: BAJAJFINSV | C65: 1586.95 | D65: 1595.38 | E65: 1572.17 | F65: 1557.38 | G65: 1534.17 | H65: 1610.17 | I65: 1633.38 | J65: 1648.17 | K65: 1618.6 | L65: 1580.6 | M65: 6.74394
A66: 56 | B66: BAJAJHLDNG | C66: 8807.8 | D66: 8818.90 | E66: 8738.90 | F66: 8670.00 | G66: 8590.00 | H66: 8887.80 | I66: 8967.80 | J66: 9036.70 | K66: 8898.9 | L66: 8750 | M66: 0.11657
A67: 57 | B67: BALAMINES | C67: 2292.5 | D67: 2304.90 | E67: 2264.80 | F67: 2237.10 | G67: 2197.00 | H67: 2332.60 | I67: 2372.70 | J67: 2400.40 | K67: 2345 | L67: 2277.2 | M67: 0.60787
A68: 58 | B68: BALKRISIND | C68: 2257.8 | D68: 2273.60 | E68: 2235.20 | F68: 2212.60 | G68: 2174.20 | H68: 2296.20 | I68: 2334.60 | J68: 2357.20 | K68: 2312 | L68: 2251 | M68: 2.09004
A69: 59 | B69: BALRAMCHIN | C69: 380.95 | D69: 381.93 | E69: 377.97 | F69: 374.98 | G69: 371.02 | H69: 384.92 | I69: 388.88 | J69: 391.87 | K69: 385.9 | L69: 378.95 | M69: 15.92239
A70: 60 | B70: BANDHANBNK | C70: 200.55 | D70: 201.48 | E70: 198.82 | F70: 197.08 | G70: 194.42 | H70: 203.22 | I70: 205.88 | J70: 207.62 | K70: 204.15 | L70: 199.75 | M70: 73.62611
A71: 61 | B71: BANKBARODA | C71: 275.1 | D71: 275.87 | E71: 272.23 | F71: 269.37 | G71: 265.73 | H71: 278.73 | I71: 282.37 | J71: 285.23 | K71: 279.5 | L71: 273 | M71: 196.24058
A72: 62 | B72: BANKINDIA | C72: 141.2 | D72: 142.68 | E72: 138.92 | F72: 136.63 | G72: 132.87 | H72: 144.97 | I72: 148.73 | J72: 151.02 | K72: 146.45 | L72: 140.4 | M72: 159.22241
A73: 63 | B73: MAHABANK | C73: 60.4 | D73: 61.03 | E73: 59.42 | F73: 58.43 | G73: 56.82 | H73: 62.02 | I73: 63.63 | J73: 64.62 | K73: 62.65 | L73: 60.05 | M73: 358.59264
A74: 64 | B74: BATAINDIA | C74: 1431.95 | D74: 1436.62 | E74: 1420.38 | F74: 1408.82 | G74: 1392.58 | H74: 1448.18 | I74: 1464.42 | J74: 1475.98 | K74: 1452.85 | L74: 1425.05 | M74: 3.43186
A75: 65 | B75: BAYERCROP | C75: 6071.6 | D75: 6090.95 | E75: 5980.65 | F75: 5889.70 | G75: 5779.40 | H75: 6181.90 | I75: 6292.20 | J75: 6383.15 | K75: 6201.25 | L75: 6000 | M75: 0.20838
A76: 66 | B76: BERGEPAINT | C76: 572.25 | D76: 569.87 | E76: 563.88 | F76: 555.52 | G76: 549.53 | H76: 578.23 | I76: 584.22 | J76: 592.58 | K76: 575.85 | L76: 561.5 | M76: 10.97088
A77: 67 | B77: BDL | C77: 1700.05 | D77: 1711.88 | E77: 1665.17 | F77: 1630.28 | G77: 1583.57 | H77: 1746.77 | I77: 1793.48 | J77: 1828.37 | K77: 1758.6 | L77: 1677 | M77: 8.14514
A78: 68 | B78: BEL | C78: 188.7 | D78: 189.42 | E78: 186.28 | F78: 183.87 | G78: 180.73 | H78: 191.83 | I78: 194.97 | J78: 197.38 | K78: 192.55 | L78: 187 | M78: 178.70782
A79: 69 | B79: BHARATFORG | C79: 1123.3 | D79: 1127.13 | E79: 1111.87 | F79: 1100.43 | G79: 1085.17 | H79: 1138.57 | I79: 1153.83 | J79: 1165.27 | K79: 1142.4 | L79: 1115.7 | M79: 11.37612
A80: 70 | B80: BHEL | C80: 221.9 | D80: 224.77 | E80: 217.18 | F80: 212.47 | G80: 204.88 | H80: 229.48 | I80: 237.07 | J80: 241.78 | K80: 232.35 | L80: 220.05 | M80: 221.93528
A81: 71 | B81: BPCL | C81: 633.2 | D81: 643.68 | E81: 619.52 | F81: 605.83 | G81: 581.67 | H81: 657.37 | I81: 681.53 | J81: 695.22 | K81: 667.85 | L81: 630 | M81: 88.61132
A82: 72 | B82: BHARTIARTL | C82: 1139.9 | D82: 1143.88 | E82: 1128.62 | F82: 1117.33 | G82: 1102.07 | H82: 1155.17 | I82: 1170.43 | J82: 1181.72 | K82: 1159.15 | L82: 1132.6 | M82: 45.70259
A83: 73 | B83: BIKAJI | C83: 532 | D83: 533.63 | E83: 527.97 | F83: 523.93 | G83: 518.27 | H83: 537.67 | I83: 543.33 | J83: 547.37 | K83: 539.3 | L83: 529.6 | M83: 2.3602
A84: 74 | B84: BIOCON | C84: 274 | D84: 276.82 | E84: 269.83 | F84: 265.67 | G84: 258.68 | H84: 280.98 | I84: 287.97 | J84: 292.13 | K84: 283.8 | L84: 272.65 | M84: 58.52991
A85: 75 | B85: BIRLACORPN | C85: 1697.5 | D85: 1712.20 | E85: 1669.40 | F85: 1641.30 | G85: 1598.50 | H85: 1740.30 | I85: 1783.10 | J85: 1811.20 | K85: 1755 | L85: 1684.1 | M85: 1.43632
A86: 76 | B86: BSOFT | C86: 796.4 | D86: 802.00 | E86: 785.65 | F86: 774.90 | G86: 758.55 | H86: 812.75 | I86: 829.10 | J86: 839.85 | K86: 818.35 | L86: 791.25 | M86: 14.64276
A87: 77 | B87: BLUEDART | C87: 6230.15 | D87: 6267.80 | E87: 6165.60 | F87: 6101.05 | G87: 5998.85 | H87: 6332.35 | I87: 6434.55 | J87: 6499.10 | K87: 6370 | L87: 6203.25 | M87: 0.10407
A88: 78 | B88: BLUESTARCO | C88: 1271.55 | D88: 1276.93 | E88: 1254.87 | F88: 1238.18 | G88: 1216.12 | H88: 1293.62 | I88: 1315.68 | J88: 1332.37 | K88: 1299 | L88: 1260.25 | M88: 1.21808
A89: 79 | B89: BBTC | C89: 1712.75 | D89: 1735.02 | E89: 1675.23 | F89: 1637.72 | G89: 1577.93 | H89: 1772.53 | I89: 1832.32 | J89: 1869.83 | K89: 1794.8 | L89: 1697.5 | M89: 1.79465
A90: 80 | B90: BORORENEW | C90: 560.15 | D90: 566.40 | E90: 548.15 | F90: 536.15 | G90: 517.90 | H90: 578.40 | I90: 596.65 | J90: 608.65 | K90: 584.65 | L90: 554.4 | M90: 10.8921
A91: 81 | B91: BOSCHLTD | C91: 28054.25 | D91: 28393.13 | E91: 27586.32 | F91: 27118.38 | G91: 26311.57 | H91: 28861.07 | I91: 29667.88 | J91: 30135.82 | K91: 29199.95 | L91: 27925.2 | M91: 0.66555
A92: 82 | B92: BRIGADE | C92: 1005 | D92: 1002.25 | E92: 986.10 | F92: 967.20 | G92: 951.05 | H92: 1021.15 | I92: 1037.30 | J92: 1056.20 | K92: 1018.4 | L92: 983.35 | M92: 3.13516
A93: 83 | B93: BCG | C93: 18 | D93: 18.22 | E93: 17.68 | F93: 17.37 | G93: 16.83 | H93: 18.53 | I93: 19.07 | J93: 19.38 | K93: 18.75 | L93: 17.9 | M93: 225.19617
A94: 84 | B94: BRITANNIA | C94: 4923 | D94: 4933.10 | E94: 4877.90 | F94: 4832.80 | G94: 4777.60 | H94: 4978.20 | I94: 5033.40 | J94: 5078.50 | K94: 4988.3 | L94: 4888 | M94: 2.35932
A95: 85 | B95: MAPMYINDIA | C95: 1801.45 | D95: 1820.02 | E95: 1771.43 | F95: 1741.42 | G95: 1692.83 | H95: 1850.03 | I95: 1898.62 | J95: 1928.63 | K95: 1868.6 | L95: 1790 | M95: 0.6883
A96: 86 | B96: CCL | C96: 643.5 | D96: 647.18 | E96: 635.37 | F96: 627.23 | G96: 615.42 | H96: 655.32 | I96: 667.13 | J96: 675.27 | K96: 659 | L96: 639.05 | M96: 0.9988
A97: 87 | B97: CESC | C97: 128.35 | D97: 129.50 | E97: 126.85 | F97: 125.35 | G97: 122.70 | H97: 131.00 | I97: 133.65 | J97: 135.15 | K97: 132.15 | L97: 128 | M97: 34.02895
A98: 88 | B98: CGPOWER | C98: 425.95 | D98: 427.83 | E98: 420.07 | F98: 414.18 | G98: 406.42 | H98: 433.72 | I98: 441.48 | J98: 447.37 | K98: 435.6 | L98: 421.95 | M98: 11.0879
A99: 89 | B99: CIEINDIA | C99: 462.35 | D99: 466.33 | E99: 455.02 | F99: 447.68 | G99: 436.37 | H99: 473.67 | I99: 484.98 | J99: 492.32 | K99: 477.65 | L99: 459 | M99: 8.37924
A100: 90 | B100: CRISIL | C100: 5063.8 | D100: 5049.97 | E100: 4963.93 | F100: 4864.07 | G100: 4778.03 | H100: 5149.83 | I100: 5235.87 | J100: 5335.73 | K100: 5136 | L100: 4950.1 | M100: 0.79599
A101: 91 | B101: CSBBANK | C101: 351.45 | D101: 355.80 | E101: 343.65 | F101: 335.85 | G101: 323.70 | H101: 363.60 | I101: 375.75 | J101: 383.55 | K101: 367.95 | L101: 348 | M101: 4.60705
A102: 92 | B102: CAMPUS | C102: 252 | D102: 258.95 | E102: 242.10 | F102: 232.20 | G102: 215.35 | H102: 268.85 | I102: 285.70 | J102: 295.60 | K102: 275.8 | L102: 249.05 | M102: 245.30536
A103: 93 | B103: CANFINHOME | C103: 786.1 | D103: 793.30 | E103: 775.20 | F103: 764.30 | G103: 746.20 | H103: 804.20 | I103: 822.30 | J103: 833.20 | K103: 811.4 | L103: 782.4 | M103: 4.45219
A104: 94 | B104: CANBK | C104: 567.35 | D104: 571.38 | E104: 560.02 | F104: 552.68 | G104: 541.32 | H104: 578.72 | I104: 590.08 | J104: 597.42 | K104: 582.75 | L104: 564.05 | M104: 112.21001
A105: 95 | B105: CGCL | C105: 958.05 | D105: 958.95 | E105: 950.05 | F105: 942.05 | G105: 933.15 | H105: 966.95 | I105: 975.85 | J105: 983.85 | K105: 967.85 | L105: 950.95 | M105: 8.06168
A106: 96 | B106: CARBORUNIV | C106: 1083.15 | D106: 1086.75 | E106: 1068.45 | F106: 1053.75 | G106: 1035.45 | H106: 1101.45 | I106: 1119.75 | J106: 1134.45 | K106: 1105.05 | L106: 1072.05 | M106: 1.97047
A107: 97 | B107: CASTROLIND | C107: 201.95 | D107: 204.18 | E107: 198.47 | F107: 194.98 | G107: 189.27 | H107: 207.67 | I107: 213.38 | J107: 216.87 | K107: 209.9 | L107: 200.7 | M107: 39.77613
A108: 98 | B108: CEATLTD | C108: 2885 | D108: 2898.13 | E108: 2848.27 | F108: 2811.53 | G108: 2761.67 | H108: 2934.87 | I108: 2984.73 | J108: 3021.47 | K108: 2948 | L108: 2861.4 | M108: 1.68547
A109: 99 | B109: CENTRALBK | C109: 65.85 | D109: 66.55 | E109: 64.70 | F109: 63.55 | G109: 61.70 | H109: 67.70 | I109: 69.55 | J109: 70.70 | K109: 68.4 | L109: 65.4 | M109: 292.25281
A110: 100 | B110: CDSL | C110: 1799.6 | D110: 1814.30 | E110: 1771.65 | F110: 1743.70 | G110: 1701.05 | H110: 1842.25 | I110: 1884.90 | J110: 1912.85 | K110: 1856.95 | L110: 1786.35 | M110: 5.68555
A111: 101 | B111: CENTURYPLY | C111: 719.65 | D111: 722.08 | E111: 714.57 | F111: 709.48 | G111: 701.97 | H111: 727.17 | I111: 734.68 | J111: 739.77 | K111: 729.6 | L111: 717 | M111: 0.53872
A112: 102 | B112: CENTURYTEX | C112: 1437.1 | D112: 1451.20 | E112: 1417.40 | F112: 1397.70 | G112: 1363.90 | H112: 1470.90 | I112: 1504.70 | J112: 1524.40 | K112: 1485 | L112: 1431.5 | M112: 1.27958
A113: 103 | B113: CERA | C113: 7482.8 | D113: 7513.98 | E113: 7409.92 | F113: 7337.03 | G113: 7232.97 | H113: 7586.87 | I113: 7690.93 | J113: 7763.82 | K113: 7618.05 | L113: 7441.1 | M113: 0.05259
A114: 104 | B114: CHALET | C114: 829.7 | D114: 838.47 | E114: 816.23 | F114: 802.77 | G114: 780.53 | H114: 851.93 | I114: 874.17 | J114: 887.63 | K114: 860.7 | L114: 825 | M114: 2.62127
A115: 105 | B115: CHAMBLFERT | C115: 366 | D115: 367.85 | E115: 362.10 | F115: 358.20 | G115: 352.45 | H115: 371.75 | I115: 377.50 | J115: 381.40 | K115: 373.6 | L115: 363.95 | M115: 14.58692
A116: 106 | B116: CHEMPLASTS | C116: 474 | D116: 476.33 | E116: 457.67 | F116: 441.33 | G116: 422.67 | H116: 492.67 | I116: 511.33 | J116: 527.67 | K116: 495 | L116: 460 | M116: 6.22782
A117: 107 | B117: CHOLAHLDNG | C117: 1042.9 | D117: 1045.00 | E117: 1029.95 | F117: 1017.00 | G117: 1001.95 | H117: 1057.95 | I117: 1073.00 | J117: 1085.95 | K117: 1060.05 | L117: 1032.05 | M117: 3.4589
A118: 108 | B118: CHOLAFIN | C118: 1085.55 | D118: 1092.15 | E118: 1074.40 | F118: 1063.25 | G118: 1045.50 | H118: 1103.30 | I118: 1121.05 | J118: 1132.20 | K118: 1109.9 | L118: 1081 | M118: 21.33034
A119: 109 | B119: CIPLA | C119: 1447.3 | D119: 1447.75 | E119: 1433.00 | F119: 1418.70 | G119: 1403.95 | H119: 1462.05 | I119: 1476.80 | J119: 1491.10 | K119: 1462.5 | L119: 1433.45 | M119: 10.74054
A120: 110 | B120: CUB | C120: 133.75 | D120: 134.77 | E120: 132.28 | F120: 130.82 | G120: 128.33 | H120: 136.23 | I120: 138.72 | J120: 140.18 | K120: 137.25 | L120: 133.3 | M120: 52.92956
A121: 111 | B121: CLEAN | C121: 1465.6 | D121: 1451.70 | E121: 1426.35 | F121: 1387.10 | G121: 1361.75 | H121: 1490.95 | I121: 1516.30 | J121: 1555.55 | K121: 1477.05 | L121: 1412.45 | M121: 2.76292
A122: 112 | B122: COALINDIA | C122: 432.95 | D122: 438.30 | E122: 425.65 | F122: 418.35 | G122: 405.70 | H122: 445.60 | I122: 458.25 | J122: 465.55 | K122: 450.95 | L122: 431 | M122: 190.3205
A123: 113 | B123: COCHINSHIP | C123: 830.85 | D123: 835.27 | E123: 820.63 | F123: 810.42 | G123: 795.78 | H123: 845.48 | I123: 860.12 | J123: 870.33 | K123: 849.9 | L123: 825.05 | M123: 10.05409
A124: 114 | B124: COFORGE | C124: 6546 | D124: 6583.63 | E124: 6462.37 | F124: 6378.73 | G124: 6257.47 | H124: 6667.27 | I124: 6788.53 | J124: 6872.17 | K124: 6704.9 | L124: 6500 | M124: 3.03362
A125: 115 | B125: COLPAL | C125: 2535.55 | D125: 2539.12 | E125: 2518.43 | F125: 2501.32 | G125: 2480.63 | H125: 2556.23 | I125: 2576.92 | J125: 2594.03 | K125: 2559.8 | L125: 2522 | M125: 2.54368
A126: 116 | B126: CAMS | C126: 2989.55 | D126: 2964.33 | E126: 2888.72 | F126: 2787.88 | G126: 2712.27 | H126: 3065.17 | I126: 3140.78 | J126: 3241.62 | K126: 3039.95 | L126: 2863.5 | M126: 7.98662
A127: 117 | B127: CONCORDBIO | C127: 1443.4 | D127: 1434.80 | E127: 1397.00 | F127: 1350.60 | G127: 1312.80 | H127: 1481.20 | I127: 1519.00 | J127: 1565.40 | K127: 1472.6 | L127: 1388.4 | M127: 1.47824
A128: 118 | B128: CONCOR | C128: 991.9 | D128: 1001.88 | E128: 976.12 | F128: 960.33 | G128: 934.57 | H128: 1017.67 | I128: 1043.43 | J128: 1059.22 | K128: 1027.65 | L128: 986.1 | M128: 38.54456
A129: 119 | B129: COROMANDEL | C129: 1085.45 | D129: 1090.72 | E129: 1076.73 | F129: 1068.02 | G129: 1054.03 | H129: 1099.43 | I129: 1113.42 | J129: 1122.13 | K129: 1104.7 | L129: 1082 | M129: 2.38135
A130: 120 | B130: CRAFTSMAN | C130: 4407.9 | D130: 4440.97 | E130: 4356.93 | F130: 4305.97 | G130: 4221.93 | H130: 4491.93 | I130: 4575.97 | J130: 4626.93 | K130: 4525 | L130: 4390 | M130: 0.24298
A131: 121 | B131: CREDITACC | C131: 1467.8 | D131: 1479.92 | E131: 1447.93 | F131: 1428.07 | G131: 1396.08 | H131: 1499.78 | I131: 1531.77 | J131: 1551.63 | K131: 1511.9 | L131: 1460.05 | M131: 2.3109
A132: 122 | B132: CROMPTON | C132: 290.3 | D132: 290.05 | E132: 288.50 | F132: 286.70 | G132: 285.15 | H132: 291.85 | I132: 293.40 | J132: 295.20 | K132: 291.6 | L132: 288.25 | M132: 33.19385
A133: 123 | B133: CUMMINSIND | C133: 2607.9 | D133: 2614.12 | E133: 2584.98 | F133: 2562.07 | G133: 2532.93 | H133: 2637.03 | I133: 2666.17 | J133: 2689.08 | K133: 2643.25 | L133: 2591.2 | M133: 2.85288
A134: 124 | B134: CYIENT | C134: 1964.4 | D134: 1983.52 | E134: 1935.53 | F134: 1906.67 | G134: 1858.68 | H134: 2012.38 | I134: 2060.37 | J134: 2089.23 | K134: 2031.5 | L134: 1954.65 | M134: 3.46969
A135: 125 | B135: DCMSHRIRAM | C135: 969.35 | D135: 971.62 | E135: 962.03 | F135: 954.72 | G135: 945.13 | H135: 978.93 | I135: 988.52 | J135: 995.83 | K135: 981.2 | L135: 964.3 | M135: 0.20664
A136: 126 | B136: DLF | C136: 886.85 | D136: 882.50 | E136: 868.25 | F136: 849.65 | G136: 835.40 | H136: 901.10 | I136: 915.35 | J136: 933.95 | K136: 896.75 | L136: 863.9 | M136: 88.01547
A137: 127 | B137: DABUR | C137: 546.3 | D137: 546.83 | E137: 543.82 | F137: 541.33 | G137: 538.32 | H137: 549.32 | I137: 552.33 | J137: 554.82 | K137: 549.85 | L137: 544.35 | M137: 16.36393
A138: 128 | B138: DALBHARAT | C138: 2086.95 | D138: 2096.48 | E138: 2066.07 | F138: 2045.18 | G138: 2014.77 | H138: 2117.37 | I138: 2147.78 | J138: 2168.67 | K138: 2126.9 | L138: 2075.6 | M138: 4.30199
A139: 129 | B139: DATAPATTNS | C139: 2060.45 | D139: 2062.88 | E139: 2015.77 | F139: 1971.08 | G139: 1923.97 | H139: 2107.57 | I139: 2154.68 | J139: 2199.37 | K139: 2110 | L139: 2018.2 | M139: 2.74446
A140: 130 | B140: DEEPAKFERT | C140: 522.05 | D140: 521.33 | E140: 515.27 | F140: 508.48 | G140: 502.42 | H140: 528.12 | I140: 534.18 | J140: 540.97 | K140: 527.4 | L140: 514.55 | M140: 18.49768
A141: 131 | B141: DEEPAKNTR | C141: 2326.75 | D141: 2338.93 | E141: 2299.87 | F141: 2272.98 | G141: 2233.92 | H141: 2365.82 | I141: 2404.88 | J141: 2431.77 | K141: 2378 | L141: 2312.05 | M141: 7.487
A142: 132 | B142: DELHIVERY | C142: 472.85 | D142: 471.27 | E142: 464.53 | F142: 456.22 | G142: 449.48 | H142: 479.58 | I142: 486.32 | J142: 494.63 | K142: 478 | L142: 462.95 | M142: 30.63023
A143: 133 | B143: DELTACORP | C143: 142.4 | D143: 143.68 | E143: 140.12 | F143: 137.83 | G143: 134.27 | H143: 145.97 | I143: 149.53 | J143: 151.82 | K143: 147.25 | L143: 141.4 | M143: 29.18045
A144: 134 | B144: DEVYANI | C144: 167.05 | D144: 169.18 | E144: 163.37 | F144: 159.68 | G144: 153.87 | H144: 172.87 | I144: 178.68 | J144: 182.37 | K144: 175 | L144: 165.5 | M144: 115.94032
A145: 135 | B145: DIVISLAB | C145: 3649.1 | D145: 3675.33 | E145: 3610.97 | F145: 3572.83 | G145: 3508.47 | H145: 3713.47 | I145: 3777.83 | J145: 3815.97 | K145: 3739.7 | L145: 3637.2 | M145: 3.8615
A146: 136 | B146: DIXON | C146: 6734 | D146: 6756.67 | E146: 6682.33 | F146: 6630.67 | G146: 6556.33 | H146: 6808.33 | I146: 6882.67 | J146: 6934.33 | K146: 6831 | L146: 6705 | M146: 3.3501
A147: 137 | B147: LALPATHLAB | C147: 2428.85 | D147: 2442.10 | E147: 2404.25 | F147: 2379.65 | G147: 2341.80 | H147: 2466.70 | I147: 2504.55 | J147: 2529.15 | K147: 2479.95 | L147: 2417.5 | M147: 1.28553
A148: 138 | B148: DRREDDY | C148: 6349.15 | D148: 6352.23 | E148: 6301.92 | F148: 6254.68 | G148: 6204.37 | H148: 6399.47 | I148: 6449.78 | J148: 6497.02 | K148: 6402.55 | L148: 6305 | M148: 1.99179
A149: 139 | B149: EIDPARRY | C149: 639.8 | D149: 644.20 | E149: 629.40 | F149: 619.00 | G149: 604.20 | H149: 654.60 | I149: 669.40 | J149: 679.80 | K149: 659 | L149: 633.8 | M149: 16.0712
A150: 140 | B150: EIHOTEL | C150: 400.6 | D150: 406.37 | E150: 389.73 | F150: 378.87 | G150: 362.23 | H150: 417.23 | I150: 433.87 | J150: 444.73 | K150: 423 | L150: 395.5 | M150: 31.82518
A151: 141 | B151: EPL | C151: 193.2 | D151: 193.68 | E151: 192.17 | F151: 191.13 | G151: 189.62 | H151: 194.72 | I151: 196.23 | J151: 197.27 | K151: 195.2 | L151: 192.65 | M151: 3.98454
A152: 142 | B152: EASEMYTRIP | C152: 48.25 | D152: 48.83 | E152: 47.52 | F152: 46.78 | G152: 45.47 | H152: 49.57 | I152: 50.88 | J152: 51.62 | K152: 50.15 | L152: 48.1 | M152: 236.22563
A153: 143 | B153: EICHERMOT | C153: 3836.35 | D153: 3851.03 | E153: 3806.32 | F153: 3776.28 | G153: 3731.57 | H153: 3881.07 | I153: 3925.78 | J153: 3955.82 | K153: 3895.75 | L153: 3821 | M153: 5.7538
A154: 144 | B154: ELGIEQUIP | C154: 646.7 | D154: 649.37 | E154: 628.93 | F154: 611.17 | G154: 590.73 | H154: 667.13 | I154: 687.57 | J154: 705.33 | K154: 669.8 | L154: 631.6 | M154: 5.65862
A155: 145 | B155: EMAMILTD | C155: 467.7 | D155: 470.13 | E155: 463.57 | F155: 459.43 | G155: 452.87 | H155: 474.27 | I155: 480.83 | J155: 484.97 | K155: 476.7 | L155: 466 | M155: 6.9775
A156: 146 | B156: ENDURANCE | C156: 1842.2 | D156: 1836.55 | E156: 1807.15 | F156: 1772.10 | G156: 1742.70 | H156: 1871.60 | I156: 1901.00 | J156: 1936.05 | K156: 1865.95 | L156: 1801.5 | M156: 1.47813
A157: 147 | B157: ENGINERSIN | C157: 219.85 | D157: 222.95 | E157: 214.65 | F157: 209.45 | G157: 201.15 | H157: 228.15 | I157: 236.45 | J157: 241.65 | K157: 231.25 | L157: 217.75 | M157: 59.96929
A158: 148 | B158: EPIGRAL | C158: 1221.9 | D158: 1199.82 | E158: 1134.63 | F158: 1047.37 | G158: 982.18 | H158: 1287.08 | I158: 1352.27 | J158: 1439.53 | K158: 1265 | L158: 1112.55 | M158: 20.37172
A159: 149 | B159: EQUITASBNK | C159: 102.55 | D159: 103.85 | E159: 100.50 | F159: 98.45 | G159: 95.10 | H159: 105.90 | I159: 109.25 | J159: 111.30 | K159: 107.2 | L159: 101.8 | M159: 48.436
A160: 150 | B160: ERIS | C160: 855.75 | D160: 854.55 | E160: 849.25 | F160: 842.75 | G160: 837.45 | H160: 861.05 | I160: 866.35 | J160: 872.85 | K160: 859.85 | L160: 848.05 | M160: 1.14109
A161: 151 | B161: ESCORTS | C161: 2914.15 | D161: 2920.05 | E161: 2891.10 | F161: 2868.05 | G161: 2839.10 | H161: 2943.10 | I161: 2972.05 | J161: 2995.10 | K161: 2949 | L161: 2897 | M161: 1.02824
A162: 152 | B162: EXIDEIND | C162: 326.7 | D162: 328.83 | E162: 323.47 | F162: 320.23 | G162: 314.87 | H162: 332.07 | I162: 337.43 | J162: 340.67 | K162: 334.2 | L162: 325.6 | M162: 18.41503
A163: 153 | B163: FDC | C163: 454.05 | D163: 455.13 | E163: 446.57 | F163: 439.08 | G163: 430.52 | H163: 462.62 | I163: 471.18 | J163: 478.67 | K163: 463.7 | L163: 447.65 | M163: 3.96221
A164: 154 | B164: NYKAA | C164: 151.4 | D164: 151.13 | E164: 147.77 | F164: 144.13 | G164: 140.77 | H164: 154.77 | I164: 158.13 | J164: 161.77 | K164: 154.5 | L164: 147.5 | M164: 66.74701
A165: 155 | B165: FEDERALBNK | C165: 153.75 | D165: 154.37 | E165: 152.63 | F165: 151.52 | G165: 149.78 | H165: 155.48 | I165: 157.22 | J165: 158.33 | K165: 156.1 | L165: 153.25 | M165: 143.75228
A166: 156 | B166: FACT | C166: 839.75 | D166: 848.28 | E166: 822.67 | F166: 805.58 | G166: 779.97 | H166: 865.37 | I166: 890.98 | J166: 908.07 | K166: 873.9 | L166: 831.2 | M166: 12.17453
A167: 157 | B167: FINEORG | C167: 4374.25 | D167: 4368.42 | E167: 4337.88 | F167: 4301.52 | G167: 4270.98 | H167: 4404.78 | I167: 4435.32 | J167: 4471.68 | K167: 4398.95 | L167: 4332.05 | M167: 0.13729
A168: 158 | B168: FINCABLES | C168: 988.05 | D168: 989.95 | E168: 980.40 | F168: 972.75 | G168: 963.20 | H168: 997.60 | I168: 1007.15 | J168: 1014.80 | K168: 999.5 | L168: 982.3 | M168: 0.96726
A169: 159 | B169: FINPIPE | C169: 219.25 | D169: 219.68 | E169: 214.72 | F169: 210.18 | G169: 205.22 | H169: 224.22 | I169: 229.18 | J169: 233.72 | K169: 224.65 | L169: 215.15 | M169: 4.75355
A170: 160 | B170: FSL | C170: 198.7 | D170: 199.98 | E170: 194.97 | F170: 191.23 | G170: 186.22 | H170: 203.72 | I170: 208.73 | J170: 212.47 | K170: 205 | L170: 196.25 | M170: 15.45186
A171: 161 | B171: FIVESTAR | C171: 716.7 | D171: 718.72 | E171: 710.23 | F171: 703.77 | G171: 695.28 | H171: 725.18 | I171: 733.67 | J171: 740.13 | K171: 727.2 | L171: 712.25 | M171: 2.12376
A172: 162 | B172: FORTIS | C172: 445.75 | D172: 447.30 | E172: 441.70 | F172: 437.65 | G172: 432.05 | H172: 451.35 | I172: 456.95 | J172: 461.00 | K172: 452.9 | L172: 443.25 | M172: 9.31187
A173: 163 | B173: GRINFRA | C173: 1182.65 | D173: 1190.88 | E173: 1151.77 | F173: 1120.88 | G173: 1081.77 | H173: 1221.77 | I173: 1260.88 | J173: 1291.77 | K173: 1230 | L173: 1160 | M173: 0.93932
A174: 164 | B174: GAIL | C174: 180.3 | D174: 181.68 | E174: 177.92 | F174: 175.53 | G174: 171.77 | H174: 184.07 | I174: 187.83 | J174: 190.22 | K174: 185.45 | L174: 179.3 | M174: 136.7188
A175: 165 | B175: GMMPFAUDLR | C175: 1352.4 | D175: 1354.10 | E175: 1343.30 | F175: 1334.20 | G175: 1323.40 | H175: 1363.20 | I175: 1374.00 | J175: 1383.10 | K175: 1364.9 | L175: 1345 | M175: 1.20339
A176: 166 | B176: GMRINFRA | C176: 86.25 | D176: 87.23 | E176: 83.57 | F176: 80.88 | G176: 77.22 | H176: 89.92 | I176: 93.58 | J176: 96.27 | K176: 90.9 | L176: 84.55 | M176: 638.02448
A177: 167 | B177: GALAXYSURF | C177: 2525.4 | D177: 2532.77 | E177: 2506.63 | F177: 2487.87 | G177: 2461.73 | H177: 2551.53 | I177: 2577.67 | J177: 2596.43 | K177: 2558.9 | L177: 2514 | M177: 0.09759
A178: 168 | B178: GICRE | C178: 425.2 | D178: 428.22 | E178: 406.98 | F178: 388.77 | G178: 367.53 | H178: 446.43 | I178: 467.67 | J178: 485.88 | K178: 449.45 | L178: 410 | M178: 169.92674
A179: 169 | B179: GILLETTE | C179: 6509.9 | D179: 6523.55 | E179: 6471.35 | F179: 6432.80 | G179: 6380.60 | H179: 6562.10 | I179: 6614.30 | J179: 6652.85 | K179: 6575.75 | L179: 6485 | M179: 0.1276
A180: 170 | B180: GLAND | C180: 1952.7 | D180: 1955.90 | E180: 1931.80 | F180: 1910.90 | G180: 1886.80 | H180: 1976.80 | I180: 2000.90 | J180: 2021.80 | K180: 1980 | L180: 1935 | M180: 1.39572
A181: 171 | B181: GLAXO | C181: 2238.35 | D181: 2253.20 | E181: 2194.25 | F181: 2150.15 | G181: 2091.20 | H181: 2297.30 | I181: 2356.25 | J181: 2400.35 | K181: 2312.15 | L181: 2209.1 | M181: 0.7843
A182: 172 | B182: GLS | C182: 876.85 | D182: 877.30 | E182: 869.55 | F182: 862.25 | G182: 854.50 | H182: 884.60 | I182: 892.35 | J182: 899.65 | K182: 885.05 | L182: 870 | M182: 0.47082
A183: 173 | B183: GLENMARK | C183: 900.6 | D183: 898.90 | E183: 886.80 | F183: 873.00 | G183: 860.90 | H183: 912.70 | I183: 924.80 | J183: 938.60 | K183: 911 | L183: 885.1 | M183: 17.78463
A184: 174 | B184: MEDANTA | C184: 1432.25 | D184: 1429.02 | E184: 1378.03 | F184: 1323.82 | G184: 1272.83 | H184: 1483.23 | I184: 1534.22 | J184: 1588.43 | K184: 1480 | L184: 1374.8 | M184: 6.78598
A185: 175 | B185: GOCOLORS | C185: 1167.2 | D185: 1160.77 | E185: 1149.53 | F185: 1131.87 | G185: 1120.63 | H185: 1178.43 | I185: 1189.67 | J185: 1207.33 | K185: 1172 | L185: 1143.1 | M185: 0.20183
A186: 176 | B186: GPIL | C186: 774.3 | D186: 780.80 | E186: 762.50 | F186: 750.70 | G186: 732.40 | H186: 792.60 | I186: 810.90 | J186: 822.70 | K186: 799.1 | L186: 769 | M186: 3.09425
A187: 177 | B187: GODFRYPHLP | C187: 2637.15 | D187: 2670.88 | E187: 2572.32 | F187: 2507.48 | G187: 2408.92 | H187: 2735.72 | I187: 2834.28 | J187: 2899.12 | K187: 2769.45 | L187: 2606.05 | M187: 2.11032
A188: 178 | B188: GODREJCP | C188: 1236.1 | D188: 1236.90 | E188: 1223.80 | F188: 1211.50 | G188: 1198.40 | H188: 1249.20 | I188: 1262.30 | J188: 1274.60 | K188: 1250 | L188: 1224.6 | M188: 8.75759
A189: 179 | B189: GODREJIND | C189: 801.05 | D189: 805.88 | E189: 791.07 | F189: 781.08 | G189: 766.27 | H189: 815.87 | I189: 830.68 | J189: 840.67 | K189: 820.7 | L189: 795.9 | M189: 1.75386
A190: 180 | B190: GODREJPROP | C190: 2343.35 | D190: 2337.90 | E190: 2306.80 | F190: 2270.25 | G190: 2239.15 | H190: 2374.45 | I190: 2405.55 | J190: 2442.10 | K190: 2369 | L190: 2301.35 | M190: 7.35873
A191: 181 | B191: GRANULES | C191: 457.35 | D191: 460.98 | E191: 450.97 | F191: 444.58 | G191: 434.57 | H191: 467.37 | I191: 477.38 | J191: 483.77 | K191: 471 | L191: 454.6 | M191: 21.42273
A192: 182 | B192: GRAPHITE | C192: 545.5 | D192: 549.75 | E192: 533.50 | F192: 521.50 | G192: 505.25 | H192: 561.75 | I192: 578.00 | J192: 590.00 | K192: 566 | L192: 537.75 | M192: 6.04513
A193: 183 | B193: GRASIM | C193: 2194 | D193: 2198.68 | E193: 2175.37 | F193: 2156.73 | G193: 2133.42 | H193: 2217.32 | I193: 2240.63 | J193: 2259.27 | K193: 2222 | L193: 2180.05 | M193: 7.65529
A194: 184 | B194: GESHIP | C194: 920.1 | D194: 926.73 | E194: 910.37 | F194: 900.63 | G194: 884.27 | H194: 936.47 | I194: 952.83 | J194: 962.57 | K194: 943.1 | L194: 917 | M194: 1.66736
A195: 185 | B195: GRINDWELL | C195: 2160.1 | D195: 2162.62 | E195: 2137.53 | F195: 2114.97 | G195: 2089.88 | H195: 2185.18 | I195: 2210.27 | J195: 2232.83 | K195: 2187.7 | L195: 2140.05 | M195: 1.285
A196: 186 | B196: GUJALKALI | C196: 815.15 | D196: 815.68 | E196: 808.37 | F196: 801.58 | G196: 794.27 | H196: 822.47 | I196: 829.78 | J196: 836.57 | K196: 823 | L196: 808.9 | M196: 0.83285
A197: 187 | B197: GAEL | C197: 403.5 | D197: 400.80 | E197: 389.60 | F197: 375.70 | G197: 364.50 | H197: 414.70 | I197: 425.90 | J197: 439.80 | K197: 412 | L197: 386.9 | M197: 39.40689
A198: 188 | B198: FLUOROCHEM | C198: 3536.95 | D198: 3535.83 | E198: 3521.12 | F198: 3505.28 | G198: 3490.57 | H198: 3551.67 | I198: 3566.38 | J198: 3582.22 | K198: 3550.55 | L198: 3520 | M198: 0.52299
A199: 189 | B199: GUJGASLTD | C199: 565.55 | D199: 563.10 | E199: 556.45 | F199: 547.35 | G199: 540.70 | H199: 572.20 | I199: 578.85 | J199: 587.95 | K199: 569.75 | L199: 554 | M199: 15.32012
A200: 190 | B200: GNFC | C200: 668.05 | D200: 672.02 | E200: 661.03 | F200: 654.02 | G200: 643.03 | H200: 679.03 | I200: 690.02 | J200: 697.03 | K200: 683 | L200: 665 | M200: 7.50228
A201: 191 | B201: GPPL | C201: 198.4 | D201: 201.25 | E201: 194.70 | F201: 191.00 | G201: 184.45 | H201: 204.95 | I201: 211.50 | J201: 215.20 | K201: 207.8 | L201: 197.55 | M201: 75.3195
A202: 192 | B202: GSFC | C202: 227.15 | D202: 231.02 | E202: 222.33 | F202: 217.52 | G202: 208.83 | H202: 235.83 | I202: 244.52 | J202: 249.33 | K202: 239.7 | L202: 226.2 | M202: 48.63297
A203: 193 | B203: GSPL | C203: 373.75 | D203: 370.68 | E203: 365.37 | F203: 356.98 | G203: 351.67 | H203: 379.07 | I203: 384.38 | J203: 392.77 | K203: 376 | L203: 362.3 | M203: 18.21214
A204: 194 | B204: HEG | C204: 1625.7 | D204: 1638.22 | E204: 1598.48 | F204: 1571.27 | G204: 1531.53 | H204: 1665.43 | I204: 1705.17 | J204: 1732.38 | K204: 1677.95 | L204: 1611 | M204: 1.68148
A205: 195 | B205: HCLTECH | C205: 1636.3 | D205: 1644.38 | E205: 1623.97 | F205: 1611.63 | G205: 1591.22 | H205: 1656.72 | I205: 1677.13 | J205: 1689.47 | K205: 1664.8 | L205: 1632.05 | M205: 28.90991
A206: 196 | B206: HDFCAMC | C206: 3741.35 | D206: 3759.05 | E206: 3708.30 | F206: 3675.25 | G206: 3624.50 | H206: 3792.10 | I206: 3842.85 | J206: 3875.90 | K206: 3809.8 | L206: 3726 | M206: 2.35442
... 319 more rows

Sheet Bulk Deals
E6: Back To Main Page
A7: Subject : | B7: BULK DEAL | D7: =Main!B10 -> 2024-02-22
A9: Date | B9: Scrip code | C9: Scrip Name | D9: Client Name | E9: Buy / Sell | F9: Quantity Traded | G9: Trade Price / Wt.Avg.trade price | H9: Exchange
A10: 2024-02-21 | B10: 542580 | C10: AARTECH | D10: PRIYA KABRA | E10: BUY | F10: 143,746 | G10: 183.36 | H10: BSE
A11: 2024-02-21 | B11: 542580 | C11: AARTECH | D11: PRIYA KABRA | E11: SELL | F11: 13,502 | G11: 184.4 | H11: BSE
A12: 2024-02-21 | B12: 542580 | C12: AARTECH | D12: HENSEX SECURITIES PVT LTD | E12: SELL | F12: 70,492 | G12: 184.01 | H12: BSE
A13: 2024-02-21 | B13: 542580 | C13: AARTECH | D13: HENSEX SECURITIES PVT LTD | E13: BUY | F13: 12,677 | G13: 183.6 | H13: BSE
A14: 2024-02-21 | B14: 513119 | C14: ABCGAS | D14: SYAMALPRASAD DWARKAPRASAD SHOREWALA | E14: SELL | F14: 30,000 | G14: 54.7 | H14: BSE
A15: 2024-02-21 | B15: 513119 | C15: ABCGAS | D15: ADVANCED ENERGY SYSTEMS LLP | E15: BUY | F15: 12,000 | G15: 54.7 | H15: BSE
A16: 2024-02-21 | B16: 513119 | C16: ABCGAS | D16: ARJUN LEASING AND FINANCE PVT LTD . | E16: BUY | F16: 10,000 | G16: 54.7 | H16: BSE
A17: 2024-02-21 | B17: 507852 | C17: ADDIND | D17: NEHA MOHIT JALAN | E17: SELL | F17: 100,000 | G17: 70.68 | H17: BSE
A18: 2024-02-21 | B18: 538351 | C18: AFEL | D18: ANUPREET KAUR SARABJIT KEER | E18: SELL | F18: 73,510 | G18: 6.95 | H18: BSE
A19: 2024-02-21 | B19: 539277 | C19: ALSTONE | D19: AVAIL FINANCIAL SERVICES LIMITED | E19: SELL | F19: 23,660,000 | G19: 0.91 | H19: BSE
A20: 2024-02-21 | B20: 539277 | C20: ALSTONE | D20: SAHASTRAA ADVISORS PRIVATE LIMITED | E20: BUY | F20: 14,050,000 | G20: 0.9 | H20: BSE
A21: 2024-02-21 | B21: 539277 | C21: ALSTONE | D21: TOPGAIN FINANCE PRIVATE LIMITED | E21: SELL | F21: 2,968,826 | G21: 0.9 | H21: BSE
A22: 2024-02-21 | B22: 539277 | C22: ALSTONE | D22: TOPGAIN FINANCE PRIVATE LIMITED | E22: BUY | F22: 10,000,000 | G22: 0.91 | H22: BSE
A23: 2024-02-21 | B23: 539277 | C23: ALSTONE | D23: MULTIPLIER SHARE & STOCK ADVISORS PRIVATE LIMITED | E23: SELL | F23: 17,534,826 | G23: 0.9 | H23: BSE
A24: 2024-02-21 | B24: 539277 | C24: ALSTONE | D24: MULTIPLIER SHARE & STOCK ADVISORS PRIVATE LIMITED | E24: BUY | F24: 14,709,564 | G24: 0.89 | H24: BSE
A25: 2024-02-21 | B25: 543439 | C25: BRANDBUCKT | D25: JR SEAMLESS PRIVATE LIMITED | E25: BUY | F25: 142,000 | G25: 20.29 | H25: BSE
A26: 2024-02-21 | B26: 543439 | C26: BRANDBUCKT | D26: YOGESH JOTIRAM KALE | E26: SELL | F26: 158,000 | G26: 20.37 | H26: BSE
A27: 2024-02-21 | B27: 530249 | C27: BRIDGESE | D27: B.M. HOUSE (INDIA) LIMITED | E27: SELL | F27: 40,000 | G27: 18.85 | H27: BSE
A28: 2024-02-21 | B28: 530249 | C28: BRIDGESE | D28: HARSHAD AMRUTLAL PANCHAL | E28: BUY | F28: 60,516 | G28: 18.85 | H28: BSE
A29: 2024-02-21 | B29: 539598 | C29: CGFL | D29: UDIT KATARIA | E29: BUY | F29: 71,000 | G29: 140 | H29: BSE
A30: 2024-02-21 | B30: 539598 | C30: CGFL | D30: AMAYSHA TEXTILES PRIVATE LIMITED | E30: SELL | F30: 70,000 | G30: 140 | H30: BSE
A31: 2024-02-21 | B31: 513005 | C31: CHROME | D31: SAURASHTRA SOLID INDUST P VT LTD | E31: SELL | F31: 28,001 | G31: 39.17 | H31: BSE
A32: 2024-02-21 | B32: 531278 | C32: ELIXIR | D32: VALIA BROTHERS PVT LTD | E32: BUY | F32: 30,000 | G32: 83.34 | H32: BSE
A33: 2024-02-21 | B33: 512441 | C33: ENBETRD | D33: NAREN PANDEY | E33: SELL | F33: 80,000 | G33: 15.41 | H33: BSE
A34: 2024-02-21 | B34: 512441 | C34: ENBETRD | D34: MULTIPLIER SHARE & STOCK ADVISORS PRIVATE LIMITED | E34: SELL | F34: 205,247 | G34: 15.55 | H34: BSE
A35: 2024-02-21 | B35: 512441 | C35: ENBETRD | D35: MULTIPLIER SHARE & STOCK ADVISORS PRIVATE LIMITED | E35: BUY | F35: 332,553 | G35: 15.41 | H35: BSE
A36: 2024-02-21 | B36: 544094 | C36: EUPHORIAIT | D36: SAHASTRAA ADVISORS PRIVATE LIMITED | E36: SELL | F36: 16,800 | G36: 76.62 | H36: BSE
A37: 2024-02-21 | B37: 544094 | C37: EUPHORIAIT | D37: MANSI SHARE & STOCK ADVISORS PRIVATE LIMITED | E37: SELL | F37: 30,000 | G37: 75.79 | H37: BSE
A38: 2024-02-21 | B38: 542802 | C38: GALACTICO | D38: VIPUL DILEEP LATHI | E38: SELL | F38: 900,000 | G38: 4.82 | H38: BSE
A39: 2024-02-21 | B39: 530615 | C39: GARGFUR | D39: SECUROCROP SECURITIES INDIA PRIVATE LIMTED | E39: SELL | F39: 42,681 | G39: 355.65 | H39: BSE
A40: 2024-02-21 | B40: 530615 | C40: GARGFUR | D40: MASTER CAPITAL SERVICES LIMITED | E40: BUY | F40: 42,659 | G40: 355.65 | H40: BSE
A41: 2024-02-21 | B41: 542918 | C41: GIANLIFE | D41: DEVENDRA SUBHASH MAKODE | E41: BUY | F41: 55,000 | G41: 24.75 | H41: BSE
A42: 2024-02-21 | B42: 513536 | C42: GNRL | D42: RAVI OMPRAKASH AGRAWAL | E42: SELL | F42: 2,500,000 | G42: 27 | H42: BSE
A43: 2024-02-21 | B43: 513536 | C43: GNRL | D43: RAJASTHAN GASES LIMITED | E43: BUY | F43: 2,500,000 | G43: 27 | H43: BSE
A44: 2024-02-21 | B44: 544108 | C44: GPSL | D44: BIREN PRAVIN GANDHI | E44: BUY | F44: 129,600 | G44: 170.15 | H44: BSE
A45: 2024-02-21 | B45: 544108 | C45: GPSL | D45: SHRENI SHARES LTD | E45: SELL | F45: 126,000 | G45: 165.72 | H45: BSE
A46: 2024-02-21 | B46: 541983 | C46: INNOVATIVE | D46: IBAD MAQSOOD SHAIKH | E46: SELL | F46: 90,000 | G46: 28 | H46: BSE
A47: 2024-02-21 | B47: 538794 | C47: JETINFRA | D47: RAJUL SHAH | E47: SELL | F47: 28,000 | G47: 9.25 | H47: BSE
A48: 2024-02-21 | B48: 543286 | C48: JETMALL | D48: R D SHAH STOCK BROKERS PRIVATE LIMITED | E48: BUY | F48: 84,000 | G48: 16.75 | H48: BSE
A49: 2024-02-21 | B49: 543286 | C49: JETMALL | D49: PURVI KETAN SHAH | E49: SELL | F49: 84,000 | G49: 16.75 | H49: BSE
A50: 2024-02-21 | B50: 521238 | C50: KDL | D50: APURVAJAIN | E50: SELL | F50: 20,000 | G50: 96.67 | H50: BSE
A51: 2024-02-21 | B51: 521238 | C51: KDL | D51: GLASTON MARIO MENEZES | E51: BUY | F51: 3,000 | G51: 96.67 | H51: BSE
A52: 2024-02-21 | B52: 521238 | C52: KDL | D52: MILI MAHENDRAKUAMR SHAH | E52: BUY | F52: 4,000 | G52: 96.67 | H52: BSE
A53: 2024-02-21 | B53: 543613 | C53: MAFIA | D53: VIPINKHANDELWAL | E53: SELL | F53: 28,000 | G53: 12.51 | H53: BSE
A54: 2024-02-21 | B54: 507621 | C54: MLKFOOD | D54: JUPITER SOUTH ASIA INVESTMENT COMPANY LIMITED | E54: SELL | F54: 58,154 | G54: 540.01 | H54: BSE
A55: 2024-02-21 | B55: 507621 | C55: MLKFOOD | D55: THE JUPITER GLOBAL FUND-JUPITER INDIA SELECT | E55: BUY | F55: 58,154 | G55: 540.53 | H55: BSE
A56: 2024-02-21 | B56: 535910 | C56: MMLF | D56: OSWAL INDUSTRIES LIMITED | E56: SELL | F56: 85,000 | G56: 105 | H56: BSE
A57: 2024-02-21 | B57: 539767 | C57: MNIL | D57: SAHIL KHANNA | E57: BUY | F57: 40,000 | G57: 17.1 | H57: BSE
A58: 2024-02-21 | B58: 539767 | C58: MNIL | D58: RANGANATHAN R NAIR | E58: SELL | F58: 17,788 | G58: 17.08 | H58: BSE
A59: 2024-02-21 | B59: 537291 | C59: NATHBIOGEN | D59: AGRI TECH INDIA LIMITED | E59: SELL | F59: 504,000 | G59: 217 | H59: BSE
A60: 2024-02-21 | B60: 537291 | C60: NATHBIOGEN | D60: AKASH FARMS LLP | E60: BUY | F60: 504,000 | G60: 217 | H60: BSE
A61: 2024-02-21 | B61: 530557 | C61: NCLRESE | D61: VIBRANT SECURITIES PRIVATE LIMITED | E61: BUY | F61: 6,219,229 | G61: 0.84 | H61: BSE
A62: 2024-02-21 | B62: 530557 | C62: NCLRESE | D62: VIBRANT SECURITIES PRIVATE LIMITED | E62: SELL | F62: 8,086,092 | G62: 0.83 | H62: BSE
A63: 2024-02-21 | B63: 532340 | C63: OMNIAX | D63: AGROFTER VENTURES PRIVATE LIMITED | E63: BUY | F63: 102,537 | G63: 6.32 | H63: BSE
A64: 2024-02-21 | B64: 532340 | C64: OMNIAX | D64: SOBHA BALKRISHNAN POOPARAMBIL | E64: SELL | F64: 71,050 | G64: 6.32 | H64: BSE
A65: 2024-02-21 | B65: 540386 | C65: ONTIC | D65: RAGHAV KAMALAKSH RAO | E65: BUY | F65: 636,504 | G65: 0.73 | H65: BSE
A66: 2024-02-21 | B66: 540198 | C66: OSIAJEE | D66: REEMA SAROYA | E66: SELL | F66: 39,164 | G66: 36.11 | H66: BSE
A67: 2024-02-21 | B67: 538742 | C67: PANABYTE | D67: MUSAHUSAINJETHVA | E67: BUY | F67: 22,000 | G67: 26.62 | H67: BSE
A68: 2024-02-21 | B68: 538742 | C68: PANABYTE | D68: PACIFIC VENTURES LLP | E68: BUY | F68: 100,000 | G68: 26.62 | H68: BSE
A69: 2024-02-21 | B69: 538742 | C69: PANABYTE | D69: CORPWIS ADVISORS PRIVATE LIMITED | E69: SELL | F69: 85,200 | G69: 26.62 | H69: BSE
A70: 2024-02-21 | B70: 538742 | C70: PANABYTE | D70: RADHASOAMI RESOURCES LIMITED | E70: SELL | F70: 78,742 | G70: 26.62 | H70: BSE
A71: 2024-02-21 | B71: 539469 | C71: PANORAMA | D71: SAMEER MAGAN BHUJBAL | E71: BUY | F71: 71,350 | G71: 693.33 | H71: BSE
A72: 2024-02-21 | B72: 524136 | C72: PCCOSMA | D72: KIFS ENTERPRISE | E72: SELL | F72: 2,600 | G72: 478.99 | H72: BSE
A73: 2024-02-21 | B73: 524136 | C73: PCCOSMA | D73: KIFS ENTERPRISE | E73: BUY | F73: 19,752 | G73: 525.75 | H73: BSE
A74: 2024-02-21 | B74: 531768 | C74: POLYMED | D74: LIGHTHOUSE INDIA III EQUITY INVESTORSLIMITED | E74: SELL | F74: 1,290,939 | G74: 1550.06 | H74: BSE
A75: 2024-02-21 | B75: 526773 | C75: PRESSURS | D75: HANSABEN BHARATKUMAR PATEL | E75: BUY | F75: 1,507,700 | G75: 10.45 | H75: BSE
A76: 2024-02-21 | B76: 526773 | C76: PRESSURS | D76: TOPGAIN FINANCE PRIVATE LIMITED | E76: SELL | F76: 758,007 | G76: 11.53 | H76: BSE
A77: 2024-02-21 | B77: 526773 | C77: PRESSURS | D77: TOPGAIN FINANCE PRIVATE LIMITED | E77: BUY | F77: 758,007 | G77: 10.92 | H77: BSE
A78: 2024-02-21 | B78: 526773 | C78: PRESSURS | D78: SETU SECURITIES PVT. LTD. | E78: SELL | F78: 1,000,000 | G78: 11.53 | H78: BSE
A79: 2024-02-21 | B79: 500338 | C79: PRSMJOHNSN | D79: THE JUPITER GLOBAL FUND-JUPITER INDIA SELECT | E79: BUY | F79: 2,966,990 | G79: 170.6 | H79: BSE
A80: 2024-02-21 | B80: 500338 | C80: PRSMJOHNSN | D80: JUPITER SOUTH ASIA INVESTMENT COMPANY LIMITED | E80: SELL | F80: 2,966,990 | G80: 170.6 | H80: BSE
A81: 2024-02-21 | B81: 544091 | C81: QLL | D81: AMIT KUMAR JAIN HUF | E81: SELL | F81: 39,600 | G81: 182.65 | H81: BSE
A82: 2024-02-21 | B82: 544091 | C82: QLL | D82: AMIT KUMAR JAIN HUF | E82: BUY | F82: 39,600 | G82: 182.45 | H82: BSE
A83: 2024-02-21 | B83: 544091 | C83: QLL | D83: XTENDED BUSINESS REPORTING LIMITED | E83: SELL | F83: 18,000 | G83: 178 | H83: BSE
A84: 2024-02-21 | B84: 544091 | C84: QLL | D84: XTENDED BUSINESS REPORTING LIMITED | E84: BUY | F84: 42,000 | G84: 171.71 | H84: BSE
A85: 2024-02-21 | B85: 532124 | C85: RELIABVEN | D85: MAHENDRA GIRDHARILAL WADHWANI | E85: BUY | F85: 106,804 | G85: 26.9 | H85: BSE
A86: 2024-02-21 | B86: 504341 | C86: RELTD | D86: ROMARSOL LIMITED | E86: SELL | F86: 1,000,000 | G86: 85.81 | H86: BSE
A87: 2024-02-21 | B87: 530271 | C87: RICHUNV | D87: KAVITA AGARWAL | E87: SELL | F87: 55,000 | G87: 19 | H87: BSE
A88: 2024-02-21 | B88: 530251 | C88: RISAINTL | D88: MANISH GYANDCHAND MEHTA | E88: SELL | F88: 909,332 | G88: 0.76 | H88: BSE
A89: 2024-02-21 | B89: 542145 | C89: RONI | D89: SHAILESH SURESH BAJAJ | E89: BUY | F89: 41,400 | G89: 38.88 | H89: BSE
A90: 2024-02-21 | B90: 542145 | C90: RONI | D90: PAVANSOPANMAHAJAN | E90: BUY | F90: 50,400 | G90: 38.88 | H90: BSE
A91: 2024-02-21 | B91: 542145 | C91: RONI | D91: AJAY BHAGWAT THAKARE | E91: BUY | F91: 73,800 | G91: 38.88 | H91: BSE
A92: 2024-02-21 | B92: 542145 | C92: RONI | D92: ARCHANA VEERENDRASINH PAWAR | E92: SELL | F92: 120,600 | G92: 38.88 | H92: BSE
A93: 2024-02-21 | B93: 542145 | C93: RONI | D93: KISHOR RAGHUNATH DIXIT | E93: SELL | F93: 28,800 | G93: 38.88 | H93: BSE
A94: 2024-02-21 | B94: 544083 | C94: SHREE | D94: MANSI SHARE & STOCK ADVISORS PRIVATE LIMITED | E94: BUY | F94: 20,000 | G94: 414.65 | H94: BSE
A95: 2024-02-21 | B95: 538975 | C95: SHREESEC | D95: MULTIPLIER SHARE & STOCK ADVISORS PRIVATE LIMITED | E95: SELL | F95: 10,130,437 | G95: 0.42 | H95: BSE
A96: 2024-02-21 | B96: 538975 | C96: SHREESEC | D96: SETU SECURITIES PVT. LTD. | E96: SELL | F96: 7,000,000 | G96: 0.42 | H96: BSE
A97: 2024-02-21 | B97: 538975 | C97: SHREESEC | D97: CAMELLIA TRADEX PRIVATE LIMITED | E97: SELL | F97: 4,807,825 | G97: 0.43 | H97: BSE
A98: 2024-02-21 | B98: 538975 | C98: SHREESEC | D98: CAMELLIA TRADEX PRIVATE LIMITED | E98: BUY | F98: 5,000,000 | G98: 0.42 | H98: BSE
A99: 2024-02-21 | B99: 543745 | C99: SVS | D99: FINVENTION FINVEST PRIVATE LIMITED | E99: SELL | F99: 180,000 | G99: 8.79 | H99: BSE
A100: 2024-02-21 | B100: 543745 | C100: SVS | D100: SUNNY SURENDRAKUMAR SHARMA | E100: BUY | F100: 180,000 | G100: 8.79 | H100: BSE
A101: 2024-02-21 | B101: 539310 | C101: THINKINK | D101: TUSHARKUMAR ASHOKBHAI SOLANKI | E101: BUY | F101: 181,500 | G101: 85.36 | H101: BSE
A102: 2024-02-21 | B102: 539310 | C102: THINKINK | D102: MUNISH KUMAR | E102: SELL | F102: 179,000 | G102: 85.25 | H102: BSE
A103: 2024-02-21 | B103: 503663 | C103: TILAK | D103: BANAS FINANCE LIMITED | E103: SELL | F103: 2,449,592 | G103: 9.31 | H103: BSE
A104: 2024-02-21 | B104: 541338 | C104: UHZAVERI | D104: HITESH MAHENDRAKUMAR SHAH | E104: SELL | F104: 250,000 | G104: 46.37 | H104: BSE
A105: 2024-02-21 | B105: 541338 | C105: UHZAVERI | D105: KISHAN BHARATBHAI SUCHAK | E105: BUY | F105: 72,500 | G105: 46.35 | H105: BSE
A106: 2024-02-21 | B106: 541338 | C106: UHZAVERI | D106: ANJNA DILIPBHAI SUCHAK | E106: BUY | F106: 72,500 | G106: 46.37 | H106: BSE
A107: 2024-02-21 | B107: 541338 | C107: UHZAVERI | D107: VINABHEN ATULKUMAR SHAH | E107: BUY | F107: 53,802 | G107: 46.5 | H107: BSE
A108: 2024-02-21 | B108: 541338 | C108: UHZAVERI | D108: BHAGYESH DILIPKUMAR PANDYA | E108: SELL | F108: 68,160 | G108: 46.5 | H108: BSE
A109: 2024-02-21 | B109: 532372 | C109: VIRINCHI | D109: MAGNUM HEALTH AND SAFETY PRIVATE LIMTED | E109: BUY | F109: 500,000 | G109: 43.76 | H109: BSE
A110: 2024-02-21 | B110: AARTECH | C110: Aartech Solonics Limited | D110: HENSEX SECURITIES PRIVATE LIMITED | E110: BUY | F110: 74,149 | G110: 182.52 | H110: NSE
A111: 2024-02-21 | B111: AARTECH | C111: Aartech Solonics Limited | D111: KABRA PRIYA | E111: BUY | F111: 29,608 | G111: 182.48 | H111: NSE
A112: 2024-02-21 | B112: AKSHARCHEM | C112: AksharChem India Limited | D112: NK SECURITIES RESEARCH PRIVATE LIMITED | E112: BUY | F112: 48,570 | G112: 305.93 | H112: NSE
A113: 2024-02-21 | B113: AVG | C113: AVG Logistics Limited | D113: GRAVITON RESEARCH CAPITAL LLP | E113: BUY | F113: 60,164 | G113: 506.44 | H113: NSE
A114: 2024-02-21 | B114: BAJAJCON | C114: Bajaj Corp Limited | D114: GRAVITON RESEARCH CAPITAL LLP | E114: BUY | F114: 774,897 | G114: 242.94 | H114: NSE
A115: 2024-02-21 | B115: BGRENERGY | C115: BGR Energy Systems Ltd | D115: CITADEL SECURITIES INDIA MARKETS PRIVATE LIMITED | E115: BUY | F115: 521,676 | G115: 107.66 | H115: NSE
A116: 2024-02-21 | B116: CAMPUS | C116: Campus Activewear Limited | D116: GRAVITON RESEARCH CAPITAL LLP | E116: BUY | F116: 2,128,805 | G116: 266.3 | H116: NSE
A117: 2024-02-21 | B117: CAMPUS | C117: Campus Activewear Limited | D117: SBI MUTUAL FUND | E117: BUY | F117: 4,065,000 | G117: 245 | H117: NSE
A118: 2024-02-21 | B118: COUNCODOS | C118: Country Condo's Limited | D118: YOGESH KUMAR SHUKLA | E118: BUY | F118: 388,100 | G118: 5.98 | H118: NSE
A119: 2024-02-21 | B119: DEVYANI | C119: Devyani International Ltd | D119: NIPPON INDIA MUTUAL FUND | E119: BUY | F119: 8,000,000 | G119: 164.1 | H119: NSE
A120: 2024-02-21 | B120: DISHTV | C120: Dish TV India Limited | D120: GRAVITON RESEARCH CAPITAL LLP | E120: BUY | F120: 9,531,826 | G120: 23.84 | H120: NSE
A121: 2024-02-21 | B121: DISHTV | C121: Dish TV India Limited | D121: HRTI PRIVATE LIMITED | E121: BUY | F121: 15,591,772 | G121: 23.89 | H121: NSE
A122: 2024-02-21 | B122: EXXARO | C122: Exxaro Tiles Limited | D122: YACOOBALI AIYUB MOHAMMED | E122: BUY | F122: 211,050 | G122: 116.92 | H122: NSE
A123: 2024-02-21 | B123: GOCLCORP | C123: Gulf Oil Corp. Ltd. | D123: DREAM ACHIEVER CONSULTANCY SERVICES PRIVATE LIMITED | E123: BUY | F123: 380,770 | G123: 494.97 | H123: NSE
A124: 2024-02-21 | B124: HEADSUP | C124: Heads UP Ventures Limited | D124: SABALE HARSHAWARDHAN HANMANT | E124: BUY | F124: 200,000 | G124: 17.45 | H124: NSE
A125: 2024-02-21 | B125: HFCL | C125: HFCL Limited | D125: HRTI PRIVATE LIMITED | E125: BUY | F125: 8,846,901 | G125: 112.64 | H125: NSE
A126: 2024-02-21 | B126: IBREALEST | C126: Indiabulls Real Estate Li | D126: HRTI PRIVATE LIMITED | E126: BUY | F126: 3,504,834 | G126: 121.39 | H126: NSE
A127: 2024-02-21 | B127: IPL | C127: India Pesticides Limited | D127: YASHWI SECURITIES PVT. LTD. | E127: BUY | F127: 579,469 | G127: 404.51 | H127: NSE
A128: 2024-02-21 | B128: IPL | C128: India Pesticides Limited | D128: VT CAPITAL MARKET PVT LTD | E128: BUY | F128: 895,858 | G128: 403.72 | H128: NSE
A129: 2024-02-21 | B129: LAL | C129: Lorenzini Apparels Ltd | D129: VIKAS LIFECARE LIMITED | E129: BUY | F129: 70,012 | G129: 499.29 | H129: NSE
A130: 2024-02-21 | B130: LAXMICOT | C130: Laxmi Cotspin Limited | D130: MITTAL PUNEET | E130: BUY | F130: 158,015 | G130: 34.62 | H130: NSE
A131: 2024-02-21 | B131: MHHL | C131: Mohini Health&Hygiene Ltd | D131: SHREYASKAR CHAUDHARY | E131: BUY | F131: 342,000 | G131: 58.15 | H131: NSE
A132: 2024-02-21 | B132: MTNL | C132: Maha Tel Nigam Ltd. | D132: HRTI PRIVATE LIMITED | E132: BUY | F132: 1,371,530 | G132: 46.18 | H132: NSE
A133: 2024-02-21 | B133: NDRINVIT | C133: NDR INVIT Trust | D133: SUDHA GOPALAKRISHNAN | E133: BUY | F133: 2,400,000 | G133: 103 | H133: NSE
A134: 2024-02-21 | B134: ROHLTD | C134: Royal Orchid Hotels Limit | D134: GRAVITON RESEARCH CAPITAL LLP | E134: BUY | F134: 167,877 | G134: 435.13 | H134: NSE
A135: 2024-02-21 | B135: SARVESHWAR | C135: Sarveshwar Foods Limited | D135: SETU SECURITIES PVT LTD | E135: BUY | F135: 578,757 | G135: 12.3 | H135: NSE
A136: 2024-02-21 | B136: SARVESHWAR | C136: Sarveshwar Foods Limited | D136: MANSI SHARE AND STOCK ADVISORS PVT LTD | E136: BUY | F136: 2,500,005 | G136: 12.21 | H136: NSE
A137: 2024-02-21 | B137: SARVESHWAR | C137: Sarveshwar Foods Limited | D137: MULTIPLIER SHARE & STOCK ADVISORS PRIVATE LIMITED | E137: BUY | F137: 4,236,540 | G137: 12.13 | H137: NSE
A138: 2024-02-21 | B138: SHILPAMED | C138: Shilpa Medicare Ltd | D138: GRAVITON RESEARCH CAPITAL LLP | E138: BUY | F138: 482,523 | G138: 443.95 | H138: NSE
A139: 2024-02-21 | B139: SNOWMAN | C139: Snowman Logistics Ltd. | D139: HRTI PRIVATE LIMITED | E139: BUY | F139: 758,710 | G139: 82 | H139: NSE
A140: 2024-02-21 | B140: SOLARA | C140: Solara Active Pha Sci Ltd | D140: GRAVITON RESEARCH CAPITAL LLP | E140: BUY | F140: 197,767 | G140: 482.12 | H140: NSE
A141: 2024-02-21 | B141: SOTAC | C141: Sotac Pharmaceuticals Ltd | D141: NAV CAPITAL VCC - NAV CAPITAL EMERGING STAR FUND | E141: BUY | F141: 73,200 | G141: 132.16 | H141: NSE
A142: 2024-02-21 | B142: TIJARIA | C142: Tijaria Polypipes Ltd | D142: HI GROWTH CORPORATE SERVICES PVT LTD | E142: BUY | F142: 521,870 | G142: 8.25 | H142: NSE
A143: 2024-02-21 | B143: TIJARIA | C143: Tijaria Polypipes Ltd | D143: HENSEX SECURITIES PRIVATE LIMITED | E143: BUY | F143: 640,005 | G143: 7.95 | H143: NSE
A144: 2024-02-21 | B144: TIJARIA | C144: Tijaria Polypipes Ltd | D144: PRASHANT GUPTA | E144: BUY | F144: 992,346 | G144: 7.92 | H144: NSE
A145: 2024-02-21 | B145: TIJARIA | C145: Tijaria Polypipes Ltd | D145: KAMLESH NAVINCHANDRA SHAH | E145: BUY | F145: 170,008 | G145: 7.9 | H145: NSE
A146: 2024-02-21 | B146: VETO | C146: Veto Switchgear Cable Ltd | D146: QE SECURITIES LLP | E146: BUY | F146: 117,129 | G146: 152.35 | H146: NSE
A147: 2024-02-21 | B147: VETO | C147: Veto Switchgear Cable Ltd | D147: AAKRAYA RESEARCH LLP | E147: BUY | F147: 123,717 | G147: 151.82 | H147: NSE
A148: 2024-02-21 | B148: VIKASECO | C148: Vikas EcoTech Limited | D148: VISHWAS FINCAP SERVICES PRIVATE LIMITED | E148: BUY | F148: 4,930,021 | G148: 4.54 | H148: NSE
A149: 2024-02-21 | B149: WTICAB | C149: Wise Travel India Limited | D149: YUGA STOCKS AND COMMODITIES PRIVATE LIMITED . | E149: BUY | F149: 200,000 | G149: 184.85 | H149: NSE
A150: 2024-02-21 | B150: WTICAB | C150: Wise Travel India Limited | D150: SAKET AGRAWAL | E150: BUY | F150: 206,000 | G150: 203.28 | H150: NSE
A151: 2024-02-21 | B151: ZEEL | C151: Zee Entertain. Enterp.Ltd | D151: HRTI PRIVATE LIMITED | E151: BUY | F151: 4,030,793 | G151: 170.79 | H151: NSE
A152: 2024-02-21 | B152: ZEEMEDIA | C152: Zee News Limited | D152: HRTI PRIVATE LIMITED | E152: BUY | F152: 5,634,947 | G152: 15.09 | H152: NSE
A153: 2024-02-21 | B153: ZEEMEDIA | C153: Zee News Limited | D153: CITADEL SECURITIES INDIA MARKETS PRIVATE LIMITED | E153: BUY | F153: 51,105 | G153: 15.47 | H153: NSE
A154: 2024-02-21 | B154: ZEEMEDIA | C154: Zee News Limited | D154: GRAVITON RESEARCH CAPITAL LLP | E154: BUY | F154: 3,264,366 | G154: 15.06 | H154: NSE
A155: 2024-02-21 | B155: ZUARIIND | C155: Zuari Industries Limited | D155: GRAVITON RESEARCH CAPITAL LLP | E155: BUY | F155: 178,789 | G155: 307.06 | H155: NSE
A156: 2024-02-21 | B156: AARTECH | C156: Aartech Solonics Limited | D156: HENSEX SECURITIES PRIVATE LIMITED | E156: SELL | F156: 15,958 | G156: 182.08 | H156: NSE
A157: 2024-02-21 | B157: AARTECH | C157: Aartech Solonics Limited | D157: KABRA PRIYA | E157: SELL | F157: 160,007 | G157: 182.75 | H157: NSE
A158: 2024-02-21 | B158: AKSHARCHEM | C158: AksharChem India Limited | D158: NK SECURITIES RESEARCH PRIVATE LIMITED | E158: SELL | F158: 48,570 | G158: 306.54 | H158: NSE
A159: 2024-02-21 | B159: AVG | C159: AVG Logistics Limited | D159: GRAVITON RESEARCH CAPITAL LLP | E159: SELL | F159: 60,164 | G159: 507.23 | H159: NSE
A160: 2024-02-21 | B160: BAJAJCON | C160: Bajaj Corp Limited | D160: GRAVITON RESEARCH CAPITAL LLP | E160: SELL | F160: 774,897 | G160: 243.07 | H160: NSE
A161: 2024-02-21 | B161: BGRENERGY | C161: BGR Energy Systems Ltd | D161: CITADEL SECURITIES INDIA MARKETS PRIVATE LIMITED | E161: SELL | F161: 65,986 | G161: 110.82 | H161: NSE
A162: 2024-02-21 | B162: BGRENERGY | C162: BGR Energy Systems Ltd | D162: SASIKALA RAGHUPATHY | E162: SELL | F162: 1,575,245 | G162: 108.48 | H162: NSE
A163: 2024-02-21 | B163: CAMPUS | C163: Campus Activewear Limited | D163: QRG INVESTMENTS AND HOLDINGS LIMITED | E163: SELL | F163: 4,065,000 | G163: 245 | H163: NSE
A164: 2024-02-21 | B164: CAMPUS | C164: Campus Activewear Limited | D164: GRAVITON RESEARCH CAPITAL LLP | E164: SELL | F164: 2,128,805 | G164: 266.52 | H164: NSE
A165: 2024-02-21 | B165: COUNCODOS | C165: Country Condo's Limited | D165: SANTOSH SHARMA | E165: SELL | F165: 540,064 | G165: 5.97 | H165: NSE
A166: 2024-02-21 | B166: DELPHIFX | C166: DELPHI WORLD MONEY LTD | D166: SETU SECURITIES PVT LTD | E166: SELL | F166: 58,463 | G166: 245.36 | H166: NSE
A167: 2024-02-21 | B167: DEVYANI | C167: Devyani International Ltd | D167: YUM RESTAURANTS INDIA PVT LTD | E167: SELL | F167: 53,083,330 | G167: 164.1 | H167: NSE
A168: 2024-02-21 | B168: DISHTV | C168: Dish TV India Limited | D168: HRTI PRIVATE LIMITED | E168: SELL | F168: 17,582,849 | G168: 23.95 | H168: NSE
A169: 2024-02-21 | B169: DISHTV | C169: Dish TV India Limited | D169: GRAVITON RESEARCH CAPITAL LLP | E169: SELL | F169: 9,531,826 | G169: 23.86 | H169: NSE
A170: 2024-02-21 | B170: EXXARO | C170: Exxaro Tiles Limited | D170: YACOOBALI AIYUB MOHAMMED | E170: SELL | F170: 356,853 | G170: 117.3 | H170: NSE
A171: 2024-02-21 | B171: GOCLCORP | C171: Gulf Oil Corp. Ltd. | D171: HINDUJA CAPITAL LIMITED | E171: SELL | F171: 500,000 | G171: 495 | H171: NSE
A172: 2024-02-21 | B172: GODHA | C172: Godha Cabcon Insulat Ltd | D172: ANKITA VISHAL SHAH | E172: SELL | F172: 4,000,000 | G172: 0.85 | H172: NSE
A173: 2024-02-21 | B173: HFCL | C173: HFCL Limited | D173: HRTI PRIVATE LIMITED | E173: SELL | F173: 9,171,528 | G173: 112.69 | H173: NSE
A174: 2024-02-21 | B174: IBREALEST | C174: Indiabulls Real Estate Li | D174: HRTI PRIVATE LIMITED | E174: SELL | F174: 3,534,964 | G174: 121.41 | H174: NSE
A175: 2024-02-21 | B175: IPL | C175: India Pesticides Limited | D175: YASHWI SECURITIES PVT. LTD. | E175: SELL | F175: 579,469 | G175: 404.15 | H175: NSE
A176: 2024-02-21 | B176: IPL | C176: India Pesticides Limited | D176: VT CAPITAL MARKET PVT LTD | E176: SELL | F176: 865,163 | G176: 401.47 | H176: NSE
A177: 2024-02-21 | B177: LAL | C177: Lorenzini Apparels Ltd | D177: VIKAS LIFECARE LIMITED | E177: SELL | F177: 12 | G177: 501.95 | H177: NSE
A178: 2024-02-21 | B178: LAL | C178: Lorenzini Apparels Ltd | D178: GI ENGINEERING SOLUTIONS LIMITED | E178: SELL | F178: 70,000 | G178: 499.29 | H178: NSE
A179: 2024-02-21 | B179: LAXMICOT | C179: Laxmi Cotspin Limited | D179: MITTAL PUNEET | E179: SELL | F179: 147,314 | G179: 34.74 | H179: NSE
A180: 2024-02-21 | B180: MHHL | C180: Mohini Health&Hygiene Ltd | D180: PRERNA CHAUDHARY | E180: SELL | F180: 342,000 | G180: 58.15 | H180: NSE
A181: 2024-02-21 | B181: MTNL | C181: Maha Tel Nigam Ltd. | D181: HRTI PRIVATE LIMITED | E181: SELL | F181: 1,500,140 | G181: 46.29 | H181: NSE
A182: 2024-02-21 | B182: NDRINVIT | C182: NDR INVIT Trust | D182: TRUST INVESTMENT ADVISORS PRIVATE LIMITED | E182: SELL | F182: 2,400,000 | G182: 103 | H182: NSE
A183: 2024-02-21 | B183: PIGL | C183: Power Instrument (G) Ltd | D183: DHAIRYA AMIT THAKKAR | E183: SELL | F183: 66,250 | G183: 79.06 | H183: NSE
A184: 2024-02-21 | B184: RHFL | C184: Reliance Home Finance Ltd | D184: MULTIPLIER SHARE & STOCK ADVISORS PRIVATE LIMITED | E184: SELL | F184: 2,500,000 | G184: 4.3 | H184: NSE
A185: 2024-02-21 | B185: ROHLTD | C185: Royal Orchid Hotels Limit | D185: GRAVITON RESEARCH CAPITAL LLP | E185: SELL | F185: 167,877 | G185: 436.37 | H185: NSE
A186: 2024-02-21 | B186: SARVESHWAR | C186: Sarveshwar Foods Limited | D186: MANSI SHARE AND STOCK ADVISORS PVT LTD | E186: SELL | F186: 6,500,005 | G186: 12.23 | H186: NSE
A187: 2024-02-21 | B187: SARVESHWAR | C187: Sarveshwar Foods Limited | D187: SETU SECURITIES PVT LTD | E187: SELL | F187: 4,929,757 | G187: 12.23 | H187: NSE
A188: 2024-02-21 | B188: SARVESHWAR | C188: Sarveshwar Foods Limited | D188: MULTIPLIER SHARE & STOCK ADVISORS PRIVATE LIMITED | E188: SELL | F188: 5,316,540 | G188: 12.3 | H188: NSE
A189: 2024-02-21 | B189: SEITINVIT | C189: Sustainable Energy Infra | D189: NEO MARKETS SERVICES PRIVATE LIMITED | E189: SELL | F189: 1,800,000 | G189: 106.78 | H189: NSE
A190: 2024-02-21 | B190: SHILPAMED | C190: Shilpa Medicare Ltd | D190: GRAVITON RESEARCH CAPITAL LLP | E190: SELL | F190: 482,523 | G190: 444.09 | H190: NSE
A191: 2024-02-21 | B191: SNOWMAN | C191: Snowman Logistics Ltd. | D191: HRTI PRIVATE LIMITED | E191: SELL | F191: 848,608 | G191: 82.15 | H191: NSE
A192: 2024-02-21 | B192: SOLARA | C192: Solara Active Pha Sci Ltd | D192: GRAVITON RESEARCH CAPITAL LLP | E192: SELL | F192: 197,767 | G192: 481.82 | H192: NSE
A193: 2024-02-21 | B193: SOTAC | C193: Sotac Pharmaceuticals Ltd | D193: SUNFLOWER BROKING PRIVATE LIMITED | E193: SELL | F193: 70,800 | G193: 132.18 | H193: NSE
A194: 2024-02-21 | B194: TIJARIA | C194: Tijaria Polypipes Ltd | D194: HENSEX SECURITIES PRIVATE LIMITED | E194: SELL | F194: 644,620 | G194: 7.86 | H194: NSE
A195: 2024-02-21 | B195: TIJARIA | C195: Tijaria Polypipes Ltd | D195: PRASHANT GUPTA | E195: SELL | F195: 1,048,500 | G195: 7.89 | H195: NSE
A196: 2024-02-21 | B196: TIJARIA | C196: Tijaria Polypipes Ltd | D196: ANKITA VISHAL SHAH | E196: SELL | F196: 200,000 | G196: 7.63 | H196: NSE
A197: 2024-02-21 | B197: TIJARIA | C197: Tijaria Polypipes Ltd | D197: HI GROWTH CORPORATE SERVICES PVT LTD | E197: SELL | F197: 468,440 | G197: 8.2 | H197: NSE
A198: 2024-02-21 | B198: TIJARIA | C198: Tijaria Polypipes Ltd | D198: SAHASTRAA ADVISORS PRIVATE LIMITED | E198: SELL | F198: 301,262 | G198: 7.99 | H198: NSE
A199: 2024-02-21 | B199: TIJARIA | C199: Tijaria Polypipes Ltd | D199: KAMLESH NAVINCHANDRA SHAH | E199: SELL | F199: 165,010 | G199: 7.97 | H199: NSE
A200: 2024-02-21 | B200: VETO | C200: Veto Switchgear Cable Ltd | D200: AAKRAYA RESEARCH LLP | E200: SELL | F200: 123,717 | G200: 152.06 | H200: NSE
A201: 2024-02-21 | B201: VETO | C201: Veto Switchgear Cable Ltd | D201: QE SECURITIES LLP | E201: SELL | F201: 132,236 | G201: 152.04 | H201: NSE
A202: 2024-02-21 | B202: VIKASECO | C202: Vikas EcoTech Limited | D202: VISHWAS FINCAP SERVICES PRIVATE LIMITED | E202: SELL | F202: 7,829,403 | G202: 4.54 | H202: NSE
A203: 2024-02-21 | B203: ZEEL | C203: Zee Entertain. Enterp.Ltd | D203: HRTI PRIVATE LIMITED | E203: SELL | F203: 5,201,212 | G203: 171.46 | H203: NSE
A204: 2024-02-21 | B204: ZEEMEDIA | C204: Zee News Limited | D204: CITADEL SECURITIES INDIA MARKETS PRIVATE LIMITED | E204: SELL | F204: 3,842,182 | G204: 15.1 | H204: NSE
A205: 2024-02-21 | B205: ZEEMEDIA | C205: Zee News Limited | D205: HRTI PRIVATE LIMITED | E205: SELL | F205: 5,434,370 | G205: 15.1 | H205: NSE
A206: 2024-02-21 | B206: ZEEMEDIA | C206: Zee News Limited | D206: GRAVITON RESEARCH CAPITAL LLP | E206: SELL | F206: 3,264,366 | G206: 15.1 | H206: NSE
... 1 more rows

Sheet Call Tracker (Equity & F&O)
M5: Back To Main Page
A6: Retail Research Technical Calls & Fundamental Performance Report for the month of February-2024
M7: =Main!B10 -> 2024-02-22
B8: Positional Call
A9: Sr.no | B9: Date | D9: Company | E9: Rec | F9: Rec Price | G9: Stop Loss*** | H9: Call Closed At | I9: Target | J9: Remark | K9: Profit / Loss per Share | L9: All charges | M9: Net Gain / Loss % | N9: Status | O9: Closed Date | P9: Market Closing Price | Q9: Second Buying Date
A10: 1 | B10: 2023-12-18 | D10: SBIN | E10: Accu | F10: 632 | G10: 593 | H10: 670 | I10: 680-720 | J10: Profit of Rs.38/- | K10: =H10-F10 -> 38 | L10: =(F10*-0.3)/100 -> -1.90 | M10: =(K10+L10)/F10 -> 5.71% | N10: Successful | O10: 2024-02-07 | Q10: 2024-01-10 | S10: H
A11: 2 | B11: 2023-12-28 | D11: VINATIORGA | E11: Accu | F11: 1725 | G11: 1645 | H11: 1645 | I11: 1860-1960 | J11: Loss of Rs.80/- | K11: =H11-F11 -> -80 | L11: =(F11*-0.3)/100 -> -5.18 | M11: -4.94% | N11: Unsuccessful | O11: 2024-02-09 | Q11: 2024-01-10 | S11: H
A12: 3 | B12: 2024-01-03 | D12: MARUTI | E12: Accu | F12: 9937.5 | G12: 9340 | H12: 10410 | I12: 10700-11200 | J12: Profit of Rs.472.5/- | K12: =H12-F12 -> 472.5 | L12: =(F12*-0.3)/100 -> -29.81 | M12: =(K12+L12)/F12 -> 4.45% | N12: Successful | O12: 2024-02-01 | S12: H
A13: 4 | B13: 2024-01-12 | D13: JUBLFOOD | E13: Accu | F13: 521.5 | G13: 490 | H13: 487 | I13: 555-575 | J13: Loss of Rs.34.5/- | K13: =H13-F13 -> -34.5 | L13: =(F13*-0.3)/100 -> -1.56 | M13: =(K13+L13)/F13 -> -6.92% | N13: Unsuccessful | O13: 2024-02-05 | Q13: 2024-01-18 | S13: K
A14: 5 | B14: 2024-01-16 | D14: CAPACITE | E14: Accu | F14: 267.5 | G14: 237 | H14: 282.5 | I14: 300-330 | J14: Profit of Rs.15/- | K14: =H14-F14 -> 15 | L14: =(F14*-0.3)/100 -> -0.80 | M14: 5.31% | N14: Successful | O14: 2024-02-08 | S14: H
A15: 6 | B15: 2024-01-25 | D15: FLUOROCHEM | E15: Accu | F15: 3395-3575 | G15: 3280 | I15: 3900-4200 | J15: Open | P15: =VLOOKUP(D15,'MidCap Intra'!$B$11:$C$568,2,0) -> 3536.95 | S15: H
A16: 7 | B16: 2024-01-25 | D16: VGUARD | E16: Accu | F16: 288 | G16: 267 | H16: 305 | I16: 305-325 | J16: Profit of Rs.17/- | K16: =H16-F16 -> 17 | L16: =(F16*-0.3)/100 -> -0.86 | M16: =(K16+L16)/F16 -> 5.60% | N16: Successful | O16: 2024-02-01 | S16: H
A17: 8 | B17: 2024-01-29 | D17: GMMPFAUDLR | E17: Accu | F17: 1502.5 | G17: 1415 | H17: 1400 | I17: 1650-1750 | J17: Loss of Rs.102.5/- | K17: =H17-F17 -> -102.5 | L17: =(F17*-0.3)/100 -> -4.51 | M17: -7.12% | N17: Unsuccessful | O17: 2024-02-09 | S17: H
A18: 9 | B18: 2024-01-30 | D18: RELIANCE | E18: Accu | F18: 2870-2790 | G18: 2640 | I18: 3100-3200 | J18: Open | P18: =VLOOKUP(D18,'MidCap Intra'!$B$11:$C$568,2,0) -> 2935.40 | S18: H
A19: 10 | B19: 2024-01-30 | D19: JAMNAAUTO | E19: Accu | F19: 115.5 | G19: 106 | H19: 123 | I19: 124-130 | J19: Profit of Rs.7.5/- | K19: =H19-F19 -> 7.5 | L19: =(F19*-0.3)/100 -> -0.35 | M19: =(K19+L19)/F19 -> 6.19% | N19: Successful | O19: 2024-02-05 | S19: H
A20: 11 | B20: 2024-02-02 | D20: DATAPATTNS | E20: Accu | F20: 1880 | G20: 1790 | H20: 1990 | I20: 2040-2140 | J20: Profit of Rs.110/- | K20: =H20-F20 -> 110 | L20: =(F20*-0.3)/100 -> -5.64 | M20: =(K20+L20)/F20 -> 5.55% | N20: Successful | O20: 2024-02-16 | S20: H
A21: 12 | B21: 2024-02-05 | D21: UBL | E21: Accu | F21: 1740-1800 | G21: 1660 | I21: 2000-2100 | J21: Open | P21: =VLOOKUP(D21,'MidCap Intra'!$B$11:$C$568,2,0) -> 1720.10 | S21: H
A22: 13 | B22: 2024-02-06 | D22: CARBORUNIV | E22: Accu | F22: 1065-1105 | G22: 1030 | I22: 1200-1280 | J22: Open | P22: =VLOOKUP(D22,'MidCap Intra'!$B$11:$C$568,2,0) -> 1083.15 | S22: H
A23: 14 | B23: 2024-02-08 | D23: LTIM | E23: Accu | F23: 5200-5400 | G23: 4990 | I23: 5750-6050 | J23: Open | P23: =VLOOKUP(D23,'MidCap Intra'!$B$11:$C$568,2,0) -> 5420.10 | S23: H
A24: 15 | B24: 2024-02-09 | D24: CAPACITE | E24: Accu | F24: 266 | G24: 248 | H24: 247 | I24: 295-320 | J24: Loss of Rs.19/- | K24: =H24-F24 -> -19 | L24: =(F24*-0.3)/100 -> -0.80 | M24: =(K24+L24)/F24 -> -7.44% | N24: Unsuccessful | O24: 2024-02-13 | S24: H
A25: 16 | B25: 2024-02-09 | D25: HDFCBANK | E25: Accu | F25: 1350-1400 | G25: 1290 | I25: 1500-1600 | J25: Open | P25: =VLOOKUP(D25,'MidCap Intra'!$B$11:$C$568,2,0) -> 1439.15 | S25: H
A26: 17 | B26: 2024-02-13 | D26: CAMS | E26: Accu <> | F26: 2788 | G26: 2578 | H26: 2960 | I26: 3000-3200 | J26: Profit of Rs.172/- | K26: =H26-F26 -> 172 | L26: =(F26*-0.3)/100 -> -8.36 | M26: =(K26+L26)/F26 -> 5.87% | N26: Successful | O26: 2024-02-21 | S26: H
A27: 18 | B27: 2024-02-16 | D27: ARE&M | E27: Accu | F27: 842-864 | G27: 805 | I27: 920-960 | J27: Open | P27: =VLOOKUP(D27,'MidCap Intra'!$B$11:$C$568,2,0) -> 842.55 | S27: K
A28: 19 | B28: 2024-02-21 | D28: WHIRLPOOL | E28: Accu | F28: 1242-1282 | G28: 1195 | I28: 1380-1480 | J28: Open | P28: =VLOOKUP(D28,'MidCap Intra'!$B$11:$C$568,2,0) -> 1258.80
A29: 20 | B29: 2024-02-21 | D29: IBULHSGFIN | E29: Accu | F29: 171-189 | G29: 164 | I29: 215-230 | J29: Open | P29: =VLOOKUP(D29,'MidCap Intra'!$B$11:$C$568,2,0) -> 184.75
A35: CLBS = Closing Basis ***
A36: Dividend adjusted <> | F36: Reinitiated $
A37: Part book {} | D37: s | F37: Revised stoploss #
A41: Master Trade High Risk
A42: Sr.no | B42: Date | D42: Company | E42: Rec | F42: Rec Price | G42: Stop Loss | H42: Call Closed At | I42: Target | J42: Remark | K42: Profit / Loss per share | L42: All charges | M42: Gain / Loss per Lot | N42: Lot | O42: Status | P42: Closed Date
A43: 1 | B43: 2024-02-02 | D43: FEDERALBNK FEB FUT | E43: Buy | F43: 146.6 | G43: 144.5 | H43: 148.35 | I43: 149-151 | J43: Profit of Rs.1.75/- | K43: =H43-F43 -> 1.75 | L43: =(H43*N43)*0.03% -> 222.53 | M43: =(K43*N43)-L43 -> 8527.5 | N43: 5000 | O43: Successful | P43: 2024-02-06 | S43: K
A44: 2 | B44: 2024-02-06 | D44: CIPLA FEB FUT | E44: Buy | F44: 1428.5 | G44: 1410 | H44: 1453 | I44: 1445-1461 | J44: Profit of Rs.24.5/- | K44: =H44-F44 -> 24.5 | L44: =(H44*N44)*0.03% -> 283.34 | M44: =(K44*N44)-L44 -> 15641.7 | N44: 650 | O44: Successful | P44: 2024-02-06 | S44: K
A45: 3 | B45: 2024-02-08 | D45: NIFTY FEB FUT | E45: Buy | F45: 22035 | G45: 22200 | H45: 21925 | I45: 21800-21700 | J45: Profit of Rs.110/- | K45: =F45-H45 -> 110 | L45: =(H45*N45)*0.03% -> 328.88 | M45: =(K45*N45)-L45 -> 5171.1 | N45: 50 | O45: Successful | P45: 2024-02-08 | S45: H
A46: 4 | B46: 2024-02-12 | D46: PIDILITIND FEB FUT | E46: Buy | F46: 2660 | G46: 2610 | H46: 2694 | I46: 2702-2744 | J46: Profit of Rs.34/- | K46: =H46-F46 -> 34 | L46: =(H46*N46)*0.03% -> 202.05 | M46: =(K46*N46)-L46 -> 8298.0 | N46: 250 | O46: Successful | P46: 2024-02-16 | S46: N
A47: 4 | B47: 2024-02-12 | D47: LAURUSLABS FEB FUT | E47: Buy | F47: 393.5 | G47: 387 | H47: 392.75 | I47: 400-406 | J47: Loss of Rs.0.75/- | K47: =H47-F47 -> -0.75 | L47: =(H47*N47)*0.03% -> 200.30 | M47: =(K47*N47)-L47 -> -1475.3 | N47: 1700 | O47: Unsuccessful | P47: 2024-02-13 | S47: N
A48: 5 | B48: 2024-02-13 | D48: BAJFINANCE FEB FUT | E48: Buy | F48: 6620 | G48: 6520 | H48: 6677.5 | I48: 6720-6820 | J48: Profit of Rs.57.5/- | K48: =H48-F48 -> 57.5 | L48: 250.41 | M48: 6937.1 | N48: 125 | O48: Successful | P48: 2024-02-19 | S48: H
A49: 6 | B49: 2024-02-13 | D49: HINDUNILVR FEB FUT | E49: Buy | F49: 2400 | G49: 2360 | H49: 2360 | I49: 2438-2473 | J49: Loss of Rs.40/- | K49: =H49-F49 -> -40 | L49: =(H49*N49)*0.03% -> 212.40 | M49: =(K49*N49)-L49 -> -12212.4 | N49: 300 | O49: Unsuccessful | P49: 2024-02-15 | S49: K
A50: 7 | B50: 2024-02-14 | D50: NIFTY FUT 29-FEB | E50: Buy | F50: 21915 | G50: 21690 | H50: 21935 | J50: Profit of Rs.61.5/- | K50: =H50-F50 -> 20 | L50: =(H50*N50)*0.03% -> 329.03 | M50: 2696.0 | N50: 50 | O50: Successful | P50: 2024-02-15 | S50: H
D51: NIFTY 21900 CE 15-FEB | E51: Sell | F51: 69 | H51: 27.5 | K51: =F51-H51 -> 41.5 | L51: 50.00 | N51: 50
A52: 8 | B52: 2024-02-16 | D52: RELIANCE FEB FUT | E52: Buy | F52: 2933.5 | G52: 2890 | H52: 2969 | I52: 2975-3017 | J52: Profit of Rs.35.5/- | K52: =H52-F52 -> 35.5 | L52: =(H52*N52)*0.03% -> 222.68 | M52: =(K52*N52)-L52 -> 8652.3 | N52: 250 | O52: Successful | P52: 2024-02-19 | S52: N
A53: 9 | B53: 2024-02-16 | D53: METROPOLIS FEB FUT | E53: Buy | F53: 1780 | G53: 1752 | H53: 1802 | I53: 1805-1832 | J53: Profit of Rs.22/- | K53: 22 | L53: =(H53*N53)*0.03% -> 216.24 | M53: =(K53*N53)-L53 -> 8583.8 | N53: 400 | O53: Successful | P53: 2024-02-19 | S53: N
A54: 10 | B54: 2024-02-16 | D54: SBILIFE FEB FUT | E54: Buy | F54: 1508 | G54: 1490 | H54: 1521 | I54: 1530-1550 | J54: Profit of Rs.13/- | K54: 13 | L54: =(H54*N54)*0.03% -> 342.23 | M54: =(K54*N54)-L54 -> 9407.8 | N54: 750 | O54: Successful | P54: 2024-02-19 | S54: H
A55: 11 | B55: 2024-02-19 | D55: WIPRO FEB FUT | E55: Buy | F55: 535.5 | G55: 528 | H55: 541.5 | I55: 545-555 | J55: Profit of Rs.6/- | K55: 6 | L55: =(H55*N55)*0.03% -> 243.68 | M55: =(K55*N55)-L55 -> 8756.3 | N55: 1500 | O55: Successful | P55: 2024-02-19
A56: 12 | B56: 2024-02-19 | D56: LT FEB FUT | E56: Buy | F56: 3348 | G56: 3315 | H56: 3353.5 | I56: 3380-3400 | J56: Profit of Rs.5.5/- | K56: 5.5 | L56: =(H56*N56)*0.03% -> 301.82 | M56: =(K56*N56)-L56 -> 1348.2 | N56: 300 | O56: Neutral | P56: 2024-02-20
A57: 13 | B57: 2024-02-19 | D57: ASIANPAINT FEB FUT | E57: Buy | F57: 3015.5 | G57: 2960 | H57: 3020 | I57: 3068-3121 | J57: Profit of Rs.4.5/- | K57: 4.5 | L57: =(H57*N57)*0.03% -> 181.20 | M57: =(K57*N57)-L57 -> 718.8 | N57: 200 | O57: Neutral | P57: 2024-02-20
A58: 14 | B58: 2024-02-19 | D58: CIPLA FEB FUT | E58: Buy | F58: 1461.5 | G58: 1444 | H58: 1439 | I58: 1478-1494 | J58: Loss of Rs.22.5/- | K58: -22.5 | L58: =(H58*N58)*0.03% -> 280.61 | M58: =(K58*N58)-L58 -> -14905.6 | N58: 650 | O58: Unsuccessful | P58: 2024-02-20
A59: 15 | B59: 2024-02-20 | D59: BANKNIFTY FEB FUT | E59: Buy | F59: 47175 | G59: 46800 | H59: 47305 | I59: 48000 | J59: Profit of Rs.130/- | K59: 130 | L59: 212.87 | M59: 1737.1 | N59: 15 | O59: Successful | P59: 2024-02-21
A60: 16 | B60: 2024-02-20 | D60: SIEMENS FEB FUT | E60: Buy | F60: 4430 | G60: 4394 | H60: 4522.5 | I60: 4468-4506 | J60: Profit of Rs.92.5/- | K60: 92.5 | L60: =(H60*N60)*0.03% -> 203.51 | M60: =(K60*N60)-L60 -> 13671.5 | N60: 150 | O60: Successful | P60: 2024-02-21
A61: 17 | B61: 2024-02-21 | D61: LT FEB FUT | E61: Buy | F61: 3328-3331 | G61: 3292 | I61: 3368-3405 | J61: Open
A67: Master Trade Medium Risk
A68: Sr.no | B68: Date | D68: Company | E68: Rec | F68: Rec Price | G68: Stop Loss | H68: Call Closed At | I68: Target | J68: Remark | K68: Profit/ Loss per lot | L68: All charges | M68: Gain / Loss per Lot | N68: Lot | O68: Status | P68: Closed Date
A69: 1 | B69: 2024-01-31 | D69: NIFTY 21700 PE 08 FEB | E69: Buy | F69: 220 | G69: 82.5 | H69: 82.5 | J69: Loss of Rs.103.5/- | K69: =H69-F69 -> -137.5 | L69: 50.00 | M69: =(K69*N69)-L69 -> -6925.0 | N69: 50 | O69: Unsuccessful | P69: 2024-02-02 | S69: H
D70: NIFTY 21450 PE 01 FEB | E70: Sell | F70: 34 | H70: 0 | K70: =F70-H70 -> 34 | L70: 25.00 | M70: =(K70*N70)-L70 -> 1675.0 | N70: 50
A71: 2 | B71: 2024-02-01 | D71: NIFTY 22500 CE 29 FEB | E71: Sell | F71: 122.5 | G71: 210 | H71: 87 | I71: 0.1 | J71: Profit of Rs.35.5/- | K71: =F71-H71 -> 35.5 | L71: 50.00 | M71: =(K71*N71)-L71 -> 1725.0 | N71: 50 | O71: Successful | P71: 2024-02-01 | S71: H
A72: 3 | B72: 2024-02-02 | D72: NIFTY 22500 CE 29 FEB | E72: Sell | F72: 127 | G72: 220 | H72: 197.5 | I72: 5 | J72: Loss of Rs.70.5/- | K72: =F72-H72 -> -70.5 | L72: 50.00 | M72: =(K72*N72)-L72 -> -3575.0 | N72: 50 | O72: Unsuccessful | P72: 2024-02-02 | S72: H
A73: 4 | B73: 2024-02-02 | D73: NIFTY 21900 PE 29 FEB | E73: Buy | F73: 262.5 | I73: 422.5 | J73: Profit of Rs.60/- | K73: =I73-F73 -> 160 | L73: 50.00 | M73: 2900.0 | N73: 50 | O73: Successful | P73: 2024-02-09 | S73: H
D74: NIFTY 21600 PE 29 FEB | E74: Sell | F74: 167.5 | I74: 267.5 | K74: =F74-I74 -> -100 | L74: 50.00 | N74: 50
A75: 5 | B75: 2024-02-02 | D75: SBIN 680 CE FEB | E75: Buy | F75: 12.5 | G75: 9 | H75: 11.25 | I75: 16-19 | J75: Loss of Rs.1.25/- | K75: =H75-F75 -> -1.25 | L75: 50.00 | M75: =(K75*N75)-L75 -> -1925.0 | N75: 1500 | O75: Unsuccessful | P75: 2024-02-02 | S75: H
A76: 6 | B76: 2024-02-05 | D76: NIFTY 22500 CE 29 FEB | E76: Sell | F76: 145 | G76: 235 | H76: 95 | I76: 5 | J76: Profit of Rs.50/- | K76: =F76-H76 -> 50 | L76: 50.00 | M76: 2450.0 | N76: 50 | O76: Successful | P76: 2024-02-05 | S76: H
A77: 7 | B77: 2024-02-05 | D77: NIFTY 21750 PE 08 FEB | E77: Buy | F77: 72.5 | G77: 18 | H77: 96 | I77: 140-200 | J77: Profit of Rs.23.5/- | K77: =H77-F77 -> 23.5 | L77: 50.00 | M77: =(K77*N77)-L77 -> 1125.0 | N77: 50 | O77: Successful | P77: 2024-02-05 | S77: H
A78: 8 | B78: 2024-02-05 | D78: BANKNIFTY 45700 PE 07 FEB | E78: Buy | F78: 290 | G78: 190 | H78: 325 | I78: 400-500 | J78: Profit of Rs.35/- | K78: =H78-F78 -> 35 | L78: 50.00 | M78: =(K78*N78)-L78 -> 475.0 | N78: 15 | O78: Successful | P78: 2024-02-05 | S78: H
A79: 9 | B79: 2024-02-05 | D79: FINNIFTY 20200 PE 06 FEB | E79: Sell | F79: 54 | H79: 47.5 | J79: Profit of Rs.29.5/- | K79: =F79-H79 -> 6.5 | L79: 50.00 | M79: 1080.0 | N79: 40 | O79: Successful | P79: 2024-02-06 | S79: H
D80: FINNIFTY 20400 CE 06 FEB | E80: Sell | F80: 44 | H80: 21 | K80: =F80-H80 -> 23 | L80: 50.00 | N80: 40
A81: 10 | B81: 2024-02-06 | D81: NIFTY 22500 CE 29 FEB | E81: Sell | F81: 101 | G81: 158 | H81: 94 | I81: 5 | J81: Profit of Rs.7/- | K81: =F81-H81 -> 7 | L81: 50.00 | M81: =(K81*N81)-L81 -> 300.0 | N81: 50 | O81: Successful | P81: 2024-02-06 | S81: H
A82: 11 | B82: 2024-02-06 | D82: NIFTY 21800 PE 08 FEB | E82: Buy | F82: 65 | G82: 25 | H82: 85 | I82: 110-150 | J82: Profit of Rs.20/- | K82: =H82-F82 -> 20 | L82: 50.00 | M82: =(K82*N82)-L82 -> 950.0 | N82: 50 | O82: Successful | P82: 2024-02-06 | S82: H
A83: 12 | B83: 2024-02-08 | D83: NIFTY 21750 PE 08 FEB | E83: Buy | F83: 41.5 | G83: 9 | H83: 67.5 | I83: 70-90 | J83: Profit of Rs.26/- | K83: =H83-F83 -> 26 | L83: 50.00 | M83: =(K83*N83)-L83 -> 1250.0 | N83: 50 | O83: Successful | P83: 2024-02-08 | S83: K
A84: 13 | B84: 2024-01-08 | D84: FINNIFTY 20150 CE 13 FEB | E84: Sell | F84: 146 | H84: 102.5 | J84: Profit of Rs.21/- | K84: =F84-H84 -> 43.5 | L84: 50.00 | M84: 740.0 | N84: 40 | O84: Successful | P84: 2024-02-09 | S84: N
D85: FINNIFTY 20050 PE 13 FEB | E85: Sell | F85: 110 | H85: 132.5 | K85: =F85-H85 -> -22.5 | L85: 50.00 | N85: 40
A86: 14 | B86: 2024-01-09 | D86: HDFCBANK 1420 CE 29 FEB | E86: Buy | F86: 31.5 | H86: 28 | J86: Profit of Rs.2/- | K86: =H86-F86 -> -3.5 | L86: 50.00 | M86: 1000.0 | N86: 550 | O86: Successful | P86: 2024-02-20 | S86: H
D87: HDFCBANK 1460 CE 29 FEB | E87: Sell | F87: 16 | H87: 10.5 | K87: =F87-H87 -> 5.5 | L87: 50.00 | N87: 550
A88: 15 | B88: 2024-01-09 | D88: NIFTY 21500 PE 15 FEB | E88: Buy | F88: 86 | H88: 108.5 | J88: Profit of Rs.25.5/- | K88: =H88-F88 -> 22.5 | L88: 50.00 | M88: 1175.0 | N88: 50 | O88: Successful | P88: 2024-02-12 | S88: H
D89: NIFTY 21200 PE 15 FEB | E89: Sell | F89: 34 | H89: 31 | K89: =F89-H89 -> 3 | L89: 50.00 | N89: 50
A90: 16 | B90: 2024-01-09 | D90: FINNIFTY 20200 CE 13 FEB | E90: Sell | F90: 80 | H90: 119 | J90: Loss of Rs.3/- | K90: -39 | L90: 50.00 | M90: -220.0 | N90: 40 | O90: Unsuccessful | P90: 2024-02-09 | S90: N
D91: FINNIFTY 20000 PE 13 FEB | E91: Sell | F91: 66 | H91: 30 | K91: 36 | L91: 50.00 | N91: 40
A92: 17 | B92: 2024-02-12 | D92: FINNIFTY 20050 CE 13 FEB | E92: Sell | F92: 44 | H92: 21 | J92: Profit of Rs.48/- | K92: 23 | L92: 50.00 | M92: 1820.0 | N92: 40 | O92: Successful | P92: 1900-01-13T00:28:48 | S92: N
D93: FINNIFTY 19850 PE 13 FEB | E93: Sell | F93: 46 | H93: 21 | K93: 25 | L93: 50.00 | N93: 40
A94: 18 | B94: 2024-02-13 | D94: FINNIFTY 20600 CE 20 FEB | E94: Sell | F94: 61 | H94: 36 | J94: Loss of Rs.2/- | K94: 25 | L94: 50.00 | M94: -180.0 | N94: 40 | O94: Neutral | P94: 2024-02-14 | S94: N
D95: FINNIFTY 19800 PE 20 FEB | E95: Sell | F95: 62 | H95: 89 | K95: -27 | L95: 50.00 | N95: 40
A96: 19 | B96: 2024-02-14 | D96: NIFTY 22200 CE 29-FEB | E96: Sell | F96: 76 | H96: 164 | J96: Loss of Rs.48/- | K96: -88 | L96: 50.00 | M96: -2500.0 | N96: 50 | O96: Unsuccessful | P96: 2024-02-16 | S96: H
D97: NIFTY 21000 PE 29-FEB | E97: Sell | F97: 57 | H97: 17 | K97: 40 | L97: 50.00 | N97: 50
A98: 20 | B98: 2024-02-14 | D98: BANKNIFTY 45700 PE 14-FEB | E98: Buy | F98: 92 | H98: 177.5 | J98: Profit of Rs.35.5/- | K98: =H98-F98 -> 85.5 | L98: 50.00 | M98: 432.5 | N98: 15 | O98: Successful | P98: 2024-02-14 | S98: N
D99: BANKNIFTY 45600 PE 14-FEB | E99: Sell | F99: 60 | H99: 110 | K99: =F99-H99 -> -50 | L99: 50.00 | N99: 15
A100: 21 | B100: 2024-02-16 | D100: FINNIFTY 20500 CE 20 FEB | E100: Buy | F100: 109 | G100: 70 | H100: 138 | I100: 150-180 | J100: Profit of Rs.29/- | K100: =H100-F100 -> 29 | L100: 50.00 | M100: =(K100*N100)-L100 -> 1110.0 | N100: 40 | O100: Successful | P100: 2024-02-16 | S100: N
A101: 22 | B101: 2024-02-16 | D101: FINNIFTY 20300 PE 20 FEB | E101: Sell | F101: 48 | H101: 41 | J101: Profit of Rs.20/- | K101: =F101-H101 -> 7 | L101: 50.00 | M101: 700.0 | N101: 40 | O101: Successful | P101: 2024-02-19 | S101: N
D102: FINNIFTY 20700 CE 20 FEB | E102: Sell | F102: 49 | H102: 36 | K102: =F102-H102 -> 13 | L102: 50.00 | N102: 40
A103: 23 | B103: 2024-02-19 | D103: BAJAJ-AUTO 9200 CE 29 FEB | E103: Sell | F103: 42-44 | J103: Open
D104: BAJAJ-AUTO 8000 PE 29 FEB | E104: Sell | F104: 43-45
A105: 24 | B105: 2024-02-19 | D105: NIFTY 22500 CE 29 FEB | E105: Sell | F105: 98 | G105: 130 | H105: 77 | I105: 50 | J105: Profit of Rs.21/- | K105: =F105-H105 -> 21 | L105: 50.00 | M105: =(K105*N105)-L105 -> 1000.0 | N105: 50 | O105: Successful | P105: 2024-02-19
A106: 25 | B106: 2024-02-19 | D106: FINNIFTY 20400 PE 20 FEB | E106: Sell | F106: 28.5 | H106: 24 | J106: Profit of Rs.31/- | K106: =F106-H106 -> 4.5 | L106: 50.00 | M106: =(31*40)-100 -> 1140.0 | N106: 40 | O106: Successful | P106: 2024-02-20
D107: FINNIFTY 20650 CE 20 FEB | E107: Sell | F107: 37 | H107: 10.5 | K107: =F107-H107 -> 26.5 | L107: 50.00 | N107: 40
A108: 26 | B108: 2024-02-20 | D108: NIFTY 22000 PE 29 FEB | E108: Buy | F108: 154-156 | J108: Open
D109: NIFTY 21800 PE 29 FEB | E109: Sell | F109: 94-96
A110: 27 | B110: 2024-02-20 | D110: FINNIFTY 20700 PE 20 FEB | E110: Buy | F110: 14 | G110: 0 | H110: 0 | I110: 30-40 | J110: Loss of Rs.14/- | K110: =H110-F110 -> -14 | L110: 25.00 | M110: =(K110*N110)-L110 -> -585.0 | N110: 40 | O110: Unsuccessful | P110: 2024-02-20
A111: 28 | B111: 2024-02-21 | D111: BANKNIFTY 47000 CE 21 FEB | E111: Buy | F111: 95 | G111: 15 | H111: 157.5 | I111: 200-300 | J111: Profit of Rs.62.5/- | K111: =H111-F111 -> 62.5 | L111: 50.00 | M111: 887.5 | N111: 15 | O111: Successful | P111: 2024-02-21
A112: 29 | B112: 2024-02-21 | D112: BANKNIFTY 47000 PE 21 FEB | E112: Buy | F112: 32 | G112: 0 | H112: 1 | I112: 70-100 | J112: Loss of Rs.31/- | K112: =H112-F112 -> -31 | L112: 50.00 | M112: =(K112*N112)-L112 -> -515.0 | N112: 15 | O112: Unsuccessful | P112: 2024-02-21
A115: Techno -Funda (positional)
A116: Sr.no | B116: Date | D116: Company | E116: Rec | F116: Rec Price | G116: Stop Loss*** | H116: Call Closed At | I116: Target | J116: Remark | K116: Profit / Loss per Share/Lot | L116: All charges | M116: Net Gain / Loss % | N116: Status | O116: Closed Date | P116: Market Closing Price | Q116: Second Buying Date
A117: 1 | B117: 2023-11-22 | D117: CAMS | E117: Accu | F117: 2715 | G117: 2480 | H117: 2975 | I117: 3100-3300 | J117: Profit of Rs.260/- | K117: =H117-F117 -> 260 | L117: =(F117*-0.3)/100 -> -8.15 | M117: =(K117+L117)/F117 -> 9.28% | N117: Successful | O117: 2024-02-06 | S117: H
A118: 2 | B118: 2023-12-01 | D118: HLEGLAS | E118: Accu | F118: 522.5 | G118: 477 | H118: 525.5 | I118: 600-650 | J118: Profit of Rs.3/- | K118: =H118-F118 -> 3 | L118: =(F118*-0.3)/100 -> -1.57 | M118: 0.27% | N118: Neutral | O118: 2024-02-16 | S118: H
A119: 3 | B119: 2023-12-11 | D119: LATENTVIEW | E119: Accu | F119: 465 | G119: 390 | H119: 517.5 | I119: 545-625 | J119: Profit of Rs.52.5/- | K119: =H119-F119 -> 52.5 | L119: =(F119*-0.3)/100 -> -1.40 | M119: =(K119+L119)/F119 -> 10.99% | N119: Successful | O119: 2024-02-06 | S119: H
A120: 4 | B120: 2024-02-14 | D120: SANSERA | E120: Accu | F120: 905-975 | G120: 818 | I120: 1100-1180 | J120: Open
A122: CLBS = Closing Basis *** | F122: Reinitiated $
A123: Dividend adjusted <> | F123: Revised stoploss # | H123: .................
B132: Investment Idea
A133: Sr.no | B133: Date | D133: Company | E133: Rec | F133: Rec Price | G133: Point of Review | H133: Close Rate | I133: Target | J133: Remark | K133: Profit / Loss per Share | L133: Gain / Loss % | M133: Status | N133: Closed Date
A134: 1 | B134: 2013-11-01 | D134: L&T Finance Holding | E134: Accu | F134: 82.00 | G134: - | H134: 100 | I134: 100.00 | J134: Target Achieved | K134: =H134-F134 -> 18.00 | L134: =K134/F134 -> 21.95% | M134: Successful | N134: 2016-10-14
A135: 2 | B135: 2014-06-04 | D135: Finolex Inds | E135: Buy | F135: 257.00 | G135: - | H135: 300 | I135: 300.00 | J135: Target Achieved | K135: 43.00 | L135: 16.73% | M135: Successful | N135: 2014-07-02
A136: 3 | B136: 2014-07-08 | D136: JK Cement | E136: Buy | F136: 393.00 | G136: - | H136: 468 | I136: 468.00 | J136: Target Achieved | K136: 75.00 | L136: 19.08% | M136: Successful | N136: 2014-08-12
A137: 4 | B137: 2014-08-06 | D137: Finolex Cables | E137: Buy | F137: 205.00 | G137: - | H137: 275 | I137: 250.00 | J137: Target Achieved | K137: 70.00 | L137: 34.15% | M137: Successful | N137: 2014-11-19
A138: 5 | B138: 2014-09-04 | D138: Exide Inds | E138: Buy | F138: 162.00 | G138: - | H138: 190 | I138: 190.00 | J138: Target Achieved | K138: 28.00 | L138: 17.28% | M138: Successful | N138: 2015-01-02
A139: 6 | B139: 2014-09-04 | D139: Deepak Nitrite | E139: Buy | F139: 75.00 | G139: - | H139: 91.5 | I139: 95-100 | J139: Profit of Rs.16.50/- | K139: 16.50 | L139: 22.00% | M139: Successful | N139: 2014-11-11
A140: 7 | B140: 2014-10-01 | D140: Mercks | E140: Buy | F140: 850.00 | G140: - | H140: 982.5 | I140: 1050.00 | J140: Profit of Rs.132.50/- | K140: 132.50 | L140: 15.59% | M140: Successful | N140: 2015-02-04
A141: 8 | B141: 2014-10-01 | D141: Grindwell Norton | E141: Buy | F141: 475.00 | G141: - | H141: 515 | I141: 600.00 | J141: Profit of Rs.40/- | K141: 40.00 | L141: 8.42% | M141: Successful | N141: 2014-10-27
A142: 9 | B142: 2014-10-01 | D142: Snowman Logistics | E142: Buy | F142: 86.00 | G142: - | H142: 99 | I142: 140.00 | J142: Profit of Rs.13.00/- | K142: 13.00 | L142: 15.12% | M142: Successful | N142: 2014-10-27
A143: 10 | B143: 2014-10-14 | D143: Birla Corp | E143: Buy | F143: 496.60 | G143: - | H143: 621 | I143: 580.00 | J143: Target Achieved | K143: 124.40 | L143: 25.05% | M143: Successful | N143: 2016-08-23
A144: 11 | B144: 2014-10-14 | D144: Ultratech Cem | E144: Buy | F144: 2481.90 | G144: - | H144: 2840 | I144: 2870.00 | J144: Profit of Rs.358.10/- | K144: 358.10 | L144: 14.43% | M144: Successful | N144: 2015-01-13
A145: 12 | B145: 2014-10-16 | D145: Sintex Inds | E145: Buy | F145: 84.50 | G145: - | H145: 93 | I145: 110.00 | J145: Profit of Rs.8.50/- | K145: 8.50 | L145: 10.06% | M145: Successful | N145: 2014-10-27
A146: 13 | B146: 2014-10-16 | D146: HSIL | E146: Buy | F146: 401.00 | G146: - | H146: 428 | I146: 450.00 | J146: Profit of Rs.27.00/- | K146: 27.00 | L146: 6.73% | M146: Successful | N146: 2015-01-16
A147: 14 | B147: 2014-10-16 | D147: Eveready Inds | E147: Buy | F147: 101.00 | G147: - | H147: 112 | I147: 120.00 | J147: Profit of Rs.11.00/- | K147: 11.00 | L147: 10.89% | M147: Successful | N147: 2014-10-27
A148: 15 | B148: 2014-11-11 | D148: Pennar Inds | E148: Buy | F148: 59.00 | G148: - | H148: 76 | I148: 76.00 | J148: Target Achieved | K148: 17.00 | L148: 28.81% | M148: Successful | N148: 2017-10-24
A149: 16 | B149: 2014-11-11 | D149: Snowman Logistics | E149: Buy | F149: 99.00 | G149: - | H149: 120 | I149: 120.00 | J149: Profit of Rs.21/- | K149: 21.00 | L149: 21.21% | M149: Successful | N149: 2014-11-17
A150: 17 | B150: 2014-11-13 | D150: Dharamsi Morarji Chem | E150: Buy | F150: 22.00 | G150: - | H150: 33.55 | I150: 32.00 | J150: Profit of Rs 11.55/- | K150: 11.55 | L150: 52.50% | M150: Successful | N150: 2015-07-03
A151: 18 | B151: 2014-12-03 | D151: Tatachem | E151: Buy | F151: 440.00 | G151: - | H151: 520 | I151: 520.00 | J151: Profit of Rs 80.00/- | K151: 80.00 | L151: 18.18% | M151: Successful | N151: 2015-07-23
A152: 19 | B152: 2014-12-03 | D152: Advanta | E152: Buy | F152: 360.00 | G152: - | H152: 427 | I152: 425.00 | J152: Profit of Rs.67.00/- | K152: 67.00 | L152: 18.61% | M152: Successful | N152: 2015-02-23
A153: 20 | B153: 2015-01-08 | D153: GDL | E153: Buy | F153: 360.00 | G153: - | H153: 455 | I153: 420.00 | J153: Profit of Rs.95.00/- | K153: 95.00 | L153: 26.39% | M153: Successful | N153: 2015-01-20
A154: 21 | B154: 2015-01-08 | D154: NRB Bearing | E154: Buy | F154: 130.00 | H154: 175.5 | I154: 165.00 | J154: Profit of Rs 45.50/- | K154: 45.50 | L154: 35.00% | M154: Successful | N154: 2017-12-19
A155: 22 | B155: 2015-02-05 | D155: GSFC | E155: Accu | F155: 98.00 | H155: 120 | I155: 120.00 | J155: Target Achieved | K155: 22.00 | L155: 22.45% | M155: Successful | N155: 2017-01-18
A156: 23 | B156: 2015-02-05 | D156: Sundrmfast | E156: Accu | F156: 196.00 | H156: 262 | I156: 255.00 | J156: Target Achieved | K156: 66.00 | L156: 33.67% | M156: Successful | N156: 2016-08-17
A157: 24 | B157: 2015-03-04 | D157: GPPL | E157: Accu | F157: 235 | H157: 77.00 | I157: 280-285 | J157: Loss of Rs.158/- | K157: -158.00 | L157: -67.23% | M157: Unsuccessful | N157: 2019-02-26
A158: 25 | B158: 2015-03-04 | D158: ORIENTCEM | E158: Accu | F158: 185.00 | H158: 224 | I158: 220-225 | J158: Target Achieved | K158: 39.00 | L158: 21.08% | M158: Successful | N158: 2016-10-04
A159: 26 | B159: 2015-03-27 | D159: PFS | E159: Accu | F159: 49.5 | H159: 15.85 | I159: 67.00 | J159: Loss of Rs.33.65/- | K159: -33.65 | L159: -68% | M159: Unsuccessful | N159: 2019-06-11
A160: 27 | B160: 2015-03-30 | D160: Walchandnagar Ind Ltd | E160: Accu | F160: 183.50 | H160: 219 | I160: 218.00 | J160: Profit of Rs.35.50/- | K160: 35.50 | L160: 19.35% | M160: Successful | N160: 2015-04-09
A161: 28 | B161: 2015-04-20 | D161: Kalpataru Power Transmission Ltd | E161: Accu | F161: =(227+237)/2 -> 232.00 | H161: 298 | I161: 298.00 | J161: Target Achieved | K161: 66.00 | L161: 28.45% | M161: Successful | N161: 2017-03-29
A162: 29 | B162: 2015-05-04 | D162: Mastek Ltd | E162: Buy | F162: 385.00 | H162: =212.5+331 -> 543.5 | I162: 510.00 | J162: Profit of Rs 158.50/- | K162: 158.50 | L162: 41.17% | M162: Successful | N162: 2015-08-19
A163: 30 | B163: 2015-05-04 | D163: Suprajit Eng | E163: Buy | F163: 115.50 | H163: 146 | I163: 142.00 | J163: Profit of Rs 30.50/- | K163: 30.50 | L163: 26.41% | M163: Successful | N163: 2015-07-17
A164: 31 | B164: 2015-05-27 | D164: TCI | E164: Buy | F164: 237.50 | H164: 279.5 | I164: 278.00 | J164: Target Achieved | K164: 42.00 | L164: 17.68% | M164: Successful | N164: 2015-08-06
A165: 32 | B165: 2015-06-19 | D165: HSIL | E165: Accu | F165: 340.00 | H165: 448 | I165: 448.00 | J165: Target Achieved | K165: 108.00 | L165: 31.76% | M165: Successful | N165: 2017-10-10
A166: 33 | B166: 2015-07-06 | D166: Capital First | E166: Accu | F166: 390.00 | H166: 460 | I166: 460.00 | J166: Target Achieved | K166: 70.00 | L166: 17.95% | M166: Successful | N166: 2016-04-18
A167: 34 | B167: 2015-07-10 | D167: Dolphin OffShore | E167: Accu | F167: 122.5 | H167: 61.00 | I167: 172.00 | J167: Loss of Rs.61.50/- | K167: -61.50 | L167: -50.20% | M167: Unsuccessful | N167: 2018-08-21
A168: 35 | B168: 2015-08-03 | D168: Allcargo logistics | E168: Accu | F168: 297.50 | H168: 350 | I168: 360.00 | J168: Profit of Rs 52.50/- | K168: 52.50 | L168: 17.65% | M168: Successful | N168: 2015-08-16
A169: 36 | B169: 2015-08-03 | D169: Camline Fine | E169: Accu | F169: 115.50 | H169: 149 | I169: 140.00 | J169: Profit of Rs 33.50/- | K169: 33.50 | L169: 29.00% | M169: Successful | N169: 2017-01-05
A170: 37 | B170: 2015-09-04 | D170: TCI | E170: Accu | F170: 226.00 | H170: 292 | I170: 292.00 | J170: Target Achieved | K170: 66.00 | L170: 29.20% | M170: Successful | N170: 2015-10-09
A171: 38 | B171: 2015-09-07 | D171: Kalpataru Power Transmission Ltd | E171: Accu | F171: 232.50 | H171: 312.5 | I171: 310.00 | J171: Target Achieved | K171: 80.00 | L171: 34.41% | M171: Successful | N171: 2017-03-29
A172: 39 | B172: 2015-09-21 | D172: LLOYD ELECTRIC & ENG LTD | E172: Accu | F172: 196.50 | H172: 238 | I172: 238.00 | J172: Target Achieved | K172: 41.50 | L172: 21.12% | M172: Successful | N172: 2015-10-14
A173: 40 | B173: 2015-09-24 | D173: L&T Finance Holding | E173: Accu | F173: 65.00 | H173: 82 | I173: 82.00 | J173: Target Achieved | K173: 17.00 | L173: 26.15% | M173: Successful | N173: 2016-07-27
A174: 41 | B174: 2015-10-14 | D174: KEC International ltd | E174: Accu | F174: 144.00 | H174: 182.5 | I174: 181.00 | J174: Target Achieved | K174: 38.50 | L174: 26.74% | M174: Successful | N174: 2017-03-23
A175: 42 | B175: 2015-10-14 | D175: Gruh Finance | E175: Accu | F175: 264.00 | H175: 311 | I175: 311.00 | J175: Target Achieved | K175: 47.00 | L175: 17.80% | M175: Successful | N175: 2016-08-22
A176: 43 | B176: 2015-11-10 | D176: Pidilitind | E176: Buy | F176: 549.50 | H176: 630 | I176: 630.00 | J176: Target Achieved | K176: 80.50 | L176: 14.65% | M176: Successful | N176: 2016-02-19
A177: 44 | B177: 2015-12-04 | D177: Zensar Technology | E177: Accu | F177: 1027.50 | H177: 1315 | I177: 1250.00 | J177: Target Achieved | K177: 287.50 | L177: 27.98% | M177: Successful | N177: 2018-05-24
A178: 45 | B178: 2015-12-29 | D178: Vinati Organics Ltd | E178: Accu | F178: 465.00 | H178: 540 | I178: 540.00 | J178: Target Achieved | K178: 75.00 | L178: 16.13% | M178: Successful | N178: 2016-06-09
A179: 46 | B179: 2016-01-11 | D179: GSFC | E179: Buy | F179: 81.00 | H179: 110 | I179: 110.00 | J179: Target Achieved | K179: 29.00 | L179: 35.80% | M179: Successful | N179: 2017-01-10
A180: 47 | B180: 2016-01-13 | D180: SSWL | E180: Buy | F180: 417.50 | H180: 547 | I180: 535.00 | J180: Target Achieved | K180: 129.50 | L180: 31.02% | M180: Successful | N180: 2016-07-27
A181: 48 | B181: 2016-02-08 | D181: Persistent System Ltd | E181: Accu | F181: 650.00 | H181: 800 | I181: 800.00 | J181: Target Achieved | K181: 150.00 | L181: 23.08% | M181: Successful | N181: 2018-02-23
A182: 49 | B182: 2016-03-04 | D182: UPL | E182: Accu | F182: 437.50 | H182: 504.5 | I182: 522.00 | J182: Profit of Rs.67/- | K182: 67.00 | L182: 15.31% | M182: Successful | N182: 2016-04-20
A183: 50 | B183: 2016-03-09 | D183: Ashoka Buildcon Ltd | E183: Accu | F183: 189.50 | H183: 218 | I183: 218.00 | J183: Target Achieved | K183: 28.50 | L183: 15.04% | M183: Successful | N183: 2017-10-26
A184: 51 | B184: 2016-04-11 | D184: PTC INDIA FIN SERV LTD | E184: Accu | F184: 36.5 | H184: 15.85 | I184: 60.00 | J184: Loss of Rs.20.65/- | K184: -20.65 | L184: -56.58% | M184: Unsuccessful | N184: 2019-06-11
A185: 52 | B185: 2016-04-12 | D185: CAMLINFINE $ | E185: Accu | F185: 93.00 | H185: 149 | I185: 140.00 | J185: Profit of Rs 56/- | K185: 56.00 | L185: 60.22% | M185: Successful | N185: 2017-01-05
A186: 53 | B186: 2016-04-12 | D186: Greaves Cotton Ltd. | E186: Accu | F186: 130.00 | H186: 150 | I186: 150-155 | J186: Target Achieved | K186: 20.00 | L186: 15.38% | M186: Successful | N186: 2016-07-13
A187: 54 | B187: 2016-04-13 | D187: DHFL | E187: Accu | F187: 196.00 | H187: 299 | I187: 299.00 | J187: Target Achieved | K187: 103.00 | L187: 52.55% | M187: Successful | N187: 2016-09-07
A188: 55 | B188: 2016-04-13 | D188: Magma | E188: Accu | F188: 88.00 | H188: 103 | I188: 103.00 | J188: Target Achieved | K188: 15.00 | L188: 17.05% | M188: Successful | N188: 2016-06-09
A189: 56 | B189: 2016-05-02 | D189: KEC International ltd $ | E189: Accu | F189: 127.50 | H189: 148 | I189: 148-150 | J189: Target Achieved | K189: =H189-F189 -> 20.50 | L189: =K189/F189 -> 16.08% | M189: Successful | N189: 2016-07-13
A190: 57 | B190: 2016-05-03 | D190: Mindtree | E190: Accu | F190: 675.00 | H190: 815 | I190: 790-800 | J190: Target Achieved | K190: 140.00 | L190: 20.74% | M190: Successful | N190: 2018-02-23
A191: 58 | B191: 2016-06-01 | D191: Atulauto | E191: Accu | F191: 500 | H191: 232.50 | I191: 565-570 | J191: Loss of Rs.267.50 /- | K191: -267.50 | L191: -53.50% | M191: Unsuccessful | N191: 2019-09-27
A192: 59 | B192: 2016-06-06 | D192: TRITURBINE | E192: Accu | F192: 110.00 | H192: 126.5 | I192: 125.00 | J192: Profit of Rs.16.50/- | K192: 16.50 | L192: 15.00% | M192: Successful | N192: 2016-07-01
A193: 60 | B193: 2016-06-17 | D193: Pennar Industries Ltd | E193: Accu | F193: 44.00 | H193: 69.5 | I193: 69.50 | J193: Profit of Rs.25.50/- | K193: 25.50 | L193: 57.95% | M193: Successful | N193: 2017-08-30
A194: 61 | B194: 2016-06-28 | D194: EVEREADY | E194: Accu | F194: 262.50 | H194: 340 | I194: 333.00 | J194: Profit of Rs.77.50/- | K194: 77.50 | L194: 29.52% | M194: Successful | N194: 2017-10-09
A195: 62 | B195: 2016-06-28 | D195: FIEMIND | E195: Accu | F195: 840.00 | H195: 1230 | I195: 1230.00 | J195: Target Achieved | K195: 390.00 | L195: 46.43% | M195: Successful | N195: 2016-10-06
A196: 63 | B196: 2016-07-05 | D196: Bajaj Corp Ltd | E196: Accu | F196: 395 | H196: =(468.5+342.5)/2 -> 405.50 | I196: 510.00 | J196: Profit of Rs.10.50/- | K196: =H196-F196 -> 10.50 | L196: =K196/F196 -> 3% | M196: Neutral | N196: 2019-05-21
A197: 64 | B197: 2016-08-02 | D197: GPPL $ | E197: Buy | F197: =169.5-12.8 -> 156.7 | H197: 77.00 | I197: 198-200 | J197: Loss of Rs.79.7/- | K197: -79.70 | L197: -50.86% | M197: Unsuccessful | N197: 2019-02-26
A198: 65 | B198: 2016-08-04 | D198: WONDERLA HOLIDAYS LTD | E198: Accu | F198: 400 | H198: 305.00 | I198: 475.00 | J198: Loss of Rs.95/- | K198: -95.00 | L198: -23.75% | M198: Unsuccessful | N198: 2019-05-21
A199: 66 | B199: 2016-08-11 | D199: CAMLINFINE | E199: Accu | F199: 86.50 | H199: 130 | I199: 130.00 | J199: Profit of Rs.43.50/- | K199: 43.50 | L199: 50.29% | M199: Successful | N199: 2017-12-22
A200: 67 | B200: 2016-08-18 | D200: GRANULES | E200: Accu | F200: 133.5 | H200: 126.50 | I200: 178.00 | J200: Exit | K200: -7.00 | L200: -5.24% | M200: Unsuccessful | N200: 2016-09-02
A201: 68 | B201: 2016-08-31 | D201: VA TECH WABAG | E201: Accu | F201: 560.00 | H201: 725 | I201: 725.00 | J201: Target Achieved | K201: 165.00 | L201: 29.46% | M201: Successful | N201: 2016-03-27
A202: 69 | B202: 2016-09-01 | D202: SKIPPER LIMITED | E202: Accu | F202: 160.50 | H202: 210 | I202: 210.00 | J202: Target Achieved | K202: 49.50 | L202: 30.84% | M202: Successful | N202: 2017-05-16
A203: 70 | B203: 2016-10-03 | D203: IFBIND | E203: Accu | F203: 430.00 | H203: 596 | I203: 575.00 | J203: Profit of Rs.166/- | K203: 166.00 | L203: 38.60% | M203: Successful | N203: 2017-02-03
A204: 71 | B204: 2016-10-14 | D204: ASIANTILES | E204: Accu | F204: 280.00 | H204: 345 | I204: 345.00 | J204: Target Achieved | K204: =H204-F204 -> 65.00 | L204: =K204/F204 -> 23.21% | M204: Successful | N204: 2017-03-20
A205: 72 | B205: 2016-10-14 | D205: DEEPIND | E205: Accu | F205: 245.00 | H205: 325.5 | I205: 330.00 | J205: Profit of Rs.80.5/- | K205: 80.50 | L205: 32.86% | M205: Successful | N205: 2017-02-03
A206: 73 | B206: 2016-10-17 | D206: DCBBANK | E206: Accu | F206: 125.00 | H206: 160 | I206: 160.00 | J206: Target Achieved | K206: 35.00 | L206: 28.00% | M206: Successful | N206: 2017-03-09
A207: 74 | B207: 2016-10-17 | D207: ORIENTREF | E207: Accu | F207: 114.00 | H207: 145 | I207: 145.00 | J207: Target Achieved | K207: 31.00 | L207: =K207/F207 -> 27.19% | M207: Successful | N207: 2017-05-04
A208: 75 | B208: 2016-10-17 | D208: GANECOS | E208: Accu | F208: 212.00 | H208: 280 | I208: 276.00 | J208: Profit of Rs.68/- | K208: 68.00 | L208: 32.08% | M208: Successful | N208: 2017-05-03
A209: 76 | B209: 2016-11-04 | D209: NBCC | E209: Accu | F209: 155.00 | H209: 210 | I209: 210.00 | J209: Profit of Rs.55/- | K209: 55.00 | L209: 35.48% | M209: Successful | N209: 2017-07-28
A210: 77 | B210: 2016-12-06 | D210: PRECAM | E210: Accu | F210: 150.5 | H210: 72.50 | I210: 174.00 | J210: Loss of Rs.78/- | K210: -78.00 | L210: -51.83% | M210: Unsuccessful | N210: 2018-08-21
A211: 78 | B211: 2016-12-08 | D211: INFRATEL | E211: Accu | F211: 380.00 | H211: 478 | I211: 468.00 | J211: Target Achieved | K211: =H211-F211 -> 98.00 | L211: =K211/F211 -> 25.79% | M211: Successful | N211: 2017-10-17
A212: 79 | B212: 2016-12-30 | D212: GODREJPROP | E212: Accu | F212: 305.00 | H212: 375 | I212: 375.00 | J212: Target Achieved | K212: 70.00 | L212: 22.95% | M212: Successful | N212: 2017-02-02
A213: 80 | B213: 2017-01-04 | D213: DEEPAKNTR | E213: Accu | F213: 99.50 | H213: 158 | I213: 158.00 | J213: Target Achieved | K213: 58.50 | L213: 58.79% | M213: Successful | N213: 2017-06-12
A214: 81 | B214: 2017-01-04 | D214: DEEPAKNTR | E214: Accu | F214: 99.50 | H214: 158 | I214: 158.00 | J214: Target Achieved | K214: 58.50 | L214: 58.79% | M214: Successful | N214: 2017-06-12
A215: 82 | B215: 2017-02-20 | D215: RECLTD | E215: Accu | F215: 140.50 | H215: 220 | I215: 220.00 | J215: Target Achieved | K215: =H215-F215 -> 79.50 | L215: =K215/F215 -> 56.58% | M215: Successful | N215: 2017-05-09
A216: 83 | B216: 2017-02-20 | D216: SUBROS | E216: Accu | F216: 202.50 | H216: 234 | I216: 234.00 | J216: Target Achieved | K216: 31.50 | L216: 15.56% | M216: Successful | N216: 2017-04-11
A217: 84 | B217: 2017-03-24 | D217: VRLLOG | E217: Accu | F217: 300.50 | H217: 417.5 | I217: 420.00 | J217: Profit of Rs.117/- | K217: =H217-F217 -> 117.00 | L217: =K217/F217 -> 38.94% | M217: Successful | N217: 2017-12-01
A218: 85 | B218: 2017-03-24 | D218: FIEMIND | E218: Accu | F218: 850.00 | H218: 1042.5 | I218: 1023.00 | J218: Profit of Rs 192.50/- | K218: 192.50 | L218: 22.65% | M218: Successful | N218: 2017-04-05
A219: 86 | B219: 2017-04-05 | D219: RATNAMANI | E219: Accu | F219: 785.00 | H219: 930 | I219: 920.00 | J219: Profit of Rs.145/- | K219: =H219-F219 -> 145.00 | L219: =K219/F219 -> 18.47% | M219: Successful | N219: 2017-08-29
A220: 87 | B220: 2017-04-06 | D220: ZEEMEDIA | E220: Accu | F220: 40 | H220: 13.10 | I220: 60.00 | J220: Loss of Rs.26.9/- | K220: -26.90 | L220: -67.25% | M220: Unsuccessful | N220: 2018-02-07
A221: 88 | B221: 2017-04-12 | D221: DABUR | E221: Accu | F221: 289.50 | H221: 354 | I221: 360.00 | J221: Profit of Rs.64.5/- | K221: =H221-F221 -> 64.50 | L221: =K221/F221 -> 22.28% | M221: Successful | N221: 2017-11-01
A222: 89 | B222: 2017-04-20 | D222: KPRMILL | E222: Accu | F222: 700.00 | H222: 840 | I222: 840.00 | J222: Profit of Rs.140/- | K222: 140.00 | L222: 20.00% | M222: Successful | N222: 2017-06-07
A223: 90 | B223: 2017-06-01 | D223: ESSELPACK | E223: Accu | F223: 130.00 | H223: 144.25 | I223: 170.00 | J223: Profit of Rs.14.25/- | K223: 14.25 | L223: 10.96% | M223: Successful | N223: 2019-07-29
A224: 91 | B224: 2017-06-15 | D224: KEI | E224: Accu | F224: 214.50 | H224: 262 | I224: 262.00 | J224: Profit of Rs.47.5/- | K224: 47.50 | L224: 22.14% | M224: Successful | N224: 2017-08-30
A225: 92 | B225: 2017-07-17 | D225: MAYURUNIQ | E225: Accu | F225: 370.00 | H225: 447.5 | I225: 450.00 | J225: Target Achieved | K225: 77.50 | L225: 20.95% | M225: Successful | N225: 2017-10-27
A226: 93 | B226: 2017-07-27 | D226: RAMCOCEM | E226: Accu | F226: 657.50 | H226: 825 | I226: 820.00 | J226: Target Achieved | K226: 167.50 | L226: 25.48% | M226: Successful | N226: 2017-12-21
A227: 94 | B227: 2017-08-17 | D227: FINPIPE | E227: Accu | F227: 605.00 | H227: 750 | I227: 750.00 | J227: Profit of Rs.145/- | K227: 145.00 | L227: 23.97% | M227: Successful | N227: 2017-10-19
A228: 95 | B228: 2017-09-01 | D228: SHK | E228: Accu | F228: 255 | H228: 217.25 | I228: 320.00 | J228: Loss of Rs.37.75/- | K228: -37.75 | L228: -15% | M228: Unsuccessful | N228: 2019-07-15
... 113 more rows
